{"text_format":"1","workbook":"xlsx","n_sheets":10,"sheets":["Principal","LEIA-ME","UMF1","UMF2","UMF3","Simulações_Percentagem","Gráficos","Eliminadas","Plan1","Plan2"],"not_rendered":{"charts":9,"images":0,"macros":1,"external_links":0,"defined_names":32,"comments":0,"pivot_tables":0},"unopened":[],"bounds":{"document_bytes":16777216,"sheet_cells":100000,"rows_first":2000,"rows_last":500,"rows_between":2000,"halvings":0,"cell_chars":16384,"cell_head_chars":4096},"cells_cut":0,"cells_raw":0,"read":"whole","date_system":"1900"}

{"sheet":"Principal","index":0,"n_rows":388,"n_cols":204,"rows_kept":388,"cut":false,"hidden":false,"merged":[[3,4,3,5],[4,1,4,2],[0,4,0,5],[1,4,1,5]]}
[null,"Indicador baseado na:","Volume de corte máximo (m3/ha):",30,"Área da UPA (ha):",null,620,null,"% mín:",5.0000000000000001E-3]
[null,"Carga da UPA","Indicador A7 (Spp exploradas), k:",40,"Carga mínima (m3):",null,30]
[null,null,null,null,null,null,null,null,null,97,"Espécies"]
[null,null,"Receita (R$/ha):",{"$f":"G203","v":0},"Espécies e volume explorados:",null,{"$f":"J201","v":0},{"$f":"I201","v":0},"m3",{"$f":"J3*2+1","v":195},"Variáveis"]
["#","Espécie",null,"% Explorado da Sp","% do Total","Volume (m3)","Valor","Define V","Impõe V<V*","Impõe S>S*",1,2,3,4,5,6,7,8,9,10,11,12,13,14,15,16,17,18,19,20,21,22,23,24,25,26,27,28,29,30,31,32,33,34,35,36,37,38,39,40,42,43,44,45,46,47,48,49,50,51,52,53,54,55,56,57,59,60,61,62,63,64,65,66,67,68,69,70,71,72,73,74,75,76,77,78,79,81,82,83,84,86,88,89,90,91,92,93,94,96,97,98,100,101,102,103,104,1,2,3,4,5,6,7,8,9,10,11,12,13,14,15,16,17,18,19,20,21,22,23,24,25,26,27,28,29,30,31,32,33,34,35,36,37,38,39,40,42,43,44,45,46,47,48,49,50,51,52,53,54,55,56,57,59,60,61,62,63,64,65,66,67,68,69,70,71,72,73,74,75,76,77,78,79,81,82,83,84,86,88,89,90,91,92,93,94,96,97,98,100,101,102,103,104]
[1,"Andiroba","Carapa guianensis Aubl.",{"$f":"IF(ROUND(F103,0)=1,F6/-K103,\"--\")","v":"--"},{"$f":"IF(ROUND(F103,0)=1,F6/$F$200,\"--\")","v":"--"},null,120.12,1,null,null,1,null,null,null,null,null,null,null,null,null,null,null,null,null,null,null,null,null,null,null,null,null,null,null,null,null,null,null,null,null,null,null,null,null,null,null,null,null,null,null,null,null,null,null,null,null,null,null,null,null,null,null,null,null,null,null,null,null,null,null,null,null,null,null,null,null,null,null,null,null,null,null,null,null,null,null,null,null,null,null,null,null,null,null,null,null,null,null,null,null,null,null,null,null,null,null,null,{"$f":"$C$204","v":-620}]
[2,"Angelim-Vermelho","Dinizia excelsa",{"$f":"IF(ROUND(F104,0)=1,F7/-L104,\"--\")","v":"--"},"--",null,120,1,null,null,null,1,null,null,null,null,null,null,null,null,null,null,null,null,null,null,null,null,null,null,null,null,null,null,null,null,null,null,null,null,null,null,null,null,null,null,null,null,null,null,null,null,null,null,null,null,null,null,null,null,null,null,null,null,null,null,null,null,null,null,null,null,null,null,null,null,null,null,null,null,null,null,null,null,null,null,null,null,null,null,null,null,null,null,null,null,null,null,null,null,null,null,null,null,null,null,null,null,{"$f":"$C$204","v":-620}]
[3,"Cumaru","Dipteryx odorata",{"$f":"IF(ROUND(F105,0)=1,F8/-M105,\"--\")","v":"--"},"--",null,120,1,null,null,null,null,1,null,null,null,null,null,null,null,null,null,null,null,null,null,null,null,null,null,null,null,null,null,null,null,null,null,null,null,null,null,null,null,null,null,null,null,null,null,null,null,null,null,null,null,null,null,null,null,null,null,null,null,null,null,null,null,null,null,null,null,null,null,null,null,null,null,null,null,null,null,null,null,null,null,null,null,null,null,null,null,null,null,null,null,null,null,null,null,null,null,null,null,null,null,null,null,null,{"$f":"$C$204","v":-620}]
[4,"Jatobá","Hymenaea courbaril L. var.courbaril",{"$f":"IF(ROUND(F106,0)=1,F9/-N106,\"--\")","v":"--"},"--",null,120,1,null,null,null,null,null,1,null,null,null,null,null,null,null,null,null,null,null,null,null,null,null,null,null,null,null,null,null,null,null,null,null,null,null,null,null,null,null,null,null,null,null,null,null,null,null,null,null,null,null,null,null,null,null,null,null,null,null,null,null,null,null,null,null,null,null,null,null,null,null,null,null,null,null,null,null,null,null,null,null,null,null,null,null,null,null,null,null,null,null,null,null,null,null,null,null,null,null,null,null,null,null,null,{"$f":"$C$204","v":-620}]
[5,"Maparajuba","Manilkara amazonica (Huber) Standley",{"$f":"IF(ROUND(F107,0)=1,F10/-O107,\"--\")","v":"--"},"--",null,120,1,null,null,null,null,null,null,1,null,null,null,null,null,null,null,null,null,null,null,null,null,null,null,null,null,null,null,null,null,null,null,null,null,null,null,null,null,null,null,null,null,null,null,null,null,null,null,null,null,null,null,null,null,null,null,null,null,null,null,null,null,null,null,null,null,null,null,null,null,null,null,null,null,null,null,null,null,null,null,null,null,null,null,null,null,null,null,null,null,null,null,null,null,null,null,null,null,null,null,null,null,null,null,null,{"$f":"$C$204","v":-620}]
[6,"Massaranduba","Manilkara bidentata subsp. surinamensis (Miq.) T.D. Penn. ",{"$f":"IF(ROUND(F108,0)=1,F11/-P108,\"--\")","v":"--"},"--",null,120,1,null,null,null,null,null,null,null,1,null,null,null,null,null,null,null,null,null,null,null,null,null,null,null,null,null,null,null,null,null,null,null,null,null,null,null,null,null,null,null,null,null,null,null,null,null,null,null,null,null,null,null,null,null,null,null,null,null,null,null,null,null,null,null,null,null,null,null,null,null,null,null,null,null,null,null,null,null,null,null,null,null,null,null,null,null,null,null,null,null,null,null,null,null,null,null,null,null,null,null,null,null,null,null,null,{"$f":"$C$204","v":-620}]
[7,"Muiracatiara","Astronium lecointe Ducke",{"$f":"IF(ROUND(F109,0)=1,F12/-Q109,\"--\")","v":"--"},"--",null,120,1,null,null,null,null,null,null,null,null,1,null,null,null,null,null,null,null,null,null,null,null,null,null,null,null,null,null,null,null,null,null,null,null,null,null,null,null,null,null,null,null,null,null,null,null,null,null,null,null,null,null,null,null,null,null,null,null,null,null,null,null,null,null,null,null,null,null,null,null,null,null,null,null,null,null,null,null,null,null,null,null,null,null,null,null,null,null,null,null,null,null,null,null,null,null,null,null,null,null,null,null,null,null,null,null,null,{"$f":"$C$204","v":-620}]
[8,"Angelim","Hymenolobium sp.",{"$f":"IF(ROUND(F110,0)=1,F13/-R110,\"--\")","v":"--"},"--",null,90,1,null,null,null,null,null,null,null,null,null,1,null,null,null,null,null,null,null,null,null,null,null,null,null,null,null,null,null,null,null,null,null,null,null,null,null,null,null,null,null,null,null,null,null,null,null,null,null,null,null,null,null,null,null,null,null,null,null,null,null,null,null,null,null,null,null,null,null,null,null,null,null,null,null,null,null,null,null,null,null,null,null,null,null,null,null,null,null,null,null,null,null,null,null,null,null,null,null,null,null,null,null,null,null,null,null,null,{"$f":"$C$204","v":-620}]
[9,"Angelim-pedra","Hymenolobium elatum Ducke ",{"$f":"IF(ROUND(F111,0)=1,F14/-S111,\"--\")","v":"--"},"--",null,90,1,null,null,null,null,null,null,null,null,null,null,1,null,null,null,null,null,null,null,null,null,null,null,null,null,null,null,null,null,null,null,null,null,null,null,null,null,null,null,null,null,null,null,null,null,null,null,null,null,null,null,null,null,null,null,null,null,null,null,null,null,null,null,null,null,null,null,null,null,null,null,null,null,null,null,null,null,null,null,null,null,null,null,null,null,null,null,null,null,null,null,null,null,null,null,null,null,null,null,null,null,null,null,null,null,null,null,null,{"$f":"$C$204","v":-620}]
[10,"Cumaru-do-brejo","Dipteryx puncatata (Blake) Amshoff",{"$f":"IF(ROUND(F112,0)=1,F15/-T112,\"--\")","v":"--"},"--",null,90,1,null,null,null,null,null,null,null,null,null,null,null,1,null,null,null,null,null,null,null,null,null,null,null,null,null,null,null,null,null,null,null,null,null,null,null,null,null,null,null,null,null,null,null,null,null,null,null,null,null,null,null,null,null,null,null,null,null,null,null,null,null,null,null,null,null,null,null,null,null,null,null,null,null,null,null,null,null,null,null,null,null,null,null,null,null,null,null,null,null,null,null,null,null,null,null,null,null,null,null,null,null,null,null,null,null,null,null,null,{"$f":"$C$204","v":-620}]
[11,"Cumarurana","Dipteryx magnifica (Ducke) Ducke",{"$f":"IF(ROUND(F113,0)=1,F16/-U113,\"--\")","v":"--"},"--",null,90,1,null,null,null,null,null,null,null,null,null,null,null,null,1,null,null,null,null,null,null,null,null,null,null,null,null,null,null,null,null,null,null,null,null,null,null,null,null,null,null,null,null,null,null,null,null,null,null,null,null,null,null,null,null,null,null,null,null,null,null,null,null,null,null,null,null,null,null,null,null,null,null,null,null,null,null,null,null,null,null,null,null,null,null,null,null,null,null,null,null,null,null,null,null,null,null,null,null,null,null,null,null,null,null,null,null,null,null,null,null,{"$f":"$C$204","v":-620}]
[12,"Cupiúba","Goupia glabra Aubl.",{"$f":"IF(ROUND(F114,0)=1,F17/-V114,\"--\")","v":"--"},"--",null,90,1,null,null,null,null,null,null,null,null,null,null,null,null,null,1,null,null,null,null,null,null,null,null,null,null,null,null,null,null,null,null,null,null,null,null,null,null,null,null,null,null,null,null,null,null,null,null,null,null,null,null,null,null,null,null,null,null,null,null,null,null,null,null,null,null,null,null,null,null,null,null,null,null,null,null,null,null,null,null,null,null,null,null,null,null,null,null,null,null,null,null,null,null,null,null,null,null,null,null,null,null,null,null,null,null,null,null,null,null,null,null,{"$f":"$C$204","v":-620}]
[13,"Itaúba","Mezilaurus synadra (Mez) Kosterm.",{"$f":"IF(ROUND(F115,0)=1,F18/-W115,\"--\")","v":"--"},"--",null,90,1,null,null,null,null,null,null,null,null,null,null,null,null,null,null,1,null,null,null,null,null,null,null,null,null,null,null,null,null,null,null,null,null,null,null,null,null,null,null,null,null,null,null,null,null,null,null,null,null,null,null,null,null,null,null,null,null,null,null,null,null,null,null,null,null,null,null,null,null,null,null,null,null,null,null,null,null,null,null,null,null,null,null,null,null,null,null,null,null,null,null,null,null,null,null,null,null,null,null,null,null,null,null,null,null,null,null,null,null,null,null,null,{"$f":"$C$204","v":-620}]
[14,"Jutaí","Hymenaea reticulata Ducke",{"$f":"IF(ROUND(F116,0)=1,F19/-X116,\"--\")","v":"--"},"--",null,90,1,null,null,null,null,null,null,null,null,null,null,null,null,null,null,null,1,null,null,null,null,null,null,null,null,null,null,null,null,null,null,null,null,null,null,null,null,null,null,null,null,null,null,null,null,null,null,null,null,null,null,null,null,null,null,null,null,null,null,null,null,null,null,null,null,null,null,null,null,null,null,null,null,null,null,null,null,null,null,null,null,null,null,null,null,null,null,null,null,null,null,null,null,null,null,null,null,null,null,null,null,null,null,null,null,null,null,null,null,null,null,null,null,{"$f":"$C$204","v":-620}]
[15,"Jutaí-pororoca","Dialium guianense (Aubl.) Sandwith",{"$f":"IF(ROUND(F117,0)=1,F20/-Y117,\"--\")","v":"--"},"--",null,90,1,null,null,null,null,null,null,null,null,null,null,null,null,null,null,null,null,1,null,null,null,null,null,null,null,null,null,null,null,null,null,null,null,null,null,null,null,null,null,null,null,null,null,null,null,null,null,null,null,null,null,null,null,null,null,null,null,null,null,null,null,null,null,null,null,null,null,null,null,null,null,null,null,null,null,null,null,null,null,null,null,null,null,null,null,null,null,null,null,null,null,null,null,null,null,null,null,null,null,null,null,null,null,null,null,null,null,null,null,null,null,null,null,null,{"$f":"$C$204","v":-620}]
[16,"Louro","Ocotea sp.",{"$f":"IF(ROUND(F118,0)=1,F21/-Z118,\"--\")","v":"--"},"--",null,90,1,null,null,null,null,null,null,null,null,null,null,null,null,null,null,null,null,null,1,null,null,null,null,null,null,null,null,null,null,null,null,null,null,null,null,null,null,null,null,null,null,null,null,null,null,null,null,null,null,null,null,null,null,null,null,null,null,null,null,null,null,null,null,null,null,null,null,null,null,null,null,null,null,null,null,null,null,null,null,null,null,null,null,null,null,null,null,null,null,null,null,null,null,null,null,null,null,null,null,null,null,null,null,null,null,null,null,null,null,null,null,null,null,null,null,{"$f":"$C$204","v":-620}]
[17,"Louro-amarelo","Ocotea cymbarum H.B.K",{"$f":"IF(ROUND(F119,0)=1,F22/-AA119,\"--\")","v":"--"},"--",null,90,1,null,null,null,null,null,null,null,null,null,null,null,null,null,null,null,null,null,null,1,null,null,null,null,null,null,null,null,null,null,null,null,null,null,null,null,null,null,null,null,null,null,null,null,null,null,null,null,null,null,null,null,null,null,null,null,null,null,null,null,null,null,null,null,null,null,null,null,null,null,null,null,null,null,null,null,null,null,null,null,null,null,null,null,null,null,null,null,null,null,null,null,null,null,null,null,null,null,null,null,null,null,null,null,null,null,null,null,null,null,null,null,null,null,null,null,{"$f":"$C$204","v":-620}]
[18,"Louro-aritú","Licaria aritu Benth.",{"$f":"IF(ROUND(F120,0)=1,F23/-AB120,\"--\")","v":"--"},"--",null,90,1,null,null,null,null,null,null,null,null,null,null,null,null,null,null,null,null,null,null,null,1,null,null,null,null,null,null,null,null,null,null,null,null,null,null,null,null,null,null,null,null,null,null,null,null,null,null,null,null,null,null,null,null,null,null,null,null,null,null,null,null,null,null,null,null,null,null,null,null,null,null,null,null,null,null,null,null,null,null,null,null,null,null,null,null,null,null,null,null,null,null,null,null,null,null,null,null,null,null,null,null,null,null,null,null,null,null,null,null,null,null,null,null,null,null,null,null,{"$f":"$C$204","v":-620}]
[19,"Louro-canela","Licaria cannella ( Meissn.) Kosterm. subsp. cannella   ",{"$f":"IF(ROUND(F121,0)=1,F24/-AC121,\"--\")","v":"--"},"--",null,90,1,null,null,null,null,null,null,null,null,null,null,null,null,null,null,null,null,null,null,null,null,1,null,null,null,null,null,null,null,null,null,null,null,null,null,null,null,null,null,null,null,null,null,null,null,null,null,null,null,null,null,null,null,null,null,null,null,null,null,null,null,null,null,null,null,null,null,null,null,null,null,null,null,null,null,null,null,null,null,null,null,null,null,null,null,null,null,null,null,null,null,null,null,null,null,null,null,null,null,null,null,null,null,null,null,null,null,null,null,null,null,null,null,null,null,null,null,null,{"$f":"$C$204","v":-620}]
[20,"Louro-fofo","Ocotea canaliculata (Rich.) Mez",{"$f":"IF(ROUND(F122,0)=1,F25/-AD122,\"--\")","v":"--"},"--",null,90,1,null,null,null,null,null,null,null,null,null,null,null,null,null,null,null,null,null,null,null,null,null,1,null,null,null,null,null,null,null,null,null,null,null,null,null,null,null,null,null,null,null,null,null,null,null,null,null,null,null,null,null,null,null,null,null,null,null,null,null,null,null,null,null,null,null,null,null,null,null,null,null,null,null,null,null,null,null,null,null,null,null,null,null,null,null,null,null,null,null,null,null,null,null,null,null,null,null,null,null,null,null,null,null,null,null,null,null,null,null,null,null,null,null,null,null,null,null,null,{"$f":"$C$204","v":-620}]
[21,"Louro-gamela","Nectandra rubra Mez ck .Allen",{"$f":"IF(ROUND(F123,0)=1,F26/-AE123,\"--\")","v":"--"},"--",null,90,1,null,null,null,null,null,null,null,null,null,null,null,null,null,null,null,null,null,null,null,null,null,null,1,null,null,null,null,null,null,null,null,null,null,null,null,null,null,null,null,null,null,null,null,null,null,null,null,null,null,null,null,null,null,null,null,null,null,null,null,null,null,null,null,null,null,null,null,null,null,null,null,null,null,null,null,null,null,null,null,null,null,null,null,null,null,null,null,null,null,null,null,null,null,null,null,null,null,null,null,null,null,null,null,null,null,null,null,null,null,null,null,null,null,null,null,null,null,null,null,{"$f":"$C$204","v":-620}]
[22,"Louro-porco","Nectandra cuspidata Nees & Mart.",{"$f":"IF(ROUND(F124,0)=1,F27/-AF124,\"--\")","v":"--"},"--",null,90,1,null,null,null,null,null,null,null,null,null,null,null,null,null,null,null,null,null,null,null,null,null,null,null,1,null,null,null,null,null,null,null,null,null,null,null,null,null,null,null,null,null,null,null,null,null,null,null,null,null,null,null,null,null,null,null,null,null,null,null,null,null,null,null,null,null,null,null,null,null,null,null,null,null,null,null,null,null,null,null,null,null,null,null,null,null,null,null,null,null,null,null,null,null,null,null,null,null,null,null,null,null,null,null,null,null,null,null,null,null,null,null,null,null,null,null,null,null,null,null,null,{"$f":"$C$204","v":-620}]
[23,"Louro-preto","Nectandra purusensis Coe-Teix.",{"$f":"IF(ROUND(F125,0)=1,F28/-AG125,\"--\")","v":"--"},"--",null,90,1,null,null,null,null,null,null,null,null,null,null,null,null,null,null,null,null,null,null,null,null,null,null,null,null,1,null,null,null,null,null,null,null,null,null,null,null,null,null,null,null,null,null,null,null,null,null,null,null,null,null,null,null,null,null,null,null,null,null,null,null,null,null,null,null,null,null,null,null,null,null,null,null,null,null,null,null,null,null,null,null,null,null,null,null,null,null,null,null,null,null,null,null,null,null,null,null,null,null,null,null,null,null,null,null,null,null,null,null,null,null,null,null,null,null,null,null,null,null,null,null,null,{"$f":"$C$204","v":-620}]
[24,"Marupá","Simarouba amara Aubl.",{"$f":"IF(ROUND(F126,0)=1,F29/-AH126,\"--\")","v":"--"},"--",null,90,1,null,null,null,null,null,null,null,null,null,null,null,null,null,null,null,null,null,null,null,null,null,null,null,null,null,1,null,null,null,null,null,null,null,null,null,null,null,null,null,null,null,null,null,null,null,null,null,null,null,null,null,null,null,null,null,null,null,null,null,null,null,null,null,null,null,null,null,null,null,null,null,null,null,null,null,null,null,null,null,null,null,null,null,null,null,null,null,null,null,null,null,null,null,null,null,null,null,null,null,null,null,null,null,null,null,null,null,null,null,null,null,null,null,null,null,null,null,null,null,null,null,null,{"$f":"$C$204","v":-620}]
[25,"Pequiá","Caryocar villosum (Aubl.) Pers.",{"$f":"IF(ROUND(F127,0)=1,F30/-AI127,\"--\")","v":"--"},"--",null,90,1,null,null,null,null,null,null,null,null,null,null,null,null,null,null,null,null,null,null,null,null,null,null,null,null,null,null,1,null,null,null,null,null,null,null,null,null,null,null,null,null,null,null,null,null,null,null,null,null,null,null,null,null,null,null,null,null,null,null,null,null,null,null,null,null,null,null,null,null,null,null,null,null,null,null,null,null,null,null,null,null,null,null,null,null,null,null,null,null,null,null,null,null,null,null,null,null,null,null,null,null,null,null,null,null,null,null,null,null,null,null,null,null,null,null,null,null,null,null,null,null,null,null,null,{"$f":"$C$204","v":-620}]
[26,"Pequiarana","Caryocar glabrum (Aubl.) Pers.",{"$f":"IF(ROUND(F128,0)=1,F31/-AJ128,\"--\")","v":"--"},"--",null,90,1,null,null,null,null,null,null,null,null,null,null,null,null,null,null,null,null,null,null,null,null,null,null,null,null,null,null,null,1,null,null,null,null,null,null,null,null,null,null,null,null,null,null,null,null,null,null,null,null,null,null,null,null,null,null,null,null,null,null,null,null,null,null,null,null,null,null,null,null,null,null,null,null,null,null,null,null,null,null,null,null,null,null,null,null,null,null,null,null,null,null,null,null,null,null,null,null,null,null,null,null,null,null,null,null,null,null,null,null,null,null,null,null,null,null,null,null,null,null,null,null,null,null,null,null,{"$f":"$C$204","v":-620}]
[27,"Preciosa","Aniba canelilla (Kunth) Mez",{"$f":"IF(ROUND(F129,0)=1,F32/-AK129,\"--\")","v":"--"},"--",null,90,1,null,null,null,null,null,null,null,null,null,null,null,null,null,null,null,null,null,null,null,null,null,null,null,null,null,null,null,null,1,null,null,null,null,null,null,null,null,null,null,null,null,null,null,null,null,null,null,null,null,null,null,null,null,null,null,null,null,null,null,null,null,null,null,null,null,null,null,null,null,null,null,null,null,null,null,null,null,null,null,null,null,null,null,null,null,null,null,null,null,null,null,null,null,null,null,null,null,null,null,null,null,null,null,null,null,null,null,null,null,null,null,null,null,null,null,null,null,null,null,null,null,null,null,null,null,{"$f":"$C$204","v":-620}]
[28,"Quarubarana","Erisma uncinatum Warm.",{"$f":"IF(ROUND(F130,0)=1,F33/-AL130,\"--\")","v":"--"},"--",null,90,1,null,null,null,null,null,null,null,null,null,null,null,null,null,null,null,null,null,null,null,null,null,null,null,null,null,null,null,null,null,1,null,null,null,null,null,null,null,null,null,null,null,null,null,null,null,null,null,null,null,null,null,null,null,null,null,null,null,null,null,null,null,null,null,null,null,null,null,null,null,null,null,null,null,null,null,null,null,null,null,null,null,null,null,null,null,null,null,null,null,null,null,null,null,null,null,null,null,null,null,null,null,null,null,null,null,null,null,null,null,null,null,null,null,null,null,null,null,null,null,null,null,null,null,null,null,null,{"$f":"$C$204","v":-620}]
[29,"Ripeiro","Couratari sp.",{"$f":"IF(ROUND(F131,0)=1,F34/-AM131,\"--\")","v":"--"},"--",null,90,1,null,null,null,null,null,null,null,null,null,null,null,null,null,null,null,null,null,null,null,null,null,null,null,null,null,null,null,null,null,null,1,null,null,null,null,null,null,null,null,null,null,null,null,null,null,null,null,null,null,null,null,null,null,null,null,null,null,null,null,null,null,null,null,null,null,null,null,null,null,null,null,null,null,null,null,null,null,null,null,null,null,null,null,null,null,null,null,null,null,null,null,null,null,null,null,null,null,null,null,null,null,null,null,null,null,null,null,null,null,null,null,null,null,null,null,null,null,null,null,null,null,null,null,null,null,null,null,{"$f":"$C$204","v":-620}]
[30,"Sucupira-amarela","Enterolobium schomburgkii Benth.",{"$f":"IF(ROUND(F132,0)=1,F35/-AN132,\"--\")","v":"--"},"--",null,90,1,null,null,null,null,null,null,null,null,null,null,null,null,null,null,null,null,null,null,null,null,null,null,null,null,null,null,null,null,null,null,null,1,null,null,null,null,null,null,null,null,null,null,null,null,null,null,null,null,null,null,null,null,null,null,null,null,null,null,null,null,null,null,null,null,null,null,null,null,null,null,null,null,null,null,null,null,null,null,null,null,null,null,null,null,null,null,null,null,null,null,null,null,null,null,null,null,null,null,null,null,null,null,null,null,null,null,null,null,null,null,null,null,null,null,null,null,null,null,null,null,null,null,null,null,null,null,null,null,{"$f":"$C$204","v":-620}]
[31,"Sucupira-preta","Diplotropis purpurea (Rich.) Amshoff",{"$f":"IF(ROUND(F133,0)=1,F36/-AO133,\"--\")","v":"--"},"--",null,90,1,null,null,null,null,null,null,null,null,null,null,null,null,null,null,null,null,null,null,null,null,null,null,null,null,null,null,null,null,null,null,null,null,1,null,null,null,null,null,null,null,null,null,null,null,null,null,null,null,null,null,null,null,null,null,null,null,null,null,null,null,null,null,null,null,null,null,null,null,null,null,null,null,null,null,null,null,null,null,null,null,null,null,null,null,null,null,null,null,null,null,null,null,null,null,null,null,null,null,null,null,null,null,null,null,null,null,null,null,null,null,null,null,null,null,null,null,null,null,null,null,null,null,null,null,null,null,null,null,null,{"$f":"$C$204","v":-620}]
[32,"Tauari-branco","Couratari stellata A.C.Sm.",{"$f":"IF(ROUND(F134,0)=1,F37/-AP134,\"--\")","v":"--"},"--",null,90,1,null,null,null,null,null,null,null,null,null,null,null,null,null,null,null,null,null,null,null,null,null,null,null,null,null,null,null,null,null,null,null,null,null,1,null,null,null,null,null,null,null,null,null,null,null,null,null,null,null,null,null,null,null,null,null,null,null,null,null,null,null,null,null,null,null,null,null,null,null,null,null,null,null,null,null,null,null,null,null,null,null,null,null,null,null,null,null,null,null,null,null,null,null,null,null,null,null,null,null,null,null,null,null,null,null,null,null,null,null,null,null,null,null,null,null,null,null,null,null,null,null,null,null,null,null,null,null,null,null,null,{"$f":"$C$204","v":-620}]
[33,"Tauari-vermelho","Cariniana micrantha Ducke",{"$f":"IF(ROUND(F135,0)=1,F38/-AQ135,\"--\")","v":"--"},{"$f":"IF(ROUND(F135,0)=1,F38/$F$200,\"--\")","v":"--"},null,90,1,null,null,null,null,null,null,null,null,null,null,null,null,null,null,null,null,null,null,null,null,null,null,null,null,null,null,null,null,null,null,null,null,null,null,1,null,null,null,null,null,null,null,null,null,null,null,null,null,null,null,null,null,null,null,null,null,null,null,null,null,null,null,null,null,null,null,null,null,null,null,null,null,null,null,null,null,null,null,null,null,null,null,null,null,null,null,null,null,null,null,null,null,null,null,null,null,null,null,null,null,null,null,null,null,null,null,null,null,null,null,null,null,null,null,null,null,null,null,null,null,null,null,null,null,null,null,null,null,null,null,null,{"$f":"$C$204","v":-620}]
[34,"Ucuúba","Virola theodora (Spruce ex Benth.) Warb.",{"$f":"IF(ROUND(F136,0)=1,F39/-AR136,\"--\")","v":"--"},"--",null,90,1,null,null,null,null,null,null,null,null,null,null,null,null,null,null,null,null,null,null,null,null,null,null,null,null,null,null,null,null,null,null,null,null,null,null,null,1,null,null,null,null,null,null,null,null,null,null,null,null,null,null,null,null,null,null,null,null,null,null,null,null,null,null,null,null,null,null,null,null,null,null,null,null,null,null,null,null,null,null,null,null,null,null,null,null,null,null,null,null,null,null,null,null,null,null,null,null,null,null,null,null,null,null,null,null,null,null,null,null,null,null,null,null,null,null,null,null,null,null,null,null,null,null,null,null,null,null,null,null,null,null,null,null,{"$f":"$C$204","v":-620}]
[35,"Ucuúba-branca","Virola parvonis (A.DC.) A.C.Sm.",{"$f":"IF(ROUND(F137,0)=1,F40/-AS137,\"--\")","v":"--"},"--",null,90,1,null,null,null,null,null,null,null,null,null,null,null,null,null,null,null,null,null,null,null,null,null,null,null,null,null,null,null,null,null,null,null,null,null,null,null,null,1,null,null,null,null,null,null,null,null,null,null,null,null,null,null,null,null,null,null,null,null,null,null,null,null,null,null,null,null,null,null,null,null,null,null,null,null,null,null,null,null,null,null,null,null,null,null,null,null,null,null,null,null,null,null,null,null,null,null,null,null,null,null,null,null,null,null,null,null,null,null,null,null,null,null,null,null,null,null,null,null,null,null,null,null,null,null,null,null,null,null,null,null,null,null,null,null,{"$f":"$C$204","v":-620}]
[36,"Violeta","Peltogyne catingae Ducke",{"$f":"IF(ROUND(F138,0)=1,F41/-AT138,\"--\")","v":"--"},"--",null,90,1,null,null,null,null,null,null,null,null,null,null,null,null,null,null,null,null,null,null,null,null,null,null,null,null,null,null,null,null,null,null,null,null,null,null,null,null,null,1,null,null,null,null,null,null,null,null,null,null,null,null,null,null,null,null,null,null,null,null,null,null,null,null,null,null,null,null,null,null,null,null,null,null,null,null,null,null,null,null,null,null,null,null,null,null,null,null,null,null,null,null,null,null,null,null,null,null,null,null,null,null,null,null,null,null,null,null,null,null,null,null,null,null,null,null,null,null,null,null,null,null,null,null,null,null,null,null,null,null,null,null,null,null,null,null,{"$f":"$C$204","v":-620}]
[37,"Virola","Virola michelii Heckel",{"$f":"IF(ROUND(F139,0)=1,F42/-AU139,\"--\")","v":"--"},"--",null,90,1,null,null,null,null,null,null,null,null,null,null,null,null,null,null,null,null,null,null,null,null,null,null,null,null,null,null,null,null,null,null,null,null,null,null,null,null,null,null,1,null,null,null,null,null,null,null,null,null,null,null,null,null,null,null,null,null,null,null,null,null,null,null,null,null,null,null,null,null,null,null,null,null,null,null,null,null,null,null,null,null,null,null,null,null,null,null,null,null,null,null,null,null,null,null,null,null,null,null,null,null,null,null,null,null,null,null,null,null,null,null,null,null,null,null,null,null,null,null,null,null,null,null,null,null,null,null,null,null,null,null,null,null,null,null,null,{"$f":"$C$204","v":-620}]
[38,"Abiurana-ferro","Chrysophyllum prieurii A.DC.",{"$f":"IF(ROUND(F140,0)=1,F43/-AV140,\"--\")","v":"--"},"--",null,50,1,null,null,null,null,null,null,null,null,null,null,null,null,null,null,null,null,null,null,null,null,null,null,null,null,null,null,null,null,null,null,null,null,null,null,null,null,null,null,null,1,null,null,null,null,null,null,null,null,null,null,null,null,null,null,null,null,null,null,null,null,null,null,null,null,null,null,null,null,null,null,null,null,null,null,null,null,null,null,null,null,null,null,null,null,null,null,null,null,null,null,null,null,null,null,null,null,null,null,null,null,null,null,null,null,null,null,null,null,null,null,null,null,null,null,null,null,null,null,null,null,null,null,null,null,null,null,null,null,null,null,null,null,null,null,null,null,{"$f":"$C$204","v":-620}]
[39,"Acariquara","Minquartia guianensis Aubl.",{"$f":"IF(ROUND(F141,0)=1,F44/-AW141,\"--\")","v":"--"},"--",null,50,1,null,null,null,null,null,null,null,null,null,null,null,null,null,null,null,null,null,null,null,null,null,null,null,null,null,null,null,null,null,null,null,null,null,null,null,null,null,null,null,null,1,null,null,null,null,null,null,null,null,null,null,null,null,null,null,null,null,null,null,null,null,null,null,null,null,null,null,null,null,null,null,null,null,null,null,null,null,null,null,null,null,null,null,null,null,null,null,null,null,null,null,null,null,null,null,null,null,null,null,null,null,null,null,null,null,null,null,null,null,null,null,null,null,null,null,null,null,null,null,null,null,null,null,null,null,null,null,null,null,null,null,null,null,null,null,null,null,{"$f":"$C$204","v":-620}]
[40,"Amapá","Brosimum sp.",{"$f":"IF(ROUND(F142,0)=1,F45/-AX142,\"--\")","v":"--"},"--",null,50,1,null,null,null,null,null,null,null,null,null,null,null,null,null,null,null,null,null,null,null,null,null,null,null,null,null,null,null,null,null,null,null,null,null,null,null,null,null,null,null,null,null,1,null,null,null,null,null,null,null,null,null,null,null,null,null,null,null,null,null,null,null,null,null,null,null,null,null,null,null,null,null,null,null,null,null,null,null,null,null,null,null,null,null,null,null,null,null,null,null,null,null,null,null,null,null,null,null,null,null,null,null,null,null,null,null,null,null,null,null,null,null,null,null,null,null,null,null,null,null,null,null,null,null,null,null,null,null,null,null,null,null,null,null,null,null,null,null,null,{"$f":"$C$204","v":-620}]
[42,"Amapá-doce","Brosimum parinarioides Ducke subsp. parinarioides",{"$f":"IF(ROUND(F143,0)=1,F46/-AY143,\"--\")","v":"--"},"--",null,50,1,null,null,null,null,null,null,null,null,null,null,null,null,null,null,null,null,null,null,null,null,null,null,null,null,null,null,null,null,null,null,null,null,null,null,null,null,null,null,null,null,null,null,1,null,null,null,null,null,null,null,null,null,null,null,null,null,null,null,null,null,null,null,null,null,null,null,null,null,null,null,null,null,null,null,null,null,null,null,null,null,null,null,null,null,null,null,null,null,null,null,null,null,null,null,null,null,null,null,null,null,null,null,null,null,null,null,null,null,null,null,null,null,null,null,null,null,null,null,null,null,null,null,null,null,null,null,null,null,null,null,null,null,null,null,null,null,null,null,null,{"$f":"$C$204","v":-620}]
[43,"Angelim-rajado","Zygia racemosa (Ducke) Barneby & Grimes",{"$f":"IF(ROUND(F144,0)=1,F47/-AZ144,\"--\")","v":"--"},"--",null,50,1,null,null,null,null,null,null,null,null,null,null,null,null,null,null,null,null,null,null,null,null,null,null,null,null,null,null,null,null,null,null,null,null,null,null,null,null,null,null,null,null,null,null,null,1,null,null,null,null,null,null,null,null,null,null,null,null,null,null,null,null,null,null,null,null,null,null,null,null,null,null,null,null,null,null,null,null,null,null,null,null,null,null,null,null,null,null,null,null,null,null,null,null,null,null,null,null,null,null,null,null,null,null,null,null,null,null,null,null,null,null,null,null,null,null,null,null,null,null,null,null,null,null,null,null,null,null,null,null,null,null,null,null,null,null,null,null,null,null,null,null,{"$f":"$C$204","v":-620}]
[44,"Arurá-vermelho","Iryanthera ulei Warb.",{"$f":"IF(ROUND(F145,0)=1,F48/-BA145,\"--\")","v":"--"},"--",null,50,1,null,null,null,null,null,null,null,null,null,null,null,null,null,null,null,null,null,null,null,null,null,null,null,null,null,null,null,null,null,null,null,null,null,null,null,null,null,null,null,null,null,null,null,null,1,null,null,null,null,null,null,null,null,null,null,null,null,null,null,null,null,null,null,null,null,null,null,null,null,null,null,null,null,null,null,null,null,null,null,null,null,null,null,null,null,null,null,null,null,null,null,null,null,null,null,null,null,null,null,null,null,null,null,null,null,null,null,null,null,null,null,null,null,null,null,null,null,null,null,null,null,null,null,null,null,null,null,null,null,null,null,null,null,null,null,null,null,null,null,null,null,{"$f":"$C$204","v":-620}]
[45,"Bacuri","Platonia insingnis Mart.",{"$f":"IF(ROUND(F146,0)=1,F49/-BB146,\"--\")","v":"--"},"--",null,50,1,null,null,null,null,null,null,null,null,null,null,null,null,null,null,null,null,null,null,null,null,null,null,null,null,null,null,null,null,null,null,null,null,null,null,null,null,null,null,null,null,null,null,null,null,null,1,null,null,null,null,null,null,null,null,null,null,null,null,null,null,null,null,null,null,null,null,null,null,null,null,null,null,null,null,null,null,null,null,null,null,null,null,null,null,null,null,null,null,null,null,null,null,null,null,null,null,null,null,null,null,null,null,null,null,null,null,null,null,null,null,null,null,null,null,null,null,null,null,null,null,null,null,null,null,null,null,null,null,null,null,null,null,null,null,null,null,null,null,null,null,null,null,{"$f":"$C$204","v":-620}]
[46,"Balatarana","Chrysophyllum sanguinolentum (Pierre) Baehni subsp. sanguinolentum ",{"$f":"IF(ROUND(F147,0)=1,F50/-BC147,\"--\")","v":"--"},"--",null,50,1,null,null,null,null,null,null,null,null,null,null,null,null,null,null,null,null,null,null,null,null,null,null,null,null,null,null,null,null,null,null,null,null,null,null,null,null,null,null,null,null,null,null,null,null,null,null,1,null,null,null,null,null,null,null,null,null,null,null,null,null,null,null,null,null,null,null,null,null,null,null,null,null,null,null,null,null,null,null,null,null,null,null,null,null,null,null,null,null,null,null,null,null,null,null,null,null,null,null,null,null,null,null,null,null,null,null,null,null,null,null,null,null,null,null,null,null,null,null,null,null,null,null,null,null,null,null,null,null,null,null,null,null,null,null,null,null,null,null,null,null,null,null,null,{"$f":"$C$204","v":-620}]
[47,"Breu","Protium sp.",{"$f":"IF(ROUND(F148,0)=1,F51/-BD148,\"--\")","v":"--"},"--",null,50,1,null,null,null,null,null,null,null,null,null,null,null,null,null,null,null,null,null,null,null,null,null,null,null,null,null,null,null,null,null,null,null,null,null,null,null,null,null,null,null,null,null,null,null,null,null,null,null,1,null,null,null,null,null,null,null,null,null,null,null,null,null,null,null,null,null,null,null,null,null,null,null,null,null,null,null,null,null,null,null,null,null,null,null,null,null,null,null,null,null,null,null,null,null,null,null,null,null,null,null,null,null,null,null,null,null,null,null,null,null,null,null,null,null,null,null,null,null,null,null,null,null,null,null,null,null,null,null,null,null,null,null,null,null,null,null,null,null,null,null,null,null,null,null,null,{"$f":"$C$204","v":-620}]
[48,"Breu-branco","Protium pallidium Cuatrec.",{"$f":"IF(ROUND(F149,0)=1,F52/-BE149,\"--\")","v":"--"},"--",null,50,1,null,null,null,null,null,null,null,null,null,null,null,null,null,null,null,null,null,null,null,null,null,null,null,null,null,null,null,null,null,null,null,null,null,null,null,null,null,null,null,null,null,null,null,null,null,null,null,null,1,null,null,null,null,null,null,null,null,null,null,null,null,null,null,null,null,null,null,null,null,null,null,null,null,null,null,null,null,null,null,null,null,null,null,null,null,null,null,null,null,null,null,null,null,null,null,null,null,null,null,null,null,null,null,null,null,null,null,null,null,null,null,null,null,null,null,null,null,null,null,null,null,null,null,null,null,null,null,null,null,null,null,null,null,null,null,null,null,null,null,null,null,null,null,null,null,{"$f":"$C$204","v":-620}]
[49,"Breu-vermelho","Protium decandrum (Aubl.)  March",{"$f":"IF(ROUND(F150,0)=1,F53/-BF150,\"--\")","v":"--"},"--",null,50,1,null,null,null,null,null,null,null,null,null,null,null,null,null,null,null,null,null,null,null,null,null,null,null,null,null,null,null,null,null,null,null,null,null,null,null,null,null,null,null,null,null,null,null,null,null,null,null,null,null,1,null,null,null,null,null,null,null,null,null,null,null,null,null,null,null,null,null,null,null,null,null,null,null,null,null,null,null,null,null,null,null,null,null,null,null,null,null,null,null,null,null,null,null,null,null,null,null,null,null,null,null,null,null,null,null,null,null,null,null,null,null,null,null,null,null,null,null,null,null,null,null,null,null,null,null,null,null,null,null,null,null,null,null,null,null,null,null,null,null,null,null,null,null,null,null,null,{"$f":"$C$204","v":-620}]
[50,"Castanharana","Lecythis sp.",{"$f":"IF(ROUND(F151,0)=1,F54/-BG151,\"--\")","v":"--"},"--",null,50,1,null,null,null,null,null,null,null,null,null,null,null,null,null,null,null,null,null,null,null,null,null,null,null,null,null,null,null,null,null,null,null,null,null,null,null,null,null,null,null,null,null,null,null,null,null,null,null,null,null,null,1,null,null,null,null,null,null,null,null,null,null,null,null,null,null,null,null,null,null,null,null,null,null,null,null,null,null,null,null,null,null,null,null,null,null,null,null,null,null,null,null,null,null,null,null,null,null,null,null,null,null,null,null,null,null,null,null,null,null,null,null,null,null,null,null,null,null,null,null,null,null,null,null,null,null,null,null,null,null,null,null,null,null,null,null,null,null,null,null,null,null,null,null,null,null,null,null,{"$f":"$C$204","v":-620}]
[51,"Castanharana","Lecythis sp.",{"$f":"IF(ROUND(F152,0)=1,F55/-BH152,\"--\")","v":"--"},"--",null,50,1,null,null,null,null,null,null,null,null,null,null,null,null,null,null,null,null,null,null,null,null,null,null,null,null,null,null,null,null,null,null,null,null,null,null,null,null,null,null,null,null,null,null,null,null,null,null,null,null,null,null,null,1,null,null,null,null,null,null,null,null,null,null,null,null,null,null,null,null,null,null,null,null,null,null,null,null,null,null,null,null,null,null,null,null,null,null,null,null,null,null,null,null,null,null,null,null,null,null,null,null,null,null,null,null,null,null,null,null,null,null,null,null,null,null,null,null,null,null,null,null,null,null,null,null,null,null,null,null,null,null,null,null,null,null,null,null,null,null,null,null,null,null,null,null,null,null,null,null,{"$f":"$C$204","v":-620}]
[52,"Castanha-sapucaia","Lecythis pisonis Cambess.",{"$f":"IF(ROUND(F153,0)=1,F56/-BI153,\"--\")","v":"--"},"--",null,50,1,null,null,null,null,null,null,null,null,null,null,null,null,null,null,null,null,null,null,null,null,null,null,null,null,null,null,null,null,null,null,null,null,null,null,null,null,null,null,null,null,null,null,null,null,null,null,null,null,null,null,null,null,1,null,null,null,null,null,null,null,null,null,null,null,null,null,null,null,null,null,null,null,null,null,null,null,null,null,null,null,null,null,null,null,null,null,null,null,null,null,null,null,null,null,null,null,null,null,null,null,null,null,null,null,null,null,null,null,null,null,null,null,null,null,null,null,null,null,null,null,null,null,null,null,null,null,null,null,null,null,null,null,null,null,null,null,null,null,null,null,null,null,null,null,null,null,null,null,null,{"$f":"$C$204","v":-620}]
[53,"Coração-de-negro","Swartzia corrugata Benth.",{"$f":"IF(ROUND(F154,0)=1,F57/-BJ154,\"--\")","v":"--"},"--",null,50,1,null,null,null,null,null,null,null,null,null,null,null,null,null,null,null,null,null,null,null,null,null,null,null,null,null,null,null,null,null,null,null,null,null,null,null,null,null,null,null,null,null,null,null,null,null,null,null,null,null,null,null,null,null,1,null,null,null,null,null,null,null,null,null,null,null,null,null,null,null,null,null,null,null,null,null,null,null,null,null,null,null,null,null,null,null,null,null,null,null,null,null,null,null,null,null,null,null,null,null,null,null,null,null,null,null,null,null,null,null,null,null,null,null,null,null,null,null,null,null,null,null,null,null,null,null,null,null,null,null,null,null,null,null,null,null,null,null,null,null,null,null,null,null,null,null,null,null,null,null,null,{"$f":"$C$204","v":-620}]
[54,"Cubarana","Iryanthera paraensis Huber",{"$f":"IF(ROUND(F155,0)=1,F58/-BK155,\"--\")","v":"--"},"--",null,50,1,null,null,null,null,null,null,null,null,null,null,null,null,null,null,null,null,null,null,null,null,null,null,null,null,null,null,null,null,null,null,null,null,null,null,null,null,null,null,null,null,null,null,null,null,null,null,null,null,null,null,null,null,null,null,1,null,null,null,null,null,null,null,null,null,null,null,null,null,null,null,null,null,null,null,null,null,null,null,null,null,null,null,null,null,null,null,null,null,null,null,null,null,null,null,null,null,null,null,null,null,null,null,null,null,null,null,null,null,null,null,null,null,null,null,null,null,null,null,null,null,null,null,null,null,null,null,null,null,null,null,null,null,null,null,null,null,null,null,null,null,null,null,null,null,null,null,null,null,null,null,null,{"$f":"$C$204","v":-620}]
[55,"Guajará","Sarcaulus brasiliensis (A.DC.) Eyma",{"$f":"IF(ROUND(F156,0)=1,F59/-BL156,\"--\")","v":"--"},"--",null,50,1,null,null,null,null,null,null,null,null,null,null,null,null,null,null,null,null,null,null,null,null,null,null,null,null,null,null,null,null,null,null,null,null,null,null,null,null,null,null,null,null,null,null,null,null,null,null,null,null,null,null,null,null,null,null,null,1,null,null,null,null,null,null,null,null,null,null,null,null,null,null,null,null,null,null,null,null,null,null,null,null,null,null,null,null,null,null,null,null,null,null,null,null,null,null,null,null,null,null,null,null,null,null,null,null,null,null,null,null,null,null,null,null,null,null,null,null,null,null,null,null,null,null,null,null,null,null,null,null,null,null,null,null,null,null,null,null,null,null,null,null,null,null,null,null,null,null,null,null,null,null,null,null,{"$f":"$C$204","v":-620}]
[56,"Guariúba","Clarisia racemosa Ruiz & Pav",{"$f":"IF(ROUND(F157,0)=1,F60/-BM157,\"--\")","v":"--"},"--",null,50,1,null,null,null,null,null,null,null,null,null,null,null,null,null,null,null,null,null,null,null,null,null,null,null,null,null,null,null,null,null,null,null,null,null,null,null,null,null,null,null,null,null,null,null,null,null,null,null,null,null,null,null,null,null,null,null,null,1,null,null,null,null,null,null,null,null,null,null,null,null,null,null,null,null,null,null,null,null,null,null,null,null,null,null,null,null,null,null,null,null,null,null,null,null,null,null,null,null,null,null,null,null,null,null,null,null,null,null,null,null,null,null,null,null,null,null,null,null,null,null,null,null,null,null,null,null,null,null,null,null,null,null,null,null,null,null,null,null,null,null,null,null,null,null,null,null,null,null,null,null,null,null,null,null,{"$f":"$C$204","v":-620}]
[57,"Ingarana","Zygia sp.",{"$f":"IF(ROUND(F158,0)=1,F61/-BN158,\"--\")","v":"--"},"--",null,50,1,null,null,null,null,null,null,null,null,null,null,null,null,null,null,null,null,null,null,null,null,null,null,null,null,null,null,null,null,null,null,null,null,null,null,null,null,null,null,null,null,null,null,null,null,null,null,null,null,null,null,null,null,null,null,null,null,null,1,null,null,null,null,null,null,null,null,null,null,null,null,null,null,null,null,null,null,null,null,null,null,null,null,null,null,null,null,null,null,null,null,null,null,null,null,null,null,null,null,null,null,null,null,null,null,null,null,null,null,null,null,null,null,null,null,null,null,null,null,null,null,null,null,null,null,null,null,null,null,null,null,null,null,null,null,null,null,null,null,null,null,null,null,null,null,null,null,null,null,null,null,null,null,null,null,{"$f":"$C$204","v":-620}]
[59,"Jarana","Lecythis prancei S.A.Mori",{"$f":"IF(ROUND(F159,0)=1,F62/-BO159,\"--\")","v":"--"},"--",null,50,1,null,null,null,null,null,null,null,null,null,null,null,null,null,null,null,null,null,null,null,null,null,null,null,null,null,null,null,null,null,null,null,null,null,null,null,null,null,null,null,null,null,null,null,null,null,null,null,null,null,null,null,null,null,null,null,null,null,null,1,null,null,null,null,null,null,null,null,null,null,null,null,null,null,null,null,null,null,null,null,null,null,null,null,null,null,null,null,null,null,null,null,null,null,null,null,null,null,null,null,null,null,null,null,null,null,null,null,null,null,null,null,null,null,null,null,null,null,null,null,null,null,null,null,null,null,null,null,null,null,null,null,null,null,null,null,null,null,null,null,null,null,null,null,null,null,null,null,null,null,null,null,null,null,null,null,{"$f":"$C$204","v":-620}]
[60,"Macacaúba","Platymiscium paraense Huber",{"$f":"IF(ROUND(F160,0)=1,F63/-BP160,\"--\")","v":"--"},"--",null,50,1,null,null,null,null,null,null,null,null,null,null,null,null,null,null,null,null,null,null,null,null,null,null,null,null,null,null,null,null,null,null,null,null,null,null,null,null,null,null,null,null,null,null,null,null,null,null,null,null,null,null,null,null,null,null,null,null,null,null,null,1,null,null,null,null,null,null,null,null,null,null,null,null,null,null,null,null,null,null,null,null,null,null,null,null,null,null,null,null,null,null,null,null,null,null,null,null,null,null,null,null,null,null,null,null,null,null,null,null,null,null,null,null,null,null,null,null,null,null,null,null,null,null,null,null,null,null,null,null,null,null,null,null,null,null,null,null,null,null,null,null,null,null,null,null,null,null,null,null,null,null,null,null,null,null,null,null,{"$f":"$C$204","v":-620}]
[61,"Mata-mata-branco","Eschweilera coriacea (DC.) S.A.Mori",{"$f":"IF(ROUND(F161,0)=1,F64/-BQ161,\"--\")","v":"--"},"--",null,50,1,null,null,null,null,null,null,null,null,null,null,null,null,null,null,null,null,null,null,null,null,null,null,null,null,null,null,null,null,null,null,null,null,null,null,null,null,null,null,null,null,null,null,null,null,null,null,null,null,null,null,null,null,null,null,null,null,null,null,null,null,1,null,null,null,null,null,null,null,null,null,null,null,null,null,null,null,null,null,null,null,null,null,null,null,null,null,null,null,null,null,null,null,null,null,null,null,null,null,null,null,null,null,null,null,null,null,null,null,null,null,null,null,null,null,null,null,null,null,null,null,null,null,null,null,null,null,null,null,null,null,null,null,null,null,null,null,null,null,null,null,null,null,null,null,null,null,null,null,null,null,null,null,null,null,null,null,null,{"$f":"$C$204","v":-620}]
[62,"Matamata-preto","Eschweilera ovata  (Cambess.) Miers",{"$f":"IF(ROUND(F162,0)=1,F65/-BR162,\"--\")","v":"--"},"--",null,50,1,null,null,null,null,null,null,null,null,null,null,null,null,null,null,null,null,null,null,null,null,null,null,null,null,null,null,null,null,null,null,null,null,null,null,null,null,null,null,null,null,null,null,null,null,null,null,null,null,null,null,null,null,null,null,null,null,null,null,null,null,null,1,null,null,null,null,null,null,null,null,null,null,null,null,null,null,null,null,null,null,null,null,null,null,null,null,null,null,null,null,null,null,null,null,null,null,null,null,null,null,null,null,null,null,null,null,null,null,null,null,null,null,null,null,null,null,null,null,null,null,null,null,null,null,null,null,null,null,null,null,null,null,null,null,null,null,null,null,null,null,null,null,null,null,null,null,null,null,null,null,null,null,null,null,null,null,null,null,{"$f":"$C$204","v":-620}]
[63,"Matamata-vermelho","Eschweilera sp.",{"$f":"IF(ROUND(F163,0)=1,F66/-BS163,\"--\")","v":"--"},"--",null,50,1,null,null,null,null,null,null,null,null,null,null,null,null,null,null,null,null,null,null,null,null,null,null,null,null,null,null,null,null,null,null,null,null,null,null,null,null,null,null,null,null,null,null,null,null,null,null,null,null,null,null,null,null,null,null,null,null,null,null,null,null,null,null,1,null,null,null,null,null,null,null,null,null,null,null,null,null,null,null,null,null,null,null,null,null,null,null,null,null,null,null,null,null,null,null,null,null,null,null,null,null,null,null,null,null,null,null,null,null,null,null,null,null,null,null,null,null,null,null,null,null,null,null,null,null,null,null,null,null,null,null,null,null,null,null,null,null,null,null,null,null,null,null,null,null,null,null,null,null,null,null,null,null,null,null,null,null,null,null,null,{"$f":"$C$204","v":-620}]
[64,"Muirapiranga","Brosimum rubescens Taub.",{"$f":"IF(ROUND(F164,0)=1,F67/-BT164,\"--\")","v":"--"},"--",null,50,1,null,null,null,null,null,null,null,null,null,null,null,null,null,null,null,null,null,null,null,null,null,null,null,null,null,null,null,null,null,null,null,null,null,null,null,null,null,null,null,null,null,null,null,null,null,null,null,null,null,null,null,null,null,null,null,null,null,null,null,null,null,null,null,1,null,null,null,null,null,null,null,null,null,null,null,null,null,null,null,null,null,null,null,null,null,null,null,null,null,null,null,null,null,null,null,null,null,null,null,null,null,null,null,null,null,null,null,null,null,null,null,null,null,null,null,null,null,null,null,null,null,null,null,null,null,null,null,null,null,null,null,null,null,null,null,null,null,null,null,null,null,null,null,null,null,null,null,null,null,null,null,null,null,null,null,null,null,null,null,null,{"$f":"$C$204","v":-620}]
[65,"Paracutaco","Swartzia schomburgkii Benth.",{"$f":"IF(ROUND(F165,0)=1,F68/-BU165,\"--\")","v":"--"},"--",null,50,1,null,null,null,null,null,null,null,null,null,null,null,null,null,null,null,null,null,null,null,null,null,null,null,null,null,null,null,null,null,null,null,null,null,null,null,null,null,null,null,null,null,null,null,null,null,null,null,null,null,null,null,null,null,null,null,null,null,null,null,null,null,null,null,null,1,null,null,null,null,null,null,null,null,null,null,null,null,null,null,null,null,null,null,null,null,null,null,null,null,null,null,null,null,null,null,null,null,null,null,null,null,null,null,null,null,null,null,null,null,null,null,null,null,null,null,null,null,null,null,null,null,null,null,null,null,null,null,null,null,null,null,null,null,null,null,null,null,null,null,null,null,null,null,null,null,null,null,null,null,null,null,null,null,null,null,null,null,null,null,null,null,{"$f":"$C$204","v":-620}]
[66,"Seringa","Ecclinusa sp.",{"$f":"IF(ROUND(F166,0)=1,F69/-BV166,\"--\")","v":"--"},"--",null,50,1,null,null,null,null,null,null,null,null,null,null,null,null,null,null,null,null,null,null,null,null,null,null,null,null,null,null,null,null,null,null,null,null,null,null,null,null,null,null,null,null,null,null,null,null,null,null,null,null,null,null,null,null,null,null,null,null,null,null,null,null,null,null,null,null,null,1,null,null,null,null,null,null,null,null,null,null,null,null,null,null,null,null,null,null,null,null,null,null,null,null,null,null,null,null,null,null,null,null,null,null,null,null,null,null,null,null,null,null,null,null,null,null,null,null,null,null,null,null,null,null,null,null,null,null,null,null,null,null,null,null,null,null,null,null,null,null,null,null,null,null,null,null,null,null,null,null,null,null,null,null,null,null,null,null,null,null,null,null,null,null,null,null,{"$f":"$C$204","v":-620}]
[67,"Sucupira-vermelha","Andira unifoliolata Ducke",{"$f":"IF(ROUND(F167,0)=1,F70/-BW167,\"--\")","v":"--"},{"$f":"IF(ROUND(F167,0)=1,F70/$F$200,\"--\")","v":"--"},null,50,1,null,null,null,null,null,null,null,null,null,null,null,null,null,null,null,null,null,null,null,null,null,null,null,null,null,null,null,null,null,null,null,null,null,null,null,null,null,null,null,null,null,null,null,null,null,null,null,null,null,null,null,null,null,null,null,null,null,null,null,null,null,null,null,null,null,null,1,null,null,null,null,null,null,null,null,null,null,null,null,null,null,null,null,null,null,null,null,null,null,null,null,null,null,null,null,null,null,null,null,null,null,null,null,null,null,null,null,null,null,null,null,null,null,null,null,null,null,null,null,null,null,null,null,null,null,null,null,null,null,null,null,null,null,null,null,null,null,null,null,null,null,null,null,null,null,null,null,null,null,null,null,null,null,null,null,null,null,null,null,null,null,null,null,{"$f":"$C$204","v":-620}]
[68,"Tanibuca","Buchenavia capitata Eichl",{"$f":"IF(ROUND(F168,0)=1,F71/-BX168,\"--\")","v":"--"},"--",null,50,1,null,null,null,null,null,null,null,null,null,null,null,null,null,null,null,null,null,null,null,null,null,null,null,null,null,null,null,null,null,null,null,null,null,null,null,null,null,null,null,null,null,null,null,null,null,null,null,null,null,null,null,null,null,null,null,null,null,null,null,null,null,null,null,null,null,null,null,1,null,null,null,null,null,null,null,null,null,null,null,null,null,null,null,null,null,null,null,null,null,null,null,null,null,null,null,null,null,null,null,null,null,null,null,null,null,null,null,null,null,null,null,null,null,null,null,null,null,null,null,null,null,null,null,null,null,null,null,null,null,null,null,null,null,null,null,null,null,null,null,null,null,null,null,null,null,null,null,null,null,null,null,null,null,null,null,null,null,null,null,null,null,null,null,null,{"$f":"$C$204","v":-620}]
[69,"Uchi","Endopleura uchi (Huber) Cuatrec.",{"$f":"IF(ROUND(F169,0)=1,F72/-BY169,\"--\")","v":"--"},"--",null,50,1,null,null,null,null,null,null,null,null,null,null,null,null,null,null,null,null,null,null,null,null,null,null,null,null,null,null,null,null,null,null,null,null,null,null,null,null,null,null,null,null,null,null,null,null,null,null,null,null,null,null,null,null,null,null,null,null,null,null,null,null,null,null,null,null,null,null,null,null,1,null,null,null,null,null,null,null,null,null,null,null,null,null,null,null,null,null,null,null,null,null,null,null,null,null,null,null,null,null,null,null,null,null,null,null,null,null,null,null,null,null,null,null,null,null,null,null,null,null,null,null,null,null,null,null,null,null,null,null,null,null,null,null,null,null,null,null,null,null,null,null,null,null,null,null,null,null,null,null,null,null,null,null,null,null,null,null,null,null,null,null,null,null,null,null,null,{"$f":"$C$204","v":-620}]
[70,"Uchi-coroa","Endopleura sp.",{"$f":"IF(ROUND(F170,0)=1,F73/-BZ170,\"--\")","v":"--"},"--",null,50,1,null,null,null,null,null,null,null,null,null,null,null,null,null,null,null,null,null,null,null,null,null,null,null,null,null,null,null,null,null,null,null,null,null,null,null,null,null,null,null,null,null,null,null,null,null,null,null,null,null,null,null,null,null,null,null,null,null,null,null,null,null,null,null,null,null,null,null,null,null,1,null,null,null,null,null,null,null,null,null,null,null,null,null,null,null,null,null,null,null,null,null,null,null,null,null,null,null,null,null,null,null,null,null,null,null,null,null,null,null,null,null,null,null,null,null,null,null,null,null,null,null,null,null,null,null,null,null,null,null,null,null,null,null,null,null,null,null,null,null,null,null,null,null,null,null,null,null,null,null,null,null,null,null,null,null,null,null,null,null,null,null,null,null,null,null,null,{"$f":"$C$204","v":-620}]
[71,"Uchirana","Vantanea guianensis Aubl.",{"$f":"IF(ROUND(F171,0)=1,F74/-CA171,\"--\")","v":"--"},"--",null,50,1,null,null,null,null,null,null,null,null,null,null,null,null,null,null,null,null,null,null,null,null,null,null,null,null,null,null,null,null,null,null,null,null,null,null,null,null,null,null,null,null,null,null,null,null,null,null,null,null,null,null,null,null,null,null,null,null,null,null,null,null,null,null,null,null,null,null,null,null,null,null,1,null,null,null,null,null,null,null,null,null,null,null,null,null,null,null,null,null,null,null,null,null,null,null,null,null,null,null,null,null,null,null,null,null,null,null,null,null,null,null,null,null,null,null,null,null,null,null,null,null,null,null,null,null,null,null,null,null,null,null,null,null,null,null,null,null,null,null,null,null,null,null,null,null,null,null,null,null,null,null,null,null,null,null,null,null,null,null,null,null,null,null,null,null,null,null,null,{"$f":"$C$204","v":-620}]
[72,"Urucurana","Swartzia recurva Poepp.",{"$f":"IF(ROUND(F172,0)=1,F75/-CB172,\"--\")","v":"--"},"--",null,50,1,null,null,null,null,null,null,null,null,null,null,null,null,null,null,null,null,null,null,null,null,null,null,null,null,null,null,null,null,null,null,null,null,null,null,null,null,null,null,null,null,null,null,null,null,null,null,null,null,null,null,null,null,null,null,null,null,null,null,null,null,null,null,null,null,null,null,null,null,null,null,null,1,null,null,null,null,null,null,null,null,null,null,null,null,null,null,null,null,null,null,null,null,null,null,null,null,null,null,null,null,null,null,null,null,null,null,null,null,null,null,null,null,null,null,null,null,null,null,null,null,null,null,null,null,null,null,null,null,null,null,null,null,null,null,null,null,null,null,null,null,null,null,null,null,null,null,null,null,null,null,null,null,null,null,null,null,null,null,null,null,null,null,null,null,null,null,null,null,{"$f":"$C$204","v":-620}]
[73,"Abacatearana ","Persea sp.",{"$f":"IF(ROUND(F173,0)=1,F76/-CC173,\"--\")","v":"--"},"--",null,25,1,null,null,null,null,null,null,null,null,null,null,null,null,null,null,null,null,null,null,null,null,null,null,null,null,null,null,null,null,null,null,null,null,null,null,null,null,null,null,null,null,null,null,null,null,null,null,null,null,null,null,null,null,null,null,null,null,null,null,null,null,null,null,null,null,null,null,null,null,null,null,null,null,1,null,null,null,null,null,null,null,null,null,null,null,null,null,null,null,null,null,null,null,null,null,null,null,null,null,null,null,null,null,null,null,null,null,null,null,null,null,null,null,null,null,null,null,null,null,null,null,null,null,null,null,null,null,null,null,null,null,null,null,null,null,null,null,null,null,null,null,null,null,null,null,null,null,null,null,null,null,null,null,null,null,null,null,null,null,null,null,null,null,null,null,null,null,null,null,null,{"$f":"$C$204","v":-620}]
[74,"Abiu","Pouteria sp. 2",{"$f":"IF(ROUND(F174,0)=1,F77/-CD174,\"--\")","v":"--"},"--",null,25,1,null,null,null,null,null,null,null,null,null,null,null,null,null,null,null,null,null,null,null,null,null,null,null,null,null,null,null,null,null,null,null,null,null,null,null,null,null,null,null,null,null,null,null,null,null,null,null,null,null,null,null,null,null,null,null,null,null,null,null,null,null,null,null,null,null,null,null,null,null,null,null,null,null,1,null,null,null,null,null,null,null,null,null,null,null,null,null,null,null,null,null,null,null,null,null,null,null,null,null,null,null,null,null,null,null,null,null,null,null,null,null,null,null,null,null,null,null,null,null,null,null,null,null,null,null,null,null,null,null,null,null,null,null,null,null,null,null,null,null,null,null,null,null,null,null,null,null,null,null,null,null,null,null,null,null,null,null,null,null,null,null,null,null,null,null,null,null,null,null,null,{"$f":"$C$204","v":-620}]
[75,"Abiu-branco","Pouteria guianensis Aubl.",{"$f":"IF(ROUND(F175,0)=1,F78/-CE175,\"--\")","v":"--"},"--",null,25,1,null,null,null,null,null,null,null,null,null,null,null,null,null,null,null,null,null,null,null,null,null,null,null,null,null,null,null,null,null,null,null,null,null,null,null,null,null,null,null,null,null,null,null,null,null,null,null,null,null,null,null,null,null,null,null,null,null,null,null,null,null,null,null,null,null,null,null,null,null,null,null,null,null,null,1,null,null,null,null,null,null,null,null,null,null,null,null,null,null,null,null,null,null,null,null,null,null,null,null,null,null,null,null,null,null,null,null,null,null,null,null,null,null,null,null,null,null,null,null,null,null,null,null,null,null,null,null,null,null,null,null,null,null,null,null,null,null,null,null,null,null,null,null,null,null,null,null,null,null,null,null,null,null,null,null,null,null,null,null,null,null,null,null,null,null,null,null,null,null,null,null,{"$f":"$C$204","v":-620}]
[76,"Abiurana-Vermelha","Pouteria plathyphylla (A.C.Sm.) Baehnni",{"$f":"IF(ROUND(F176,0)=1,F79/-CF176,\"--\")","v":"--"},"--",null,25,1,null,null,null,null,null,null,null,null,null,null,null,null,null,null,null,null,null,null,null,null,null,null,null,null,null,null,null,null,null,null,null,null,null,null,null,null,null,null,null,null,null,null,null,null,null,null,null,null,null,null,null,null,null,null,null,null,null,null,null,null,null,null,null,null,null,null,null,null,null,null,null,null,null,null,null,1,null,null,null,null,null,null,null,null,null,null,null,null,null,null,null,null,null,null,null,null,null,null,null,null,null,null,null,null,null,null,null,null,null,null,null,null,null,null,null,null,null,null,null,null,null,null,null,null,null,null,null,null,null,null,null,null,null,null,null,null,null,null,null,null,null,null,null,null,null,null,null,null,null,null,null,null,null,null,null,null,null,null,null,null,null,null,null,null,null,null,null,null,null,null,null,null,{"$f":"$C$204","v":-620}]
[77,"Abiu-vermelho","Pouteria sagotiana (Baill) Eyma ",{"$f":"IF(ROUND(F177,0)=1,F80/-CG177,\"--\")","v":"--"},"--",null,25,1,null,null,null,null,null,null,null,null,null,null,null,null,null,null,null,null,null,null,null,null,null,null,null,null,null,null,null,null,null,null,null,null,null,null,null,null,null,null,null,null,null,null,null,null,null,null,null,null,null,null,null,null,null,null,null,null,null,null,null,null,null,null,null,null,null,null,null,null,null,null,null,null,null,null,null,null,1,null,null,null,null,null,null,null,null,null,null,null,null,null,null,null,null,null,null,null,null,null,null,null,null,null,null,null,null,null,null,null,null,null,null,null,null,null,null,null,null,null,null,null,null,null,null,null,null,null,null,null,null,null,null,null,null,null,null,null,null,null,null,null,null,null,null,null,null,null,null,null,null,null,null,null,null,null,null,null,null,null,null,null,null,null,null,null,null,null,null,null,null,null,null,null,null,{"$f":"$C$204","v":-620}]
[78,"Amarelinho","Pogonophora schomburgkiana Miers ex Benth.",{"$f":"IF(ROUND(F178,0)=1,F81/-CH178,\"--\")","v":"--"},"--",null,25,1,null,null,null,null,null,null,null,null,null,null,null,null,null,null,null,null,null,null,null,null,null,null,null,null,null,null,null,null,null,null,null,null,null,null,null,null,null,null,null,null,null,null,null,null,null,null,null,null,null,null,null,null,null,null,null,null,null,null,null,null,null,null,null,null,null,null,null,null,null,null,null,null,null,null,null,null,null,1,null,null,null,null,null,null,null,null,null,null,null,null,null,null,null,null,null,null,null,null,null,null,null,null,null,null,null,null,null,null,null,null,null,null,null,null,null,null,null,null,null,null,null,null,null,null,null,null,null,null,null,null,null,null,null,null,null,null,null,null,null,null,null,null,null,null,null,null,null,null,null,null,null,null,null,null,null,null,null,null,null,null,null,null,null,null,null,null,null,null,null,null,null,null,null,null,{"$f":"$C$204","v":-620}]
[79,"Angelim-fava","Parkia pendula (Willd.) Benth. ex Walp.",{"$f":"IF(ROUND(F179,0)=1,F82/-CI179,\"--\")","v":"--"},"--",null,25,1,null,null,null,null,null,null,null,null,null,null,null,null,null,null,null,null,null,null,null,null,null,null,null,null,null,null,null,null,null,null,null,null,null,null,null,null,null,null,null,null,null,null,null,null,null,null,null,null,null,null,null,null,null,null,null,null,null,null,null,null,null,null,null,null,null,null,null,null,null,null,null,null,null,null,null,null,null,null,1,null,null,null,null,null,null,null,null,null,null,null,null,null,null,null,null,null,null,null,null,null,null,null,null,null,null,null,null,null,null,null,null,null,null,null,null,null,null,null,null,null,null,null,null,null,null,null,null,null,null,null,null,null,null,null,null,null,null,null,null,null,null,null,null,null,null,null,null,null,null,null,null,null,null,null,null,null,null,null,null,null,null,null,null,null,null,null,null,null,null,null,null,null,null,null,null,{"$f":"$C$204","v":-620}]
[81,"Arura-branco","Osteophloeum platyspermum (A.DC.) Warb.",{"$f":"IF(ROUND(F180,0)=1,F83/-CJ180,\"--\")","v":"--"},"--",null,25,1,null,null,null,null,null,null,null,null,null,null,null,null,null,null,null,null,null,null,null,null,null,null,null,null,null,null,null,null,null,null,null,null,null,null,null,null,null,null,null,null,null,null,null,null,null,null,null,null,null,null,null,null,null,null,null,null,null,null,null,null,null,null,null,null,null,null,null,null,null,null,null,null,null,null,null,null,null,null,null,1,null,null,null,null,null,null,null,null,null,null,null,null,null,null,null,null,null,null,null,null,null,null,null,null,null,null,null,null,null,null,null,null,null,null,null,null,null,null,null,null,null,null,null,null,null,null,null,null,null,null,null,null,null,null,null,null,null,null,null,null,null,null,null,null,null,null,null,null,null,null,null,null,null,null,null,null,null,null,null,null,null,null,null,null,null,null,null,null,null,null,null,null,null,null,null,null,{"$f":"$C$204","v":-620}]
[82,"Balata-casca-grossa","Pouteria sp.3",{"$f":"IF(ROUND(F181,0)=1,F84/-CK181,\"--\")","v":"--"},"--",null,25,1,null,null,null,null,null,null,null,null,null,null,null,null,null,null,null,null,null,null,null,null,null,null,null,null,null,null,null,null,null,null,null,null,null,null,null,null,null,null,null,null,null,null,null,null,null,null,null,null,null,null,null,null,null,null,null,null,null,null,null,null,null,null,null,null,null,null,null,null,null,null,null,null,null,null,null,null,null,null,null,null,1,null,null,null,null,null,null,null,null,null,null,null,null,null,null,null,null,null,null,null,null,null,null,null,null,null,null,null,null,null,null,null,null,null,null,null,null,null,null,null,null,null,null,null,null,null,null,null,null,null,null,null,null,null,null,null,null,null,null,null,null,null,null,null,null,null,null,null,null,null,null,null,null,null,null,null,null,null,null,null,null,null,null,null,null,null,null,null,null,null,null,null,null,null,null,null,null,{"$f":"$C$204","v":-620}]
[83,"Balatinha","Pouteria sp.4",{"$f":"IF(ROUND(F182,0)=1,F85/-CL182,\"--\")","v":"--"},"--",null,25,1,null,null,null,null,null,null,null,null,null,null,null,null,null,null,null,null,null,null,null,null,null,null,null,null,null,null,null,null,null,null,null,null,null,null,null,null,null,null,null,null,null,null,null,null,null,null,null,null,null,null,null,null,null,null,null,null,null,null,null,null,null,null,null,null,null,null,null,null,null,null,null,null,null,null,null,null,null,null,null,null,null,1,null,null,null,null,null,null,null,null,null,null,null,null,null,null,null,null,null,null,null,null,null,null,null,null,null,null,null,null,null,null,null,null,null,null,null,null,null,null,null,null,null,null,null,null,null,null,null,null,null,null,null,null,null,null,null,null,null,null,null,null,null,null,null,null,null,null,null,null,null,null,null,null,null,null,null,null,null,null,null,null,null,null,null,null,null,null,null,null,null,null,null,null,null,null,null,null,{"$f":"$C$204","v":-620}]
[84,"Caju-açu","Anacardium giganteum Hanc. ex Engl.",{"$f":"IF(ROUND(F183,0)=1,F86/-CM183,\"--\")","v":"--"},"--",null,25,1,null,null,null,null,null,null,null,null,null,null,null,null,null,null,null,null,null,null,null,null,null,null,null,null,null,null,null,null,null,null,null,null,null,null,null,null,null,null,null,null,null,null,null,null,null,null,null,null,null,null,null,null,null,null,null,null,null,null,null,null,null,null,null,null,null,null,null,null,null,null,null,null,null,null,null,null,null,null,null,null,null,null,1,null,null,null,null,null,null,null,null,null,null,null,null,null,null,null,null,null,null,null,null,null,null,null,null,null,null,null,null,null,null,null,null,null,null,null,null,null,null,null,null,null,null,null,null,null,null,null,null,null,null,null,null,null,null,null,null,null,null,null,null,null,null,null,null,null,null,null,null,null,null,null,null,null,null,null,null,null,null,null,null,null,null,null,null,null,null,null,null,null,null,null,null,null,null,null,null,{"$f":"$C$204","v":-620}]
[86,"Caju-preto","Anacardium sp.",{"$f":"IF(ROUND(F184,0)=1,F87/-CN184,\"--\")","v":"--"},"--",null,25,1,null,null,null,null,null,null,null,null,null,null,null,null,null,null,null,null,null,null,null,null,null,null,null,null,null,null,null,null,null,null,null,null,null,null,null,null,null,null,null,null,null,null,null,null,null,null,null,null,null,null,null,null,null,null,null,null,null,null,null,null,null,null,null,null,null,null,null,null,null,null,null,null,null,null,null,null,null,null,null,null,null,null,null,1,null,null,null,null,null,null,null,null,null,null,null,null,null,null,null,null,null,null,null,null,null,null,null,null,null,null,null,null,null,null,null,null,null,null,null,null,null,null,null,null,null,null,null,null,null,null,null,null,null,null,null,null,null,null,null,null,null,null,null,null,null,null,null,null,null,null,null,null,null,null,null,null,null,null,null,null,null,null,null,null,null,null,null,null,null,null,null,null,null,null,null,null,null,null,null,null,{"$f":"$C$204","v":-620}]
[88,"Capitiú","Siparuna sarmentosa Peckins",{"$f":"IF(ROUND(F185,0)=1,F88/-CO185,\"--\")","v":"--"},"--",null,25,1,null,null,null,null,null,null,null,null,null,null,null,null,null,null,null,null,null,null,null,null,null,null,null,null,null,null,null,null,null,null,null,null,null,null,null,null,null,null,null,null,null,null,null,null,null,null,null,null,null,null,null,null,null,null,null,null,null,null,null,null,null,null,null,null,null,null,null,null,null,null,null,null,null,null,null,null,null,null,null,null,null,null,null,null,1,null,null,null,null,null,null,null,null,null,null,null,null,null,null,null,null,null,null,null,null,null,null,null,null,null,null,null,null,null,null,null,null,null,null,null,null,null,null,null,null,null,null,null,null,null,null,null,null,null,null,null,null,null,null,null,null,null,null,null,null,null,null,null,null,null,null,null,null,null,null,null,null,null,null,null,null,null,null,null,null,null,null,null,null,null,null,null,null,null,null,null,null,null,null,null,null,{"$f":"$C$204","v":-620}]
[89,"Caramuri","Pouteria sp.5",{"$f":"IF(ROUND(F186,0)=1,F89/-CP186,\"--\")","v":"--"},"--",null,25,1,null,null,null,null,null,null,null,null,null,null,null,null,null,null,null,null,null,null,null,null,null,null,null,null,null,null,null,null,null,null,null,null,null,null,null,null,null,null,null,null,null,null,null,null,null,null,null,null,null,null,null,null,null,null,null,null,null,null,null,null,null,null,null,null,null,null,null,null,null,null,null,null,null,null,null,null,null,null,null,null,null,null,null,null,null,1,null,null,null,null,null,null,null,null,null,null,null,null,null,null,null,null,null,null,null,null,null,null,null,null,null,null,null,null,null,null,null,null,null,null,null,null,null,null,null,null,null,null,null,null,null,null,null,null,null,null,null,null,null,null,null,null,null,null,null,null,null,null,null,null,null,null,null,null,null,null,null,null,null,null,null,null,null,null,null,null,null,null,null,null,null,null,null,null,null,null,null,null,null,null,null,null,{"$f":"$C$204","v":-620}]
[90,"Carapanaúba","Aspidosperma rigidium Rusby",{"$f":"IF(ROUND(F187,0)=1,F90/-CQ187,\"--\")","v":"--"},"--",null,25,1,null,null,null,null,null,null,null,null,null,null,null,null,null,null,null,null,null,null,null,null,null,null,null,null,null,null,null,null,null,null,null,null,null,null,null,null,null,null,null,null,null,null,null,null,null,null,null,null,null,null,null,null,null,null,null,null,null,null,null,null,null,null,null,null,null,null,null,null,null,null,null,null,null,null,null,null,null,null,null,null,null,null,null,null,null,null,1,null,null,null,null,null,null,null,null,null,null,null,null,null,null,null,null,null,null,null,null,null,null,null,null,null,null,null,null,null,null,null,null,null,null,null,null,null,null,null,null,null,null,null,null,null,null,null,null,null,null,null,null,null,null,null,null,null,null,null,null,null,null,null,null,null,null,null,null,null,null,null,null,null,null,null,null,null,null,null,null,null,null,null,null,null,null,null,null,null,null,null,null,null,null,null,null,{"$f":"$C$204","v":-620}]
[91,"Fava","Vatairea sp.2",{"$f":"IF(ROUND(F188,0)=1,F91/-CR188,\"--\")","v":"--"},"--",null,25,1,null,null,null,null,null,null,null,null,null,null,null,null,null,null,null,null,null,null,null,null,null,null,null,null,null,null,null,null,null,null,null,null,null,null,null,null,null,null,null,null,null,null,null,null,null,null,null,null,null,null,null,null,null,null,null,null,null,null,null,null,null,null,null,null,null,null,null,null,null,null,null,null,null,null,null,null,null,null,null,null,null,null,null,null,null,null,null,1,null,null,null,null,null,null,null,null,null,null,null,null,null,null,null,null,null,null,null,null,null,null,null,null,null,null,null,null,null,null,null,null,null,null,null,null,null,null,null,null,null,null,null,null,null,null,null,null,null,null,null,null,null,null,null,null,null,null,null,null,null,null,null,null,null,null,null,null,null,null,null,null,null,null,null,null,null,null,null,null,null,null,null,null,null,null,null,null,null,null,null,null,null,null,null,null,{"$f":"$C$204","v":-620}]
[92,"Fava-amargosa","Vatairea paraensis Ducke",{"$f":"IF(ROUND(F189,0)=1,F92/-CS189,\"--\")","v":"--"},"--",null,25,1,null,null,null,null,null,null,null,null,null,null,null,null,null,null,null,null,null,null,null,null,null,null,null,null,null,null,null,null,null,null,null,null,null,null,null,null,null,null,null,null,null,null,null,null,null,null,null,null,null,null,null,null,null,null,null,null,null,null,null,null,null,null,null,null,null,null,null,null,null,null,null,null,null,null,null,null,null,null,null,null,null,null,null,null,null,null,null,null,1,null,null,null,null,null,null,null,null,null,null,null,null,null,null,null,null,null,null,null,null,null,null,null,null,null,null,null,null,null,null,null,null,null,null,null,null,null,null,null,null,null,null,null,null,null,null,null,null,null,null,null,null,null,null,null,null,null,null,null,null,null,null,null,null,null,null,null,null,null,null,null,null,null,null,null,null,null,null,null,null,null,null,null,null,null,null,null,null,null,null,null,null,null,null,null,null,{"$f":"$C$204","v":-620}]
[93,"Fava-bengué","Parkia nitida Miq.",{"$f":"IF(ROUND(F190,0)=1,F93/-CT190,\"--\")","v":"--"},"--",null,25,1,null,null,null,null,null,null,null,null,null,null,null,null,null,null,null,null,null,null,null,null,null,null,null,null,null,null,null,null,null,null,null,null,null,null,null,null,null,null,null,null,null,null,null,null,null,null,null,null,null,null,null,null,null,null,null,null,null,null,null,null,null,null,null,null,null,null,null,null,null,null,null,null,null,null,null,null,null,null,null,null,null,null,null,null,null,null,null,null,null,1,null,null,null,null,null,null,null,null,null,null,null,null,null,null,null,null,null,null,null,null,null,null,null,null,null,null,null,null,null,null,null,null,null,null,null,null,null,null,null,null,null,null,null,null,null,null,null,null,null,null,null,null,null,null,null,null,null,null,null,null,null,null,null,null,null,null,null,null,null,null,null,null,null,null,null,null,null,null,null,null,null,null,null,null,null,null,null,null,null,null,null,null,null,null,null,null,{"$f":"$C$204","v":-620}]
[94,"Fava-bolacha","Enterolobium sp. ",{"$f":"IF(ROUND(F191,0)=1,F94/-CU191,\"--\")","v":"--"},"--",null,25,1,null,null,null,null,null,null,null,null,null,null,null,null,null,null,null,null,null,null,null,null,null,null,null,null,null,null,null,null,null,null,null,null,null,null,null,null,null,null,null,null,null,null,null,null,null,null,null,null,null,null,null,null,null,null,null,null,null,null,null,null,null,null,null,null,null,null,null,null,null,null,null,null,null,null,null,null,null,null,null,null,null,null,null,null,null,null,null,null,null,null,1,null,null,null,null,null,null,null,null,null,null,null,null,null,null,null,null,null,null,null,null,null,null,null,null,null,null,null,null,null,null,null,null,null,null,null,null,null,null,null,null,null,null,null,null,null,null,null,null,null,null,null,null,null,null,null,null,null,null,null,null,null,null,null,null,null,null,null,null,null,null,null,null,null,null,null,null,null,null,null,null,null,null,null,null,null,null,null,null,null,null,null,null,null,null,null,null,{"$f":"$C$204","v":-620}]
[96,"João-mole","Neea sp.",{"$f":"IF(ROUND(F192,0)=1,F95/-CV192,\"--\")","v":"--"},"--",null,25,1,null,null,null,null,null,null,null,null,null,null,null,null,null,null,null,null,null,null,null,null,null,null,null,null,null,null,null,null,null,null,null,null,null,null,null,null,null,null,null,null,null,null,null,null,null,null,null,null,null,null,null,null,null,null,null,null,null,null,null,null,null,null,null,null,null,null,null,null,null,null,null,null,null,null,null,null,null,null,null,null,null,null,null,null,null,null,null,null,null,null,null,1,null,null,null,null,null,null,null,null,null,null,null,null,null,null,null,null,null,null,null,null,null,null,null,null,null,null,null,null,null,null,null,null,null,null,null,null,null,null,null,null,null,null,null,null,null,null,null,null,null,null,null,null,null,null,null,null,null,null,null,null,null,null,null,null,null,null,null,null,null,null,null,null,null,null,null,null,null,null,null,null,null,null,null,null,null,null,null,null,null,null,null,null,null,null,null,null,{"$f":"$C$204","v":-620}]
[97,"Macucu","Licania heteromorpha Benth. var. heteromorpha",{"$f":"IF(ROUND(F193,0)=1,F96/-CW193,\"--\")","v":"--"},"--",null,25,1,null,null,null,null,null,null,null,null,null,null,null,null,null,null,null,null,null,null,null,null,null,null,null,null,null,null,null,null,null,null,null,null,null,null,null,null,null,null,null,null,null,null,null,null,null,null,null,null,null,null,null,null,null,null,null,null,null,null,null,null,null,null,null,null,null,null,null,null,null,null,null,null,null,null,null,null,null,null,null,null,null,null,null,null,null,null,null,null,null,null,null,null,1,null,null,null,null,null,null,null,null,null,null,null,null,null,null,null,null,null,null,null,null,null,null,null,null,null,null,null,null,null,null,null,null,null,null,null,null,null,null,null,null,null,null,null,null,null,null,null,null,null,null,null,null,null,null,null,null,null,null,null,null,null,null,null,null,null,null,null,null,null,null,null,null,null,null,null,null,null,null,null,null,null,null,null,null,null,null,null,null,null,null,null,null,null,null,null,null,{"$f":"$C$204","v":-620}]
[98,"Macucu-casca-grossa","Licania oblongifolia Standl.",{"$f":"IF(ROUND(F194,0)=1,F97/-CX194,\"--\")","v":"--"},"--",null,25,1,null,null,null,null,null,null,null,null,null,null,null,null,null,null,null,null,null,null,null,null,null,null,null,null,null,null,null,null,null,null,null,null,null,null,null,null,null,null,null,null,null,null,null,null,null,null,null,null,null,null,null,null,null,null,null,null,null,null,null,null,null,null,null,null,null,null,null,null,null,null,null,null,null,null,null,null,null,null,null,null,null,null,null,null,null,null,null,null,null,null,null,null,null,1,null,null,null,null,null,null,null,null,null,null,null,null,null,null,null,null,null,null,null,null,null,null,null,null,null,null,null,null,null,null,null,null,null,null,null,null,null,null,null,null,null,null,null,null,null,null,null,null,null,null,null,null,null,null,null,null,null,null,null,null,null,null,null,null,null,null,null,null,null,null,null,null,null,null,null,null,null,null,null,null,null,null,null,null,null,null,null,null,null,null,null,null,null,null,null,null,{"$f":"$C$204","v":-620}]
[100,"Parapará","Jacaranda copaia (Aubl) D.Don",{"$f":"IF(ROUND(F195,0)=1,F98/-CY195,\"--\")","v":"--"},"--",null,25,1,null,null,null,null,null,null,null,null,null,null,null,null,null,null,null,null,null,null,null,null,null,null,null,null,null,null,null,null,null,null,null,null,null,null,null,null,null,null,null,null,null,null,null,null,null,null,null,null,null,null,null,null,null,null,null,null,null,null,null,null,null,null,null,null,null,null,null,null,null,null,null,null,null,null,null,null,null,null,null,null,null,null,null,null,null,null,null,null,null,null,null,null,null,null,1,null,null,null,null,null,null,null,null,null,null,null,null,null,null,null,null,null,null,null,null,null,null,null,null,null,null,null,null,null,null,null,null,null,null,null,null,null,null,null,null,null,null,null,null,null,null,null,null,null,null,null,null,null,null,null,null,null,null,null,null,null,null,null,null,null,null,null,null,null,null,null,null,null,null,null,null,null,null,null,null,null,null,null,null,null,null,null,null,null,null,null,null,null,null,null,null,{"$f":"$C$204","v":-620}]
[101,"Paricá","Schizolobium amazonicum Huber ex Ducke",{"$f":"IF(ROUND(F196,0)=1,F99/-CZ196,\"--\")","v":"--"},"--",null,25,1,null,null,null,null,null,null,null,null,null,null,null,null,null,null,null,null,null,null,null,null,null,null,null,null,null,null,null,null,null,null,null,null,null,null,null,null,null,null,null,null,null,null,null,null,null,null,null,null,null,null,null,null,null,null,null,null,null,null,null,null,null,null,null,null,null,null,null,null,null,null,null,null,null,null,null,null,null,null,null,null,null,null,null,null,null,null,null,null,null,null,null,null,null,null,null,1,null,null,null,null,null,null,null,null,null,null,null,null,null,null,null,null,null,null,null,null,null,null,null,null,null,null,null,null,null,null,null,null,null,null,null,null,null,null,null,null,null,null,null,null,null,null,null,null,null,null,null,null,null,null,null,null,null,null,null,null,null,null,null,null,null,null,null,null,null,null,null,null,null,null,null,null,null,null,null,null,null,null,null,null,null,null,null,null,null,null,null,null,null,null,null,null,{"$f":"$C$204","v":-620}]
[102,"Pequiá-marfim","Aspidosperma spruceanum Benth. ex Engl.",{"$f":"IF(ROUND(F197,0)=1,F100/-DA197,\"--\")","v":"--"},"--",null,25,1,null,null,null,null,null,null,null,null,null,null,null,null,null,null,null,null,null,null,null,null,null,null,null,null,null,null,null,null,null,null,null,null,null,null,null,null,null,null,null,null,null,null,null,null,null,null,null,null,null,null,null,null,null,null,null,null,null,null,null,null,null,null,null,null,null,null,null,null,null,null,null,null,null,null,null,null,null,null,null,null,null,null,null,null,null,null,null,null,null,null,null,null,null,null,null,null,1,null,null,null,null,null,null,null,null,null,null,null,null,null,null,null,null,null,null,null,null,null,null,null,null,null,null,null,null,null,null,null,null,null,null,null,null,null,null,null,null,null,null,null,null,null,null,null,null,null,null,null,null,null,null,null,null,null,null,null,null,null,null,null,null,null,null,null,null,null,null,null,null,null,null,null,null,null,null,null,null,null,null,null,null,null,null,null,null,null,null,null,null,null,null,null,null,{"$f":"$C$204","v":-620}]
[103,"Tapuruzeiro","Sterculia excelsa Mart.",{"$f":"IF(ROUND(F198,0)=1,F101/-DB198,\"--\")","v":"--"},"--",null,25,1,null,null,null,null,null,null,null,null,null,null,null,null,null,null,null,null,null,null,null,null,null,null,null,null,null,null,null,null,null,null,null,null,null,null,null,null,null,null,null,null,null,null,null,null,null,null,null,null,null,null,null,null,null,null,null,null,null,null,null,null,null,null,null,null,null,null,null,null,null,null,null,null,null,null,null,null,null,null,null,null,null,null,null,null,null,null,null,null,null,null,null,null,null,null,null,null,null,1,null,null,null,null,null,null,null,null,null,null,null,null,null,null,null,null,null,null,null,null,null,null,null,null,null,null,null,null,null,null,null,null,null,null,null,null,null,null,null,null,null,null,null,null,null,null,null,null,null,null,null,null,null,null,null,null,null,null,null,null,null,null,null,null,null,null,null,null,null,null,null,null,null,null,null,null,null,null,null,null,null,null,null,null,null,null,null,null,null,null,null,null,null,null,null,null,{"$f":"$C$204","v":-620}]
[104,"Timborana","Newtonia suaveolens (Miq.) Brenan.",{"$f":"IF(ROUND(F199,0)=1,F102/-DC199,\"--\")","v":"--"},{"$f":"IF(ROUND(F199,0)=1,F102/$F$200,\"--\")","v":"--"},null,25,1,null,null,null,null,null,null,null,null,null,null,null,null,null,null,null,null,null,null,null,null,null,null,null,null,null,null,null,null,null,null,null,null,null,null,null,null,null,null,null,null,null,null,null,null,null,null,null,null,null,null,null,null,null,null,null,null,null,null,null,null,null,null,null,null,null,null,null,null,null,null,null,null,null,null,null,null,null,null,null,null,null,null,null,null,null,null,null,null,null,null,null,null,null,null,null,null,null,null,1,null,null,null,null,null,null,null,null,null,null,null,null,null,null,null,null,null,null,null,null,null,null,null,null,null,null,null,null,null,null,null,null,null,null,null,null,null,null,null,null,null,null,null,null,null,null,null,null,null,null,null,null,null,null,null,null,null,null,null,null,null,null,null,null,null,null,null,null,null,null,null,null,null,null,null,null,null,null,null,null,null,null,null,null,null,null,null,null,null,null,null,null,null,null,null,null,{"$f":"$C$204","v":-620}]
[1,"Bin_Andiroba_x1",null,null,{"$f":"IF(ROUND(F103,0)=1,\"Sim\",\"Não\")","v":"Não"},null,null,null,null,1,-6.3272916666666665E-2,null,null,null,null,null,null,null,null,null,null,null,null,null,null,null,null,null,null,null,null,null,null,null,null,null,null,null,null,null,null,null,null,null,null,null,null,null,null,null,null,null,null,null,null,null,null,null,null,null,null,null,null,null,null,null,null,null,null,null,null,null,null,null,null,null,null,null,null,null,null,null,null,null,null,null,null,null,null,null,null,null,null,null,null,null,null,null,null,null,null,null,null,null,null,null,null,{"$f":"$C$203","v":30}]
[2,"Bin_Angelim-Vermelho_x2",null,null,{"$f":"IF(ROUND(F104,0)=1,\"Sim\",\"Não\")","v":"Não"},null,null,null,null,1,null,-0.84011250000000004,null,null,null,null,null,null,null,null,null,null,null,null,null,null,null,null,null,null,null,null,null,null,null,null,null,null,null,null,null,null,null,null,null,null,null,null,null,null,null,null,null,null,null,null,null,null,null,null,null,null,null,null,null,null,null,null,null,null,null,null,null,null,null,null,null,null,null,null,null,null,null,null,null,null,null,null,null,null,null,null,null,null,null,null,null,null,null,null,null,null,null,null,null,null,null,null,{"$f":"$C$203","v":30}]
[3,"Bin_Cumaru_x3",null,null,"Não",null,null,null,null,1,null,null,-8.2086166666666696,null,null,null,null,null,null,null,null,null,null,null,null,null,null,null,null,null,null,null,null,null,null,null,null,null,null,null,null,null,null,null,null,null,null,null,null,null,null,null,null,null,null,null,null,null,null,null,null,null,null,null,null,null,null,null,null,null,null,null,null,null,null,null,null,null,null,null,null,null,null,null,null,null,null,null,null,null,null,null,null,null,null,null,null,null,null,null,null,null,null,null,null,null,null,null,null,{"$f":"$C$203","v":30}]
[4,"Bin_Jatobá_x4",null,null,"Não",null,null,null,null,1,null,null,null,-2.1057458333333332,null,null,null,null,null,null,null,null,null,null,null,null,null,null,null,null,null,null,null,null,null,null,null,null,null,null,null,null,null,null,null,null,null,null,null,null,null,null,null,null,null,null,null,null,null,null,null,null,null,null,null,null,null,null,null,null,null,null,null,null,null,null,null,null,null,null,null,null,null,null,null,null,null,null,null,null,null,null,null,null,null,null,null,null,null,null,null,null,null,null,null,null,null,null,null,null,{"$f":"$C$203","v":30}]
[5,"Bin_Maparajuba_x5",null,null,"Não",null,null,null,null,1,null,null,null,null,-3.1091479166666667,null,null,null,null,null,null,null,null,null,null,null,null,null,null,null,null,null,null,null,null,null,null,null,null,null,null,null,null,null,null,null,null,null,null,null,null,null,null,null,null,null,null,null,null,null,null,null,null,null,null,null,null,null,null,null,null,null,null,null,null,null,null,null,null,null,null,null,null,null,null,null,null,null,null,null,null,null,null,null,null,null,null,null,null,null,null,null,null,null,null,null,null,null,null,null,null,{"$f":"$C$203","v":30}]
[6,"Bin_Massaranduba_x6",null,null,"Não",null,null,null,null,1,null,null,null,null,null,-7.7868937499999999,null,null,null,null,null,null,null,null,null,null,null,null,null,null,null,null,null,null,null,null,null,null,null,null,null,null,null,null,null,null,null,null,null,null,null,null,null,null,null,null,null,null,null,null,null,null,null,null,null,null,null,null,null,null,null,null,null,null,null,null,null,null,null,null,null,null,null,null,null,null,null,null,null,null,null,null,null,null,null,null,null,null,null,null,null,null,null,null,null,null,null,null,null,null,null,null,{"$f":"$C$203","v":30}]
[7,"Bin_Muiracatiara_x7",null,null,"Não",null,null,null,null,1,null,null,null,null,null,null,-0.92804375000000006,null,null,null,null,null,null,null,null,null,null,null,null,null,null,null,null,null,null,null,null,null,null,null,null,null,null,null,null,null,null,null,null,null,null,null,null,null,null,null,null,null,null,null,null,null,null,null,null,null,null,null,null,null,null,null,null,null,null,null,null,null,null,null,null,null,null,null,null,null,null,null,null,null,null,null,null,null,null,null,null,null,null,null,null,null,null,null,null,null,null,null,null,null,null,null,null,{"$f":"$C$203","v":30}]
[8,"Bin_Angelim_x8",null,null,"Não",null,null,null,null,1,null,null,null,null,null,null,null,-0.11713541666666666,null,null,null,null,null,null,null,null,null,null,null,null,null,null,null,null,null,null,null,null,null,null,null,null,null,null,null,null,null,null,null,null,null,null,null,null,null,null,null,null,null,null,null,null,null,null,null,null,null,null,null,null,null,null,null,null,null,null,null,null,null,null,null,null,null,null,null,null,null,null,null,null,null,null,null,null,null,null,null,null,null,null,null,null,null,null,null,null,null,null,null,null,null,null,null,null,{"$f":"$C$203","v":30}]
[9,"Bin_Angelim-pedra_x9",null,null,"Não",null,null,null,null,1,null,null,null,null,null,null,null,null,-4.4163208333333337,null,null,null,null,null,null,null,null,null,null,null,null,null,null,null,null,null,null,null,null,null,null,null,null,null,null,null,null,null,null,null,null,null,null,null,null,null,null,null,null,null,null,null,null,null,null,null,null,null,null,null,null,null,null,null,null,null,null,null,null,null,null,null,null,null,null,null,null,null,null,null,null,null,null,null,null,null,null,null,null,null,null,null,null,null,null,null,null,null,null,null,null,null,null,null,null,{"$f":"$C$203","v":30}]
[10,"Bin_Cumaru-do-brejo_x10",null,null,"Não",null,null,null,null,1,null,null,null,null,null,null,null,null,null,-0.29345416666666668,null,null,null,null,null,null,null,null,null,null,null,null,null,null,null,null,null,null,null,null,null,null,null,null,null,null,null,null,null,null,null,null,null,null,null,null,null,null,null,null,null,null,null,null,null,null,null,null,null,null,null,null,null,null,null,null,null,null,null,null,null,null,null,null,null,null,null,null,null,null,null,null,null,null,null,null,null,null,null,null,null,null,null,null,null,null,null,null,null,null,null,null,null,null,null,null,{"$f":"$C$203","v":30}]
[11,"Bin_Cumarurana_x11",null,null,"Não",null,null,null,null,1,null,null,null,null,null,null,null,null,null,null,-0.38904166666666662,null,null,null,null,null,null,null,null,null,null,null,null,null,null,null,null,null,null,null,null,null,null,null,null,null,null,null,null,null,null,null,null,null,null,null,null,null,null,null,null,null,null,null,null,null,null,null,null,null,null,null,null,null,null,null,null,null,null,null,null,null,null,null,null,null,null,null,null,null,null,null,null,null,null,null,null,null,null,null,null,null,null,null,null,null,null,null,null,null,null,null,null,null,null,null,null,{"$f":"$C$203","v":30}]
[12,"Bin_Cupiúba_x12",null,null,"Não",null,null,null,null,1,null,null,null,null,null,null,null,null,null,null,null,-5.3230708333333334,null,null,null,null,null,null,null,null,null,null,null,null,null,null,null,null,null,null,null,null,null,null,null,null,null,null,null,null,null,null,null,null,null,null,null,null,null,null,null,null,null,null,null,null,null,null,null,null,null,null,null,null,null,null,null,null,null,null,null,null,null,null,null,null,null,null,null,null,null,null,null,null,null,null,null,null,null,null,null,null,null,null,null,null,null,null,null,null,null,null,null,null,null,null,null,null,{"$f":"$C$203","v":30}]
[13,"Bin_Itaúba_x13",null,null,"Não",null,null,null,null,1,null,null,null,null,null,null,null,null,null,null,null,null,-6.0895687499999989,null,null,null,null,null,null,null,null,null,null,null,null,null,null,null,null,null,null,null,null,null,null,null,null,null,null,null,null,null,null,null,null,null,null,null,null,null,null,null,null,null,null,null,null,null,null,null,null,null,null,null,null,null,null,null,null,null,null,null,null,null,null,null,null,null,null,null,null,null,null,null,null,null,null,null,null,null,null,null,null,null,null,null,null,null,null,null,null,null,null,null,null,null,null,null,null,{"$f":"$C$203","v":30}]
[14,"Bin_Jutaí_x14",null,null,"Não",null,null,null,null,1,null,null,null,null,null,null,null,null,null,null,null,null,null,-0.25437291666666667,null,null,null,null,null,null,null,null,null,null,null,null,null,null,null,null,null,null,null,null,null,null,null,null,null,null,null,null,null,null,null,null,null,null,null,null,null,null,null,null,null,null,null,null,null,null,null,null,null,null,null,null,null,null,null,null,null,null,null,null,null,null,null,null,null,null,null,null,null,null,null,null,null,null,null,null,null,null,null,null,null,null,null,null,null,null,null,null,null,null,null,null,null,null,null,null,{"$f":"$C$203","v":30}]
[15,"Bin_Jutaí-pororoca_x15",null,null,"Não",null,null,null,null,1,null,null,null,null,null,null,null,null,null,null,null,null,null,null,-1.0903666666666667,null,null,null,null,null,null,null,null,null,null,null,null,null,null,null,null,null,null,null,null,null,null,null,null,null,null,null,null,null,null,null,null,null,null,null,null,null,null,null,null,null,null,null,null,null,null,null,null,null,null,null,null,null,null,null,null,null,null,null,null,null,null,null,null,null,null,null,null,null,null,null,null,null,null,null,null,null,null,null,null,null,null,null,null,null,null,null,null,null,null,null,null,null,null,null,null,{"$f":"$C$203","v":30}]
[16,"Bin_Louro_x16",null,null,"Não",null,null,null,null,1,null,null,null,null,null,null,null,null,null,null,null,null,null,null,null,-8.4110416666666674E-2,null,null,null,null,null,null,null,null,null,null,null,null,null,null,null,null,null,null,null,null,null,null,null,null,null,null,null,null,null,null,null,null,null,null,null,null,null,null,null,null,null,null,null,null,null,null,null,null,null,null,null,null,null,null,null,null,null,null,null,null,null,null,null,null,null,null,null,null,null,null,null,null,null,null,null,null,null,null,null,null,null,null,null,null,null,null,null,null,null,null,null,null,null,null,null,null,{"$f":"$C$203","v":30}]
[17,"Bin_Louro-amarelo_x17",null,null,"Não",null,null,null,null,1,null,null,null,null,null,null,null,null,null,null,null,null,null,null,null,null,-0.19136041666666664,null,null,null,null,null,null,null,null,null,null,null,null,null,null,null,null,null,null,null,null,null,null,null,null,null,null,null,null,null,null,null,null,null,null,null,null,null,null,null,null,null,null,null,null,null,null,null,null,null,null,null,null,null,null,null,null,null,null,null,null,null,null,null,null,null,null,null,null,null,null,null,null,null,null,null,null,null,null,null,null,null,null,null,null,null,null,null,null,null,null,null,null,null,null,null,null,{"$f":"$C$203","v":30}]
[18,"Bin_Louro-aritú_x18",null,null,"Não",null,null,null,null,1,null,null,null,null,null,null,null,null,null,null,null,null,null,null,null,null,null,-0.67518541666666665,null,null,null,null,null,null,null,null,null,null,null,null,null,null,null,null,null,null,null,null,null,null,null,null,null,null,null,null,null,null,null,null,null,null,null,null,null,null,null,null,null,null,null,null,null,null,null,null,null,null,null,null,null,null,null,null,null,null,null,null,null,null,null,null,null,null,null,null,null,null,null,null,null,null,null,null,null,null,null,null,null,null,null,null,null,null,null,null,null,null,null,null,null,null,null,null,{"$f":"$C$203","v":30}]
[19,"Bin_Louro-canela_x19",null,null,"Não",null,null,null,null,1,null,null,null,null,null,null,null,null,null,null,null,null,null,null,null,null,null,null,-0.35683750000000003,null,null,null,null,null,null,null,null,null,null,null,null,null,null,null,null,null,null,null,null,null,null,null,null,null,null,null,null,null,null,null,null,null,null,null,null,null,null,null,null,null,null,null,null,null,null,null,null,null,null,null,null,null,null,null,null,null,null,null,null,null,null,null,null,null,null,null,null,null,null,null,null,null,null,null,null,null,null,null,null,null,null,null,null,null,null,null,null,null,null,null,null,null,null,null,null,{"$f":"$C$203","v":30}]
[20,"Bin_Louro-fofo_x20",null,null,"Não",null,null,null,null,1,null,null,null,null,null,null,null,null,null,null,null,null,null,null,null,null,null,null,null,-9.0120833333333331E-2,null,null,null,null,null,null,null,null,null,null,null,null,null,null,null,null,null,null,null,null,null,null,null,null,null,null,null,null,null,null,null,null,null,null,null,null,null,null,null,null,null,null,null,null,null,null,null,null,null,null,null,null,null,null,null,null,null,null,null,null,null,null,null,null,null,null,null,null,null,null,null,null,null,null,null,null,null,null,null,null,null,null,null,null,null,null,null,null,null,null,null,null,null,null,null,null,{"$f":"$C$203","v":30}]
[21,"Bin_Louro-gamela_x21",null,null,"Não",null,null,null,null,1,null,null,null,null,null,null,null,null,null,null,null,null,null,null,null,null,null,null,null,null,-0.23120208333333331,null,null,null,null,null,null,null,null,null,null,null,null,null,null,null,null,null,null,null,null,null,null,null,null,null,null,null,null,null,null,null,null,null,null,null,null,null,null,null,null,null,null,null,null,null,null,null,null,null,null,null,null,null,null,null,null,null,null,null,null,null,null,null,null,null,null,null,null,null,null,null,null,null,null,null,null,null,null,null,null,null,null,null,null,null,null,null,null,null,null,null,null,null,null,null,null,{"$f":"$C$203","v":30}]
[22,"Bin_Louro-porco_x22",null,null,"Não",null,null,null,null,1,null,null,null,null,null,null,null,null,null,null,null,null,null,null,null,null,null,null,null,null,null,-6.4043749999999997E-2,null,null,null,null,null,null,null,null,null,null,null,null,null,null,null,null,null,null,null,null,null,null,null,null,null,null,null,null,null,null,null,null,null,null,null,null,null,null,null,null,null,null,null,null,null,null,null,null,null,null,null,null,null,null,null,null,null,null,null,null,null,null,null,null,null,null,null,null,null,null,null,null,null,null,null,null,null,null,null,null,null,null,null,null,null,null,null,null,null,null,null,null,null,null,null,null,{"$f":"$C$203","v":30}]
[23,"Bin_Louro-preto_x23",null,null,"Não",null,null,null,null,1,null,null,null,null,null,null,null,null,null,null,null,null,null,null,null,null,null,null,null,null,null,null,-2.1167645833333335,null,null,null,null,null,null,null,null,null,null,null,null,null,null,null,null,null,null,null,null,null,null,null,null,null,null,null,null,null,null,null,null,null,null,null,null,null,null,null,null,null,null,null,null,null,null,null,null,null,null,null,null,null,null,null,null,null,null,null,null,null,null,null,null,null,null,null,null,null,null,null,null,null,null,null,null,null,null,null,null,null,null,null,null,null,null,null,null,null,null,null,null,null,null,null,null,{"$f":"$C$203","v":30}]
[24,"Bin_Marupá_x24",null,null,"Não",null,null,null,null,1,null,null,null,null,null,null,null,null,null,null,null,null,null,null,null,null,null,null,null,null,null,null,null,-0.74908124999999992,null,null,null,null,null,null,null,null,null,null,null,null,null,null,null,null,null,null,null,null,null,null,null,null,null,null,null,null,null,null,null,null,null,null,null,null,null,null,null,null,null,null,null,null,null,null,null,null,null,null,null,null,null,null,null,null,null,null,null,null,null,null,null,null,null,null,null,null,null,null,null,null,null,null,null,null,null,null,null,null,null,null,null,null,null,null,null,null,null,null,null,null,null,null,null,null,{"$f":"$C$203","v":30}]
[25,"Bin_Pequiá_x25",null,null,"Não",null,null,null,null,1,null,null,null,null,null,null,null,null,null,null,null,null,null,null,null,null,null,null,null,null,null,null,null,null,-3.0643270833333336,null,null,null,null,null,null,null,null,null,null,null,null,null,null,null,null,null,null,null,null,null,null,null,null,null,null,null,null,null,null,null,null,null,null,null,null,null,null,null,null,null,null,null,null,null,null,null,null,null,null,null,null,null,null,null,null,null,null,null,null,null,null,null,null,null,null,null,null,null,null,null,null,null,null,null,null,null,null,null,null,null,null,null,null,null,null,null,null,null,null,null,null,null,null,null,null,{"$f":"$C$203","v":30}]
[26,"Bin_Pequiarana_x26",null,null,"Não",null,null,null,null,1,null,null,null,null,null,null,null,null,null,null,null,null,null,null,null,null,null,null,null,null,null,null,null,null,null,-1.150825,null,null,null,null,null,null,null,null,null,null,null,null,null,null,null,null,null,null,null,null,null,null,null,null,null,null,null,null,null,null,null,null,null,null,null,null,null,null,null,null,null,null,null,null,null,null,null,null,null,null,null,null,null,null,null,null,null,null,null,null,null,null,null,null,null,null,null,null,null,null,null,null,null,null,null,null,null,null,null,null,null,null,null,null,null,null,null,null,null,null,null,null,null,null,null,null,{"$f":"$C$203","v":30}]
[27,"Bin_Preciosa_x27",null,null,"Não",null,null,null,null,1,null,null,null,null,null,null,null,null,null,null,null,null,null,null,null,null,null,null,null,null,null,null,null,null,null,null,-0.15706249999999999,null,null,null,null,null,null,null,null,null,null,null,null,null,null,null,null,null,null,null,null,null,null,null,null,null,null,null,null,null,null,null,null,null,null,null,null,null,null,null,null,null,null,null,null,null,null,null,null,null,null,null,null,null,null,null,null,null,null,null,null,null,null,null,null,null,null,null,null,null,null,null,null,null,null,null,null,null,null,null,null,null,null,null,null,null,null,null,null,null,null,null,null,null,null,null,null,{"$f":"$C$203","v":30}]
[28,"Bin_Quarubarana_x28",null,null,"Não",null,null,null,null,1,null,null,null,null,null,null,null,null,null,null,null,null,null,null,null,null,null,null,null,null,null,null,null,null,null,null,null,-5.2460416666666669E-2,null,null,null,null,null,null,null,null,null,null,null,null,null,null,null,null,null,null,null,null,null,null,null,null,null,null,null,null,null,null,null,null,null,null,null,null,null,null,null,null,null,null,null,null,null,null,null,null,null,null,null,null,null,null,null,null,null,null,null,null,null,null,null,null,null,null,null,null,null,null,null,null,null,null,null,null,null,null,null,null,null,null,null,null,null,null,null,null,null,null,null,null,null,null,null,null,{"$f":"$C$203","v":30}]
[29,"Bin_Ripeiro_x29",null,null,"Não",null,null,null,null,1,null,null,null,null,null,null,null,null,null,null,null,null,null,null,null,null,null,null,null,null,null,null,null,null,null,null,null,null,-0.8181166666666666,null,null,null,null,null,null,null,null,null,null,null,null,null,null,null,null,null,null,null,null,null,null,null,null,null,null,null,null,null,null,null,null,null,null,null,null,null,null,null,null,null,null,null,null,null,null,null,null,null,null,null,null,null,null,null,null,null,null,null,null,null,null,null,null,null,null,null,null,null,null,null,null,null,null,null,null,null,null,null,null,null,null,null,null,null,null,null,null,null,null,null,null,null,null,null,null,{"$f":"$C$203","v":30}]
[30,"Bin_Sucupira-amarela_x30",null,null,"Não",null,null,null,null,1,null,null,null,null,null,null,null,null,null,null,null,null,null,null,null,null,null,null,null,null,null,null,null,null,null,null,null,null,null,-1.0521145833333332,null,null,null,null,null,null,null,null,null,null,null,null,null,null,null,null,null,null,null,null,null,null,null,null,null,null,null,null,null,null,null,null,null,null,null,null,null,null,null,null,null,null,null,null,null,null,null,null,null,null,null,null,null,null,null,null,null,null,null,null,null,null,null,null,null,null,null,null,null,null,null,null,null,null,null,null,null,null,null,null,null,null,null,null,null,null,null,null,null,null,null,null,null,null,null,null,{"$f":"$C$203","v":30}]
[31,"Bin_Sucupira-preta_x31",null,null,"Não",null,null,null,null,1,null,null,null,null,null,null,null,null,null,null,null,null,null,null,null,null,null,null,null,null,null,null,null,null,null,null,null,null,null,null,-0.1178125,null,null,null,null,null,null,null,null,null,null,null,null,null,null,null,null,null,null,null,null,null,null,null,null,null,null,null,null,null,null,null,null,null,null,null,null,null,null,null,null,null,null,null,null,null,null,null,null,null,null,null,null,null,null,null,null,null,null,null,null,null,null,null,null,null,null,null,null,null,null,null,null,null,null,null,null,null,null,null,null,null,null,null,null,null,null,null,null,null,null,null,null,null,null,null,null,{"$f":"$C$203","v":30}]
[32,"Bin_Tauari-branco_x32",null,null,"Não",null,null,null,null,1,null,null,null,null,null,null,null,null,null,null,null,null,null,null,null,null,null,null,null,null,null,null,null,null,null,null,null,null,null,null,null,-0.31144791666666666,null,null,null,null,null,null,null,null,null,null,null,null,null,null,null,null,null,null,null,null,null,null,null,null,null,null,null,null,null,null,null,null,null,null,null,null,null,null,null,null,null,null,null,null,null,null,null,null,null,null,null,null,null,null,null,null,null,null,null,null,null,null,null,null,null,null,null,null,null,null,null,null,null,null,null,null,null,null,null,null,null,null,null,null,null,null,null,null,null,null,null,null,null,null,null,null,{"$f":"$C$203","v":30}]
[33,"Bin_Tauari-vermelho_x33",null,null,"Não",null,null,null,null,1,null,null,null,null,null,null,null,null,null,null,null,null,null,null,null,null,null,null,null,null,null,null,null,null,null,null,null,null,null,null,null,null,-0.92088124999999998,null,null,null,null,null,null,null,null,null,null,null,null,null,null,null,null,null,null,null,null,null,null,null,null,null,null,null,null,null,null,null,null,null,null,null,null,null,null,null,null,null,null,null,null,null,null,null,null,null,null,null,null,null,null,null,null,null,null,null,null,null,null,null,null,null,null,null,null,null,null,null,null,null,null,null,null,null,null,null,null,null,null,null,null,null,null,null,null,null,null,null,null,null,null,null,null,{"$f":"$C$203","v":30}]
[34,"Bin_Ucuúba_x34",null,null,"Não",null,null,null,null,1,null,null,null,null,null,null,null,null,null,null,null,null,null,null,null,null,null,null,null,null,null,null,null,null,null,null,null,null,null,null,null,null,null,-0.26348749999999999,null,null,null,null,null,null,null,null,null,null,null,null,null,null,null,null,null,null,null,null,null,null,null,null,null,null,null,null,null,null,null,null,null,null,null,null,null,null,null,null,null,null,null,null,null,null,null,null,null,null,null,null,null,null,null,null,null,null,null,null,null,null,null,null,null,null,null,null,null,null,null,null,null,null,null,null,null,null,null,null,null,null,null,null,null,null,null,null,null,null,null,null,null,null,null,null,{"$f":"$C$203","v":30}]
[35,"Bin_Ucuúba-branca_x35",null,null,"Não",null,null,null,null,1,null,null,null,null,null,null,null,null,null,null,null,null,null,null,null,null,null,null,null,null,null,null,null,null,null,null,null,null,null,null,null,null,null,null,-0.14627499999999999,null,null,null,null,null,null,null,null,null,null,null,null,null,null,null,null,null,null,null,null,null,null,null,null,null,null,null,null,null,null,null,null,null,null,null,null,null,null,null,null,null,null,null,null,null,null,null,null,null,null,null,null,null,null,null,null,null,null,null,null,null,null,null,null,null,null,null,null,null,null,null,null,null,null,null,null,null,null,null,null,null,null,null,null,null,null,null,null,null,null,null,null,null,null,null,null,{"$f":"$C$203","v":30}]
[36,"Bin_Violeta_x36",null,null,"Não",null,null,null,null,1,null,null,null,null,null,null,null,null,null,null,null,null,null,null,null,null,null,null,null,null,null,null,null,null,null,null,null,null,null,null,null,null,null,null,null,-9.0120833333333331E-2,null,null,null,null,null,null,null,null,null,null,null,null,null,null,null,null,null,null,null,null,null,null,null,null,null,null,null,null,null,null,null,null,null,null,null,null,null,null,null,null,null,null,null,null,null,null,null,null,null,null,null,null,null,null,null,null,null,null,null,null,null,null,null,null,null,null,null,null,null,null,null,null,null,null,null,null,null,null,null,null,null,null,null,null,null,null,null,null,null,null,null,null,null,null,null,null,{"$f":"$C$203","v":30}]
[37,"Bin_Virola_x37",null,null,"Não",null,null,null,null,1,null,null,null,null,null,null,null,null,null,null,null,null,null,null,null,null,null,null,null,null,null,null,null,null,null,null,null,null,null,null,null,null,null,null,null,null,-0.12664166666666665,null,null,null,null,null,null,null,null,null,null,null,null,null,null,null,null,null,null,null,null,null,null,null,null,null,null,null,null,null,null,null,null,null,null,null,null,null,null,null,null,null,null,null,null,null,null,null,null,null,null,null,null,null,null,null,null,null,null,null,null,null,null,null,null,null,null,null,null,null,null,null,null,null,null,null,null,null,null,null,null,null,null,null,null,null,null,null,null,null,null,null,null,null,null,null,null,{"$f":"$C$203","v":30}]
[38,"Bin_Abiurana-ferro_x38",null,null,"Não",null,null,null,null,1,null,null,null,null,null,null,null,null,null,null,null,null,null,null,null,null,null,null,null,null,null,null,null,null,null,null,null,null,null,null,null,null,null,null,null,null,null,-0.40511041666666697,null,null,null,null,null,null,null,null,null,null,null,null,null,null,null,null,null,null,null,null,null,null,null,null,null,null,null,null,null,null,null,null,null,null,null,null,null,null,null,null,null,null,null,null,null,null,null,null,null,null,null,null,null,null,null,null,null,null,null,null,null,null,null,null,null,null,null,null,null,null,null,null,null,null,null,null,null,null,null,null,null,null,null,null,null,null,null,null,null,null,null,null,null,null,null,null,{"$f":"$C$203","v":30}]
[39,"Bin_Acariquara_x39",null,null,"Não",null,null,null,null,1,null,null,null,null,null,null,null,null,null,null,null,null,null,null,null,null,null,null,null,null,null,null,null,null,null,null,null,null,null,null,null,null,null,null,null,null,null,null,-0.95687708333333332,null,null,null,null,null,null,null,null,null,null,null,null,null,null,null,null,null,null,null,null,null,null,null,null,null,null,null,null,null,null,null,null,null,null,null,null,null,null,null,null,null,null,null,null,null,null,null,null,null,null,null,null,null,null,null,null,null,null,null,null,null,null,null,null,null,null,null,null,null,null,null,null,null,null,null,null,null,null,null,null,null,null,null,null,null,null,null,null,null,null,null,null,null,null,null,null,{"$f":"$C$203","v":30}]
[40,"Bin_Amapá_x40",null,null,"Não",null,null,null,null,1,null,null,null,null,null,null,null,null,null,null,null,null,null,null,null,null,null,null,null,null,null,null,null,null,null,null,null,null,null,null,null,null,null,null,null,null,null,null,null,-0.92277500000000001,null,null,null,null,null,null,null,null,null,null,null,null,null,null,null,null,null,null,null,null,null,null,null,null,null,null,null,null,null,null,null,null,null,null,null,null,null,null,null,null,null,null,null,null,null,null,null,null,null,null,null,null,null,null,null,null,null,null,null,null,null,null,null,null,null,null,null,null,null,null,null,null,null,null,null,null,null,null,null,null,null,null,null,null,null,null,null,null,null,null,null,null,null,null,null,null,{"$f":"$C$203","v":30}]
[42,"Bin_Amapá-doce_x42",null,null,"Não",null,null,null,null,1,null,null,null,null,null,null,null,null,null,null,null,null,null,null,null,null,null,null,null,null,null,null,null,null,null,null,null,null,null,null,null,null,null,null,null,null,null,null,null,null,-1.7600583333333333,null,null,null,null,null,null,null,null,null,null,null,null,null,null,null,null,null,null,null,null,null,null,null,null,null,null,null,null,null,null,null,null,null,null,null,null,null,null,null,null,null,null,null,null,null,null,null,null,null,null,null,null,null,null,null,null,null,null,null,null,null,null,null,null,null,null,null,null,null,null,null,null,null,null,null,null,null,null,null,null,null,null,null,null,null,null,null,null,null,null,null,null,null,null,null,null,{"$f":"$C$203","v":30}]
[43,"Bin_Angelim-rajado_x43",null,null,"Não",null,null,null,null,1,null,null,null,null,null,null,null,null,null,null,null,null,null,null,null,null,null,null,null,null,null,null,null,null,null,null,null,null,null,null,null,null,null,null,null,null,null,null,null,null,null,-0.48877916666666665,null,null,null,null,null,null,null,null,null,null,null,null,null,null,null,null,null,null,null,null,null,null,null,null,null,null,null,null,null,null,null,null,null,null,null,null,null,null,null,null,null,null,null,null,null,null,null,null,null,null,null,null,null,null,null,null,null,null,null,null,null,null,null,null,null,null,null,null,null,null,null,null,null,null,null,null,null,null,null,null,null,null,null,null,null,null,null,null,null,null,null,null,null,null,null,null,{"$f":"$C$203","v":30}]
[44,"Bin_Arurá-vermelho_x44",null,null,"Não",null,null,null,null,1,null,null,null,null,null,null,null,null,null,null,null,null,null,null,null,null,null,null,null,null,null,null,null,null,null,null,null,null,null,null,null,null,null,null,null,null,null,null,null,null,null,null,-0.3878583333333333,null,null,null,null,null,null,null,null,null,null,null,null,null,null,null,null,null,null,null,null,null,null,null,null,null,null,null,null,null,null,null,null,null,null,null,null,null,null,null,null,null,null,null,null,null,null,null,null,null,null,null,null,null,null,null,null,null,null,null,null,null,null,null,null,null,null,null,null,null,null,null,null,null,null,null,null,null,null,null,null,null,null,null,null,null,null,null,null,null,null,null,null,null,null,null,null,{"$f":"$C$203","v":30}]
[45,"Bin_Bacuri_x45",null,null,"Não",null,null,null,null,1,null,null,null,null,null,null,null,null,null,null,null,null,null,null,null,null,null,null,null,null,null,null,null,null,null,null,null,null,null,null,null,null,null,null,null,null,null,null,null,null,null,null,null,-0.15841458333333333,null,null,null,null,null,null,null,null,null,null,null,null,null,null,null,null,null,null,null,null,null,null,null,null,null,null,null,null,null,null,null,null,null,null,null,null,null,null,null,null,null,null,null,null,null,null,null,null,null,null,null,null,null,null,null,null,null,null,null,null,null,null,null,null,null,null,null,null,null,null,null,null,null,null,null,null,null,null,null,null,null,null,null,null,null,null,null,null,null,null,null,null,null,null,null,null,{"$f":"$C$203","v":30}]
[46,"Bin_Balatarana_x46",null,null,"Não",null,null,null,null,1,null,null,null,null,null,null,null,null,null,null,null,null,null,null,null,null,null,null,null,null,null,null,null,null,null,null,null,null,null,null,null,null,null,null,null,null,null,null,null,null,null,null,null,null,-0.16973333333333335,null,null,null,null,null,null,null,null,null,null,null,null,null,null,null,null,null,null,null,null,null,null,null,null,null,null,null,null,null,null,null,null,null,null,null,null,null,null,null,null,null,null,null,null,null,null,null,null,null,null,null,null,null,null,null,null,null,null,null,null,null,null,null,null,null,null,null,null,null,null,null,null,null,null,null,null,null,null,null,null,null,null,null,null,null,null,null,null,null,null,null,null,null,null,null,null,{"$f":"$C$203","v":30}]
[47,"Bin_Breu_x47",null,null,"Não",null,null,null,null,1,null,null,null,null,null,null,null,null,null,null,null,null,null,null,null,null,null,null,null,null,null,null,null,null,null,null,null,null,null,null,null,null,null,null,null,null,null,null,null,null,null,null,null,null,null,-0.12455000000000001,null,null,null,null,null,null,null,null,null,null,null,null,null,null,null,null,null,null,null,null,null,null,null,null,null,null,null,null,null,null,null,null,null,null,null,null,null,null,null,null,null,null,null,null,null,null,null,null,null,null,null,null,null,null,null,null,null,null,null,null,null,null,null,null,null,null,null,null,null,null,null,null,null,null,null,null,null,null,null,null,null,null,null,null,null,null,null,null,null,null,null,null,null,null,null,null,{"$f":"$C$203","v":30}]
[48,"Bin_Breu-branco_x48",null,null,"Não",null,null,null,null,1,null,null,null,null,null,null,null,null,null,null,null,null,null,null,null,null,null,null,null,null,null,null,null,null,null,null,null,null,null,null,null,null,null,null,null,null,null,null,null,null,null,null,null,null,null,null,-1.7621583333333333,null,null,null,null,null,null,null,null,null,null,null,null,null,null,null,null,null,null,null,null,null,null,null,null,null,null,null,null,null,null,null,null,null,null,null,null,null,null,null,null,null,null,null,null,null,null,null,null,null,null,null,null,null,null,null,null,null,null,null,null,null,null,null,null,null,null,null,null,null,null,null,null,null,null,null,null,null,null,null,null,null,null,null,null,null,null,null,null,null,null,null,null,null,null,null,null,{"$f":"$C$203","v":30}]
[49,"Bin_Breu-vermelho_x49",null,null,"Não",null,null,null,null,1,null,null,null,null,null,null,null,null,null,null,null,null,null,null,null,null,null,null,null,null,null,null,null,null,null,null,null,null,null,null,null,null,null,null,null,null,null,null,null,null,null,null,null,null,null,null,null,-1.6156312500000001,null,null,null,null,null,null,null,null,null,null,null,null,null,null,null,null,null,null,null,null,null,null,null,null,null,null,null,null,null,null,null,null,null,null,null,null,null,null,null,null,null,null,null,null,null,null,null,null,null,null,null,null,null,null,null,null,null,null,null,null,null,null,null,null,null,null,null,null,null,null,null,null,null,null,null,null,null,null,null,null,null,null,null,null,null,null,null,null,null,null,null,null,null,null,null,null,{"$f":"$C$203","v":30}]
[50,"Bin_Castanharana_x50",null,null,"Não",null,null,null,null,1,null,null,null,null,null,null,null,null,null,null,null,null,null,null,null,null,null,null,null,null,null,null,null,null,null,null,null,null,null,null,null,null,null,null,null,null,null,null,null,null,null,null,null,null,null,null,null,null,-0.81217291666666669,null,null,null,null,null,null,null,null,null,null,null,null,null,null,null,null,null,null,null,null,null,null,null,null,null,null,null,null,null,null,null,null,null,null,null,null,null,null,null,null,null,null,null,null,null,null,null,null,null,null,null,null,null,null,null,null,null,null,null,null,null,null,null,null,null,null,null,null,null,null,null,null,null,null,null,null,null,null,null,null,null,null,null,null,null,null,null,null,null,null,null,null,null,null,null,null,{"$f":"$C$203","v":30}]
[51,"Bin_Castanharana_x51",null,null,"Não",null,null,null,null,1,null,null,null,null,null,null,null,null,null,null,null,null,null,null,null,null,null,null,null,null,null,null,null,null,null,null,null,null,null,null,null,null,null,null,null,null,null,null,null,null,null,null,null,null,null,null,null,null,null,-0.52375625000000003,null,null,null,null,null,null,null,null,null,null,null,null,null,null,null,null,null,null,null,null,null,null,null,null,null,null,null,null,null,null,null,null,null,null,null,null,null,null,null,null,null,null,null,null,null,null,null,null,null,null,null,null,null,null,null,null,null,null,null,null,null,null,null,null,null,null,null,null,null,null,null,null,null,null,null,null,null,null,null,null,null,null,null,null,null,null,null,null,null,null,null,null,null,null,null,null,{"$f":"$C$203","v":30}]
[52,"Bin_Castanha-sapucaia_x52",null,null,"Não",null,null,null,null,1,null,null,null,null,null,null,null,null,null,null,null,null,null,null,null,null,null,null,null,null,null,null,null,null,null,null,null,null,null,null,null,null,null,null,null,null,null,null,null,null,null,null,null,null,null,null,null,null,null,null,-1.4048104166666666,null,null,null,null,null,null,null,null,null,null,null,null,null,null,null,null,null,null,null,null,null,null,null,null,null,null,null,null,null,null,null,null,null,null,null,null,null,null,null,null,null,null,null,null,null,null,null,null,null,null,null,null,null,null,null,null,null,null,null,null,null,null,null,null,null,null,null,null,null,null,null,null,null,null,null,null,null,null,null,null,null,null,null,null,null,null,null,null,null,null,null,null,null,null,null,null,{"$f":"$C$203","v":30}]
[53,"Bin_Coração-de-negro_x53",null,null,"Não",null,null,null,null,1,null,null,null,null,null,null,null,null,null,null,null,null,null,null,null,null,null,null,null,null,null,null,null,null,null,null,null,null,null,null,null,null,null,null,null,null,null,null,null,null,null,null,null,null,null,null,null,null,null,null,null,-0.11678333333333332,null,null,null,null,null,null,null,null,null,null,null,null,null,null,null,null,null,null,null,null,null,null,null,null,null,null,null,null,null,null,null,null,null,null,null,null,null,null,null,null,null,null,null,null,null,null,null,null,null,null,null,null,null,null,null,null,null,null,null,null,null,null,null,null,null,null,null,null,null,null,null,null,null,null,null,null,null,null,null,null,null,null,null,null,null,null,null,null,null,null,null,null,null,null,null,null,{"$f":"$C$203","v":30}]
[54,"Bin_Cubarana_x54",null,null,"Não",null,null,null,null,1,null,null,null,null,null,null,null,null,null,null,null,null,null,null,null,null,null,null,null,null,null,null,null,null,null,null,null,null,null,null,null,null,null,null,null,null,null,null,null,null,null,null,null,null,null,null,null,null,null,null,null,null,-0.17803541666666667,null,null,null,null,null,null,null,null,null,null,null,null,null,null,null,null,null,null,null,null,null,null,null,null,null,null,null,null,null,null,null,null,null,null,null,null,null,null,null,null,null,null,null,null,null,null,null,null,null,null,null,null,null,null,null,null,null,null,null,null,null,null,null,null,null,null,null,null,null,null,null,null,null,null,null,null,null,null,null,null,null,null,null,null,null,null,null,null,null,null,null,null,null,null,null,null,{"$f":"$C$203","v":30}]
[55,"Bin_Guajará_x55",null,null,"Não",null,null,null,null,1,null,null,null,null,null,null,null,null,null,null,null,null,null,null,null,null,null,null,null,null,null,null,null,null,null,null,null,null,null,null,null,null,null,null,null,null,null,null,null,null,null,null,null,null,null,null,null,null,null,null,null,null,null,-1.7842333333333333,null,null,null,null,null,null,null,null,null,null,null,null,null,null,null,null,null,null,null,null,null,null,null,null,null,null,null,null,null,null,null,null,null,null,null,null,null,null,null,null,null,null,null,null,null,null,null,null,null,null,null,null,null,null,null,null,null,null,null,null,null,null,null,null,null,null,null,null,null,null,null,null,null,null,null,null,null,null,null,null,null,null,null,null,null,null,null,null,null,null,null,null,null,null,null,null,{"$f":"$C$203","v":30}]
[56,"Bin_Guariúba_x56",null,null,"Não",null,null,null,null,1,null,null,null,null,null,null,null,null,null,null,null,null,null,null,null,null,null,null,null,null,null,null,null,null,null,null,null,null,null,null,null,null,null,null,null,null,null,null,null,null,null,null,null,null,null,null,null,null,null,null,null,null,null,null,-1.2701687500000001,null,null,null,null,null,null,null,null,null,null,null,null,null,null,null,null,null,null,null,null,null,null,null,null,null,null,null,null,null,null,null,null,null,null,null,null,null,null,null,null,null,null,null,null,null,null,null,null,null,null,null,null,null,null,null,null,null,null,null,null,null,null,null,null,null,null,null,null,null,null,null,null,null,null,null,null,null,null,null,null,null,null,null,null,null,null,null,null,null,null,null,null,null,null,null,null,{"$f":"$C$203","v":30}]
[57,"Bin_Ingarana_x57",null,null,"Não",null,null,null,null,1,null,null,null,null,null,null,null,null,null,null,null,null,null,null,null,null,null,null,null,null,null,null,null,null,null,null,null,null,null,null,null,null,null,null,null,null,null,null,null,null,null,null,null,null,null,null,null,null,null,null,null,null,null,null,null,-0.14677916666666668,null,null,null,null,null,null,null,null,null,null,null,null,null,null,null,null,null,null,null,null,null,null,null,null,null,null,null,null,null,null,null,null,null,null,null,null,null,null,null,null,null,null,null,null,null,null,null,null,null,null,null,null,null,null,null,null,null,null,null,null,null,null,null,null,null,null,null,null,null,null,null,null,null,null,null,null,null,null,null,null,null,null,null,null,null,null,null,null,null,null,null,null,null,null,null,null,{"$f":"$C$203","v":30}]
[59,"Bin_Jarana_x59",null,null,"Não",null,null,null,null,1,null,null,null,null,null,null,null,null,null,null,null,null,null,null,null,null,null,null,null,null,null,null,null,null,null,null,null,null,null,null,null,null,null,null,null,null,null,null,null,null,null,null,null,null,null,null,null,null,null,null,null,null,null,null,null,null,-0.22346874999999999,null,null,null,null,null,null,null,null,null,null,null,null,null,null,null,null,null,null,null,null,null,null,null,null,null,null,null,null,null,null,null,null,null,null,null,null,null,null,null,null,null,null,null,null,null,null,null,null,null,null,null,null,null,null,null,null,null,null,null,null,null,null,null,null,null,null,null,null,null,null,null,null,null,null,null,null,null,null,null,null,null,null,null,null,null,null,null,null,null,null,null,null,null,null,null,null,{"$f":"$C$203","v":30}]
[60,"Bin_Macacaúba_x60",null,null,"Não",null,null,null,null,1,null,null,null,null,null,null,null,null,null,null,null,null,null,null,null,null,null,null,null,null,null,null,null,null,null,null,null,null,null,null,null,null,null,null,null,null,null,null,null,null,null,null,null,null,null,null,null,null,null,null,null,null,null,null,null,null,null,-0.65916041666666669,null,null,null,null,null,null,null,null,null,null,null,null,null,null,null,null,null,null,null,null,null,null,null,null,null,null,null,null,null,null,null,null,null,null,null,null,null,null,null,null,null,null,null,null,null,null,null,null,null,null,null,null,null,null,null,null,null,null,null,null,null,null,null,null,null,null,null,null,null,null,null,null,null,null,null,null,null,null,null,null,null,null,null,null,null,null,null,null,null,null,null,null,null,null,null,null,{"$f":"$C$203","v":30}]
[61,"Bin_Mata-mata-branco_x61",null,null,"Não",null,null,null,null,1,null,null,null,null,null,null,null,null,null,null,null,null,null,null,null,null,null,null,null,null,null,null,null,null,null,null,null,null,null,null,null,null,null,null,null,null,null,null,null,null,null,null,null,null,null,null,null,null,null,null,null,null,null,null,null,null,null,null,-0.15251666666666666,null,null,null,null,null,null,null,null,null,null,null,null,null,null,null,null,null,null,null,null,null,null,null,null,null,null,null,null,null,null,null,null,null,null,null,null,null,null,null,null,null,null,null,null,null,null,null,null,null,null,null,null,null,null,null,null,null,null,null,null,null,null,null,null,null,null,null,null,null,null,null,null,null,null,null,null,null,null,null,null,null,null,null,null,null,null,null,null,null,null,null,null,null,null,null,null,{"$f":"$C$203","v":30}]
[62,"Bin_Matamata-preto_x62",null,null,"Não",null,null,null,null,1,null,null,null,null,null,null,null,null,null,null,null,null,null,null,null,null,null,null,null,null,null,null,null,null,null,null,null,null,null,null,null,null,null,null,null,null,null,null,null,null,null,null,null,null,null,null,null,null,null,null,null,null,null,null,null,null,null,null,null,-2.7475958333333335,null,null,null,null,null,null,null,null,null,null,null,null,null,null,null,null,null,null,null,null,null,null,null,null,null,null,null,null,null,null,null,null,null,null,null,null,null,null,null,null,null,null,null,null,null,null,null,null,null,null,null,null,null,null,null,null,null,null,null,null,null,null,null,null,null,null,null,null,null,null,null,null,null,null,null,null,null,null,null,null,null,null,null,null,null,null,null,null,null,null,null,null,null,null,null,null,{"$f":"$C$203","v":30}]
[63,"Bin_Matamata-vermelho_x63",null,null,"Não",null,null,null,null,1,null,null,null,null,null,null,null,null,null,null,null,null,null,null,null,null,null,null,null,null,null,null,null,null,null,null,null,null,null,null,null,null,null,null,null,null,null,null,null,null,null,null,null,null,null,null,null,null,null,null,null,null,null,null,null,null,null,null,null,null,-2.9977520833333333,null,null,null,null,null,null,null,null,null,null,null,null,null,null,null,null,null,null,null,null,null,null,null,null,null,null,null,null,null,null,null,null,null,null,null,null,null,null,null,null,null,null,null,null,null,null,null,null,null,null,null,null,null,null,null,null,null,null,null,null,null,null,null,null,null,null,null,null,null,null,null,null,null,null,null,null,null,null,null,null,null,null,null,null,null,null,null,null,null,null,null,null,null,null,null,null,{"$f":"$C$203","v":30}]
[64,"Bin_Muirapiranga_x64",null,null,"Não",null,null,null,null,1,null,null,null,null,null,null,null,null,null,null,null,null,null,null,null,null,null,null,null,null,null,null,null,null,null,null,null,null,null,null,null,null,null,null,null,null,null,null,null,null,null,null,null,null,null,null,null,null,null,null,null,null,null,null,null,null,null,null,null,null,null,-1.8125979166666668,null,null,null,null,null,null,null,null,null,null,null,null,null,null,null,null,null,null,null,null,null,null,null,null,null,null,null,null,null,null,null,null,null,null,null,null,null,null,null,null,null,null,null,null,null,null,null,null,null,null,null,null,null,null,null,null,null,null,null,null,null,null,null,null,null,null,null,null,null,null,null,null,null,null,null,null,null,null,null,null,null,null,null,null,null,null,null,null,null,null,null,null,null,null,null,null,{"$f":"$C$203","v":30}]
[65,"Bin_Paracutaco_x65",null,null,"Não",null,null,null,null,1,null,null,null,null,null,null,null,null,null,null,null,null,null,null,null,null,null,null,null,null,null,null,null,null,null,null,null,null,null,null,null,null,null,null,null,null,null,null,null,null,null,null,null,null,null,null,null,null,null,null,null,null,null,null,null,null,null,null,null,null,null,null,-1.7941708333333333,null,null,null,null,null,null,null,null,null,null,null,null,null,null,null,null,null,null,null,null,null,null,null,null,null,null,null,null,null,null,null,null,null,null,null,null,null,null,null,null,null,null,null,null,null,null,null,null,null,null,null,null,null,null,null,null,null,null,null,null,null,null,null,null,null,null,null,null,null,null,null,null,null,null,null,null,null,null,null,null,null,null,null,null,null,null,null,null,null,null,null,null,null,null,null,null,{"$f":"$C$203","v":30}]
[66,"Bin_Seringa_x66",null,null,"Não",null,null,null,null,1,null,null,null,null,null,null,null,null,null,null,null,null,null,null,null,null,null,null,null,null,null,null,null,null,null,null,null,null,null,null,null,null,null,null,null,null,null,null,null,null,null,null,null,null,null,null,null,null,null,null,null,null,null,null,null,null,null,null,null,null,null,null,null,-0.43156249999999996,null,null,null,null,null,null,null,null,null,null,null,null,null,null,null,null,null,null,null,null,null,null,null,null,null,null,null,null,null,null,null,null,null,null,null,null,null,null,null,null,null,null,null,null,null,null,null,null,null,null,null,null,null,null,null,null,null,null,null,null,null,null,null,null,null,null,null,null,null,null,null,null,null,null,null,null,null,null,null,null,null,null,null,null,null,null,null,null,null,null,null,null,null,null,null,null,{"$f":"$C$203","v":30}]
[67,"Bin_Sucupira-vermelha_x67",null,null,"Não",null,null,null,null,1,null,null,null,null,null,null,null,null,null,null,null,null,null,null,null,null,null,null,null,null,null,null,null,null,null,null,null,null,null,null,null,null,null,null,null,null,null,null,null,null,null,null,null,null,null,null,null,null,null,null,null,null,null,null,null,null,null,null,null,null,null,null,null,null,-1.03685,null,null,null,null,null,null,null,null,null,null,null,null,null,null,null,null,null,null,null,null,null,null,null,null,null,null,null,null,null,null,null,null,null,null,null,null,null,null,null,null,null,null,null,null,null,null,null,null,null,null,null,null,null,null,null,null,null,null,null,null,null,null,null,null,null,null,null,null,null,null,null,null,null,null,null,null,null,null,null,null,null,null,null,null,null,null,null,null,null,null,null,null,null,null,null,null,{"$f":"$C$203","v":30}]
[68,"Bin_Tanibuca_x68",null,null,{"$f":"IF(ROUND(F168,0)=1,\"Sim\",\"Não\")","v":"Não"},null,null,null,null,1,null,null,null,null,null,null,null,null,null,null,null,null,null,null,null,null,null,null,null,null,null,null,null,null,null,null,null,null,null,null,null,null,null,null,null,null,null,null,null,null,null,null,null,null,null,null,null,null,null,null,null,null,null,null,null,null,null,null,null,null,null,null,null,null,null,-2.1220895833333335,null,null,null,null,null,null,null,null,null,null,null,null,null,null,null,null,null,null,null,null,null,null,null,null,null,null,null,null,null,null,null,null,null,null,null,null,null,null,null,null,null,null,null,null,null,null,null,null,null,null,null,null,null,null,null,null,null,null,null,null,null,null,null,null,null,null,null,null,null,null,null,null,null,null,null,null,null,null,null,null,null,null,null,null,null,null,null,null,null,null,null,null,null,null,null,null,{"$f":"$C$203","v":30}]
[69,"Bin_Uchi_x69",null,null,"Não",null,null,null,null,1,null,null,null,null,null,null,null,null,null,null,null,null,null,null,null,null,null,null,null,null,null,null,null,null,null,null,null,null,null,null,null,null,null,null,null,null,null,null,null,null,null,null,null,null,null,null,null,null,null,null,null,null,null,null,null,null,null,null,null,null,null,null,null,null,null,null,-1.2421041666666668,null,null,null,null,null,null,null,null,null,null,null,null,null,null,null,null,null,null,null,null,null,null,null,null,null,null,null,null,null,null,null,null,null,null,null,null,null,null,null,null,null,null,null,null,null,null,null,null,null,null,null,null,null,null,null,null,null,null,null,null,null,null,null,null,null,null,null,null,null,null,null,null,null,null,null,null,null,null,null,null,null,null,null,null,null,null,null,null,null,null,null,null,null,null,null,null,{"$f":"$C$203","v":30}]
[70,"Bin_Uchi-coroa_x70",null,null,"Não",null,null,null,null,1,null,null,null,null,null,null,null,null,null,null,null,null,null,null,null,null,null,null,null,null,null,null,null,null,null,null,null,null,null,null,null,null,null,null,null,null,null,null,null,null,null,null,null,null,null,null,null,null,null,null,null,null,null,null,null,null,null,null,null,null,null,null,null,null,null,null,null,-0.39405625,null,null,null,null,null,null,null,null,null,null,null,null,null,null,null,null,null,null,null,null,null,null,null,null,null,null,null,null,null,null,null,null,null,null,null,null,null,null,null,null,null,null,null,null,null,null,null,null,null,null,null,null,null,null,null,null,null,null,null,null,null,null,null,null,null,null,null,null,null,null,null,null,null,null,null,null,null,null,null,null,null,null,null,null,null,null,null,null,null,null,null,null,null,null,null,null,{"$f":"$C$203","v":30}]
[71,"Bin_Uchirana_x71",null,null,"Não",null,null,null,null,1,null,null,null,null,null,null,null,null,null,null,null,null,null,null,null,null,null,null,null,null,null,null,null,null,null,null,null,null,null,null,null,null,null,null,null,null,null,null,null,null,null,null,null,null,null,null,null,null,null,null,null,null,null,null,null,null,null,null,null,null,null,null,null,null,null,null,null,null,-0.90888125000000008,null,null,null,null,null,null,null,null,null,null,null,null,null,null,null,null,null,null,null,null,null,null,null,null,null,null,null,null,null,null,null,null,null,null,null,null,null,null,null,null,null,null,null,null,null,null,null,null,null,null,null,null,null,null,null,null,null,null,null,null,null,null,null,null,null,null,null,null,null,null,null,null,null,null,null,null,null,null,null,null,null,null,null,null,null,null,null,null,null,null,null,null,null,null,null,null,{"$f":"$C$203","v":30}]
[72,"Bin_Urucurana_x72",null,null,"Não",null,null,null,null,1,null,null,null,null,null,null,null,null,null,null,null,null,null,null,null,null,null,null,null,null,null,null,null,null,null,null,null,null,null,null,null,null,null,null,null,null,null,null,null,null,null,null,null,null,null,null,null,null,null,null,null,null,null,null,null,null,null,null,null,null,null,null,null,null,null,null,null,null,null,-0.55942708333333335,null,null,null,null,null,null,null,null,null,null,null,null,null,null,null,null,null,null,null,null,null,null,null,null,null,null,null,null,null,null,null,null,null,null,null,null,null,null,null,null,null,null,null,null,null,null,null,null,null,null,null,null,null,null,null,null,null,null,null,null,null,null,null,null,null,null,null,null,null,null,null,null,null,null,null,null,null,null,null,null,null,null,null,null,null,null,null,null,null,null,null,null,null,null,null,null,{"$f":"$C$203","v":30}]
[73,"Bin_Abacatearana _x73",null,null,"Não",null,null,null,null,1,null,null,null,null,null,null,null,null,null,null,null,null,null,null,null,null,null,null,null,null,null,null,null,null,null,null,null,null,null,null,null,null,null,null,null,null,null,null,null,null,null,null,null,null,null,null,null,null,null,null,null,null,null,null,null,null,null,null,null,null,null,null,null,null,null,null,null,null,null,null,-0.43327291666666667,null,null,null,null,null,null,null,null,null,null,null,null,null,null,null,null,null,null,null,null,null,null,null,null,null,null,null,null,null,null,null,null,null,null,null,null,null,null,null,null,null,null,null,null,null,null,null,null,null,null,null,null,null,null,null,null,null,null,null,null,null,null,null,null,null,null,null,null,null,null,null,null,null,null,null,null,null,null,null,null,null,null,null,null,null,null,null,null,null,null,null,null,null,null,null,null,{"$f":"$C$203","v":30}]
[74,"Bin_Abiu_x74",null,null,"Não",null,null,null,null,1,null,null,null,null,null,null,null,null,null,null,null,null,null,null,null,null,null,null,null,null,null,null,null,null,null,null,null,null,null,null,null,null,null,null,null,null,null,null,null,null,null,null,null,null,null,null,null,null,null,null,null,null,null,null,null,null,null,null,null,null,null,null,null,null,null,null,null,null,null,null,null,-7.0386083333333325,null,null,null,null,null,null,null,null,null,null,null,null,null,null,null,null,null,null,null,null,null,null,null,null,null,null,null,null,null,null,null,null,null,null,null,null,null,null,null,null,null,null,null,null,null,null,null,null,null,null,null,null,null,null,null,null,null,null,null,null,null,null,null,null,null,null,null,null,null,null,null,null,null,null,null,null,null,null,null,null,null,null,null,null,null,null,null,null,null,null,null,null,null,null,null,null,{"$f":"$C$203","v":30}]
[75,"Bin_Abiu-branco_x75",null,null,"Não",null,null,null,null,1,null,null,null,null,null,null,null,null,null,null,null,null,null,null,null,null,null,null,null,null,null,null,null,null,null,null,null,null,null,null,null,null,null,null,null,null,null,null,null,null,null,null,null,null,null,null,null,null,null,null,null,null,null,null,null,null,null,null,null,null,null,null,null,null,null,null,null,null,null,null,null,null,-0.1178125,null,null,null,null,null,null,null,null,null,null,null,null,null,null,null,null,null,null,null,null,null,null,null,null,null,null,null,null,null,null,null,null,null,null,null,null,null,null,null,null,null,null,null,null,null,null,null,null,null,null,null,null,null,null,null,null,null,null,null,null,null,null,null,null,null,null,null,null,null,null,null,null,null,null,null,null,null,null,null,null,null,null,null,null,null,null,null,null,null,null,null,null,null,null,null,null,{"$f":"$C$203","v":30}]
[76,"Bin_Abiurana-Vermelha_x76",null,null,"Não",null,null,null,null,1,null,null,null,null,null,null,null,null,null,null,null,null,null,null,null,null,null,null,null,null,null,null,null,null,null,null,null,null,null,null,null,null,null,null,null,null,null,null,null,null,null,null,null,null,null,null,null,null,null,null,null,null,null,null,null,null,null,null,null,null,null,null,null,null,null,null,null,null,null,null,null,null,null,-0.31082291666666667,null,null,null,null,null,null,null,null,null,null,null,null,null,null,null,null,null,null,null,null,null,null,null,null,null,null,null,null,null,null,null,null,null,null,null,null,null,null,null,null,null,null,null,null,null,null,null,null,null,null,null,null,null,null,null,null,null,null,null,null,null,null,null,null,null,null,null,null,null,null,null,null,null,null,null,null,null,null,null,null,null,null,null,null,null,null,null,null,null,null,null,null,null,null,null,null,{"$f":"$C$203","v":30}]
[77,"Bin_Abiu-vermelho_x77",null,null,"Não",null,null,null,null,1,null,null,null,null,null,null,null,null,null,null,null,null,null,null,null,null,null,null,null,null,null,null,null,null,null,null,null,null,null,null,null,null,null,null,null,null,null,null,null,null,null,null,null,null,null,null,null,null,null,null,null,null,null,null,null,null,null,null,null,null,null,null,null,null,null,null,null,null,null,null,null,null,null,null,-0.45685833333333331,null,null,null,null,null,null,null,null,null,null,null,null,null,null,null,null,null,null,null,null,null,null,null,null,null,null,null,null,null,null,null,null,null,null,null,null,null,null,null,null,null,null,null,null,null,null,null,null,null,null,null,null,null,null,null,null,null,null,null,null,null,null,null,null,null,null,null,null,null,null,null,null,null,null,null,null,null,null,null,null,null,null,null,null,null,null,null,null,null,null,null,null,null,null,null,null,{"$f":"$C$203","v":30}]
[78,"Bin_Amarelinho_x78",null,null,"Não",null,null,null,null,1,null,null,null,null,null,null,null,null,null,null,null,null,null,null,null,null,null,null,null,null,null,null,null,null,null,null,null,null,null,null,null,null,null,null,null,null,null,null,null,null,null,null,null,null,null,null,null,null,null,null,null,null,null,null,null,null,null,null,null,null,null,null,null,null,null,null,null,null,null,null,null,null,null,null,null,-1.2773770833333331,null,null,null,null,null,null,null,null,null,null,null,null,null,null,null,null,null,null,null,null,null,null,null,null,null,null,null,null,null,null,null,null,null,null,null,null,null,null,null,null,null,null,null,null,null,null,null,null,null,null,null,null,null,null,null,null,null,null,null,null,null,null,null,null,null,null,null,null,null,null,null,null,null,null,null,null,null,null,null,null,null,null,null,null,null,null,null,null,null,null,null,null,null,null,null,null,{"$f":"$C$203","v":30}]
[79,"Bin_Angelim-fava_x79",null,null,"Não",null,null,null,null,1,null,null,null,null,null,null,null,null,null,null,null,null,null,null,null,null,null,null,null,null,null,null,null,null,null,null,null,null,null,null,null,null,null,null,null,null,null,null,null,null,null,null,null,null,null,null,null,null,null,null,null,null,null,null,null,null,null,null,null,null,null,null,null,null,null,null,null,null,null,null,null,null,null,null,null,null,-0.80108958333333335,null,null,null,null,null,null,null,null,null,null,null,null,null,null,null,null,null,null,null,null,null,null,null,null,null,null,null,null,null,null,null,null,null,null,null,null,null,null,null,null,null,null,null,null,null,null,null,null,null,null,null,null,null,null,null,null,null,null,null,null,null,null,null,null,null,null,null,null,null,null,null,null,null,null,null,null,null,null,null,null,null,null,null,null,null,null,null,null,null,null,null,null,null,null,null,null,{"$f":"$C$203","v":30}]
[81,"Bin_Arura-branco_x81",null,null,"Não",null,null,null,null,1,null,null,null,null,null,null,null,null,null,null,null,null,null,null,null,null,null,null,null,null,null,null,null,null,null,null,null,null,null,null,null,null,null,null,null,null,null,null,null,null,null,null,null,null,null,null,null,null,null,null,null,null,null,null,null,null,null,null,null,null,null,null,null,null,null,null,null,null,null,null,null,null,null,null,null,null,null,-1.0151166666666667,null,null,null,null,null,null,null,null,null,null,null,null,null,null,null,null,null,null,null,null,null,null,null,null,null,null,null,null,null,null,null,null,null,null,null,null,null,null,null,null,null,null,null,null,null,null,null,null,null,null,null,null,null,null,null,null,null,null,null,null,null,null,null,null,null,null,null,null,null,null,null,null,null,null,null,null,null,null,null,null,null,null,null,null,null,null,null,null,null,null,null,null,null,null,null,null,{"$f":"$C$203","v":30}]
[82,"Bin_Balata-casca-grossa_x82",null,null,"Não",null,null,null,null,1,null,null,null,null,null,null,null,null,null,null,null,null,null,null,null,null,null,null,null,null,null,null,null,null,null,null,null,null,null,null,null,null,null,null,null,null,null,null,null,null,null,null,null,null,null,null,null,null,null,null,null,null,null,null,null,null,null,null,null,null,null,null,null,null,null,null,null,null,null,null,null,null,null,null,null,null,null,null,-0.18902291666666665,null,null,null,null,null,null,null,null,null,null,null,null,null,null,null,null,null,null,null,null,null,null,null,null,null,null,null,null,null,null,null,null,null,null,null,null,null,null,null,null,null,null,null,null,null,null,null,null,null,null,null,null,null,null,null,null,null,null,null,null,null,null,null,null,null,null,null,null,null,null,null,null,null,null,null,null,null,null,null,null,null,null,null,null,null,null,null,null,null,null,null,null,null,null,null,null,{"$f":"$C$203","v":30}]
[83,"Bin_Balatinha_x83",null,null,"Não",null,null,null,null,1,null,null,null,null,null,null,null,null,null,null,null,null,null,null,null,null,null,null,null,null,null,null,null,null,null,null,null,null,null,null,null,null,null,null,null,null,null,null,null,null,null,null,null,null,null,null,null,null,null,null,null,null,null,null,null,null,null,null,null,null,null,null,null,null,null,null,null,null,null,null,null,null,null,null,null,null,null,null,null,-0.35240208333333334,null,null,null,null,null,null,null,null,null,null,null,null,null,null,null,null,null,null,null,null,null,null,null,null,null,null,null,null,null,null,null,null,null,null,null,null,null,null,null,null,null,null,null,null,null,null,null,null,null,null,null,null,null,null,null,null,null,null,null,null,null,null,null,null,null,null,null,null,null,null,null,null,null,null,null,null,null,null,null,null,null,null,null,null,null,null,null,null,null,null,null,null,null,null,null,null,{"$f":"$C$203","v":30}]
[84,"Bin_Caju-açu_x84",null,null,"Não",null,null,null,null,1,null,null,null,null,null,null,null,null,null,null,null,null,null,null,null,null,null,null,null,null,null,null,null,null,null,null,null,null,null,null,null,null,null,null,null,null,null,null,null,null,null,null,null,null,null,null,null,null,null,null,null,null,null,null,null,null,null,null,null,null,null,null,null,null,null,null,null,null,null,null,null,null,null,null,null,null,null,null,null,null,-0.50876874999999999,null,null,null,null,null,null,null,null,null,null,null,null,null,null,null,null,null,null,null,null,null,null,null,null,null,null,null,null,null,null,null,null,null,null,null,null,null,null,null,null,null,null,null,null,null,null,null,null,null,null,null,null,null,null,null,null,null,null,null,null,null,null,null,null,null,null,null,null,null,null,null,null,null,null,null,null,null,null,null,null,null,null,null,null,null,null,null,null,null,null,null,null,null,null,null,null,{"$f":"$C$203","v":30}]
[86,"Bin_Caju-preto_x86",null,null,"Não",null,null,null,null,1,null,null,null,null,null,null,null,null,null,null,null,null,null,null,null,null,null,null,null,null,null,null,null,null,null,null,null,null,null,null,null,null,null,null,null,null,null,null,null,null,null,null,null,null,null,null,null,null,null,null,null,null,null,null,null,null,null,null,null,null,null,null,null,null,null,null,null,null,null,null,null,null,null,null,null,null,null,null,null,null,null,-0.5589291666666667,null,null,null,null,null,null,null,null,null,null,null,null,null,null,null,null,null,null,null,null,null,null,null,null,null,null,null,null,null,null,null,null,null,null,null,null,null,null,null,null,null,null,null,null,null,null,null,null,null,null,null,null,null,null,null,null,null,null,null,null,null,null,null,null,null,null,null,null,null,null,null,null,null,null,null,null,null,null,null,null,null,null,null,null,null,null,null,null,null,null,null,null,null,null,null,null,{"$f":"$C$203","v":30}]
[88,"Bin_Capitiú_x88",null,null,"Não",null,null,null,null,1,null,null,null,null,null,null,null,null,null,null,null,null,null,null,null,null,null,null,null,null,null,null,null,null,null,null,null,null,null,null,null,null,null,null,null,null,null,null,null,null,null,null,null,null,null,null,null,null,null,null,null,null,null,null,null,null,null,null,null,null,null,null,null,null,null,null,null,null,null,null,null,null,null,null,null,null,null,null,null,null,null,null,-0.13052916666666667,null,null,null,null,null,null,null,null,null,null,null,null,null,null,null,null,null,null,null,null,null,null,null,null,null,null,null,null,null,null,null,null,null,null,null,null,null,null,null,null,null,null,null,null,null,null,null,null,null,null,null,null,null,null,null,null,null,null,null,null,null,null,null,null,null,null,null,null,null,null,null,null,null,null,null,null,null,null,null,null,null,null,null,null,null,null,null,null,null,null,null,null,null,null,null,null,{"$f":"$C$203","v":30}]
[89,"Bin_Caramuri_x89",null,null,"Não",null,null,null,null,1,null,null,null,null,null,null,null,null,null,null,null,null,null,null,null,null,null,null,null,null,null,null,null,null,null,null,null,null,null,null,null,null,null,null,null,null,null,null,null,null,null,null,null,null,null,null,null,null,null,null,null,null,null,null,null,null,null,null,null,null,null,null,null,null,null,null,null,null,null,null,null,null,null,null,null,null,null,null,null,null,null,null,null,-2.0871041666666668,null,null,null,null,null,null,null,null,null,null,null,null,null,null,null,null,null,null,null,null,null,null,null,null,null,null,null,null,null,null,null,null,null,null,null,null,null,null,null,null,null,null,null,null,null,null,null,null,null,null,null,null,null,null,null,null,null,null,null,null,null,null,null,null,null,null,null,null,null,null,null,null,null,null,null,null,null,null,null,null,null,null,null,null,null,null,null,null,null,null,null,null,null,null,null,null,{"$f":"$C$203","v":30}]
[90,"Bin_Carapanaúba_x90",null,null,"Não",null,null,null,null,1,null,null,null,null,null,null,null,null,null,null,null,null,null,null,null,null,null,null,null,null,null,null,null,null,null,null,null,null,null,null,null,null,null,null,null,null,null,null,null,null,null,null,null,null,null,null,null,null,null,null,null,null,null,null,null,null,null,null,null,null,null,null,null,null,null,null,null,null,null,null,null,null,null,null,null,null,null,null,null,null,null,null,null,null,-3.3979395833333328,null,null,null,null,null,null,null,null,null,null,null,null,null,null,null,null,null,null,null,null,null,null,null,null,null,null,null,null,null,null,null,null,null,null,null,null,null,null,null,null,null,null,null,null,null,null,null,null,null,null,null,null,null,null,null,null,null,null,null,null,null,null,null,null,null,null,null,null,null,null,null,null,null,null,null,null,null,null,null,null,null,null,null,null,null,null,null,null,null,null,null,null,null,null,null,null,{"$f":"$C$203","v":30}]
[91,"Bin_Fava_x91",null,null,"Não",null,null,null,null,1,null,null,null,null,null,null,null,null,null,null,null,null,null,null,null,null,null,null,null,null,null,null,null,null,null,null,null,null,null,null,null,null,null,null,null,null,null,null,null,null,null,null,null,null,null,null,null,null,null,null,null,null,null,null,null,null,null,null,null,null,null,null,null,null,null,null,null,null,null,null,null,null,null,null,null,null,null,null,null,null,null,null,null,null,null,-0.13508333333333333,null,null,null,null,null,null,null,null,null,null,null,null,null,null,null,null,null,null,null,null,null,null,null,null,null,null,null,null,null,null,null,null,null,null,null,null,null,null,null,null,null,null,null,null,null,null,null,null,null,null,null,null,null,null,null,null,null,null,null,null,null,null,null,null,null,null,null,null,null,null,null,null,null,null,null,null,null,null,null,null,null,null,null,null,null,null,null,null,null,null,null,null,null,null,null,null,{"$f":"$C$203","v":30}]
[92,"Bin_Fava-amargosa_x92",null,null,"Não",null,null,null,null,1,null,null,null,null,null,null,null,null,null,null,null,null,null,null,null,null,null,null,null,null,null,null,null,null,null,null,null,null,null,null,null,null,null,null,null,null,null,null,null,null,null,null,null,null,null,null,null,null,null,null,null,null,null,null,null,null,null,null,null,null,null,null,null,null,null,null,null,null,null,null,null,null,null,null,null,null,null,null,null,null,null,null,null,null,null,null,-1.2350374999999998,null,null,null,null,null,null,null,null,null,null,null,null,null,null,null,null,null,null,null,null,null,null,null,null,null,null,null,null,null,null,null,null,null,null,null,null,null,null,null,null,null,null,null,null,null,null,null,null,null,null,null,null,null,null,null,null,null,null,null,null,null,null,null,null,null,null,null,null,null,null,null,null,null,null,null,null,null,null,null,null,null,null,null,null,null,null,null,null,null,null,null,null,null,null,null,null,{"$f":"$C$203","v":30}]
[93,"Bin_Fava-bengué_x93",null,null,"Não",null,null,null,null,1,null,null,null,null,null,null,null,null,null,null,null,null,null,null,null,null,null,null,null,null,null,null,null,null,null,null,null,null,null,null,null,null,null,null,null,null,null,null,null,null,null,null,null,null,null,null,null,null,null,null,null,null,null,null,null,null,null,null,null,null,null,null,null,null,null,null,null,null,null,null,null,null,null,null,null,null,null,null,null,null,null,null,null,null,null,null,null,-0.59096250000000006,null,null,null,null,null,null,null,null,null,null,null,null,null,null,null,null,null,null,null,null,null,null,null,null,null,null,null,null,null,null,null,null,null,null,null,null,null,null,null,null,null,null,null,null,null,null,null,null,null,null,null,null,null,null,null,null,null,null,null,null,null,null,null,null,null,null,null,null,null,null,null,null,null,null,null,null,null,null,null,null,null,null,null,null,null,null,null,null,null,null,null,null,null,null,null,null,{"$f":"$C$203","v":30}]
[94,"Bin_Fava-bolacha_x94",null,null,"Não",null,null,null,null,1,null,null,null,null,null,null,null,null,null,null,null,null,null,null,null,null,null,null,null,null,null,null,null,null,null,null,null,null,null,null,null,null,null,null,null,null,null,null,null,null,null,null,null,null,null,null,null,null,null,null,null,null,null,null,null,null,null,null,null,null,null,null,null,null,null,null,null,null,null,null,null,null,null,null,null,null,null,null,null,null,null,null,null,null,null,null,null,null,-1.9822520833333335,null,null,null,null,null,null,null,null,null,null,null,null,null,null,null,null,null,null,null,null,null,null,null,null,null,null,null,null,null,null,null,null,null,null,null,null,null,null,null,null,null,null,null,null,null,null,null,null,null,null,null,null,null,null,null,null,null,null,null,null,null,null,null,null,null,null,null,null,null,null,null,null,null,null,null,null,null,null,null,null,null,null,null,null,null,null,null,null,null,null,null,null,null,null,null,null,{"$f":"$C$203","v":30}]
[96,"Bin_João-mole_x96",null,null,"Não",null,null,null,null,1,null,null,null,null,null,null,null,null,null,null,null,null,null,null,null,null,null,null,null,null,null,null,null,null,null,null,null,null,null,null,null,null,null,null,null,null,null,null,null,null,null,null,null,null,null,null,null,null,null,null,null,null,null,null,null,null,null,null,null,null,null,null,null,null,null,null,null,null,null,null,null,null,null,null,null,null,null,null,null,null,null,null,null,null,null,null,null,null,null,-0.11451249999999999,null,null,null,null,null,null,null,null,null,null,null,null,null,null,null,null,null,null,null,null,null,null,null,null,null,null,null,null,null,null,null,null,null,null,null,null,null,null,null,null,null,null,null,null,null,null,null,null,null,null,null,null,null,null,null,null,null,null,null,null,null,null,null,null,null,null,null,null,null,null,null,null,null,null,null,null,null,null,null,null,null,null,null,null,null,null,null,null,null,null,null,null,null,null,null,null,{"$f":"$C$203","v":30}]
[97,"Bin_Macucu_x97",null,null,"Não",null,null,null,null,1,null,null,null,null,null,null,null,null,null,null,null,null,null,null,null,null,null,null,null,null,null,null,null,null,null,null,null,null,null,null,null,null,null,null,null,null,null,null,null,null,null,null,null,null,null,null,null,null,null,null,null,null,null,null,null,null,null,null,null,null,null,null,null,null,null,null,null,null,null,null,null,null,null,null,null,null,null,null,null,null,null,null,null,null,null,null,null,null,null,null,-4.179302083333333,null,null,null,null,null,null,null,null,null,null,null,null,null,null,null,null,null,null,null,null,null,null,null,null,null,null,null,null,null,null,null,null,null,null,null,null,null,null,null,null,null,null,null,null,null,null,null,null,null,null,null,null,null,null,null,null,null,null,null,null,null,null,null,null,null,null,null,null,null,null,null,null,null,null,null,null,null,null,null,null,null,null,null,null,null,null,null,null,null,null,null,null,null,null,null,null,{"$f":"$C$203","v":30}]
[98,"Bin_Macucu-casca-grossa_x98",null,null,"Não",null,null,null,null,1,null,null,null,null,null,null,null,null,null,null,null,null,null,null,null,null,null,null,null,null,null,null,null,null,null,null,null,null,null,null,null,null,null,null,null,null,null,null,null,null,null,null,null,null,null,null,null,null,null,null,null,null,null,null,null,null,null,null,null,null,null,null,null,null,null,null,null,null,null,null,null,null,null,null,null,null,null,null,null,null,null,null,null,null,null,null,null,null,null,null,null,-0.26663749999999997,null,null,null,null,null,null,null,null,null,null,null,null,null,null,null,null,null,null,null,null,null,null,null,null,null,null,null,null,null,null,null,null,null,null,null,null,null,null,null,null,null,null,null,null,null,null,null,null,null,null,null,null,null,null,null,null,null,null,null,null,null,null,null,null,null,null,null,null,null,null,null,null,null,null,null,null,null,null,null,null,null,null,null,null,null,null,null,null,null,null,null,null,null,null,null,null,{"$f":"$C$203","v":30}]
[100,"Bin_Parapará_x100",null,null,"Não",null,null,null,null,1,null,null,null,null,null,null,null,null,null,null,null,null,null,null,null,null,null,null,null,null,null,null,null,null,null,null,null,null,null,null,null,null,null,null,null,null,null,null,null,null,null,null,null,null,null,null,null,null,null,null,null,null,null,null,null,null,null,null,null,null,null,null,null,null,null,null,null,null,null,null,null,null,null,null,null,null,null,null,null,null,null,null,null,null,null,null,null,null,null,null,null,null,-0.1114875,null,null,null,null,null,null,null,null,null,null,null,null,null,null,null,null,null,null,null,null,null,null,null,null,null,null,null,null,null,null,null,null,null,null,null,null,null,null,null,null,null,null,null,null,null,null,null,null,null,null,null,null,null,null,null,null,null,null,null,null,null,null,null,null,null,null,null,null,null,null,null,null,null,null,null,null,null,null,null,null,null,null,null,null,null,null,null,null,null,null,null,null,null,null,null,null,{"$f":"$C$203","v":30}]
[101,"Bin_Paricá_x101",null,null,"Não",null,null,null,null,1,null,null,null,null,null,null,null,null,null,null,null,null,null,null,null,null,null,null,null,null,null,null,null,null,null,null,null,null,null,null,null,null,null,null,null,null,null,null,null,null,null,null,null,null,null,null,null,null,null,null,null,null,null,null,null,null,null,null,null,null,null,null,null,null,null,null,null,null,null,null,null,null,null,null,null,null,null,null,null,null,null,null,null,null,null,null,null,null,null,null,null,null,null,-1.5400458333333336,null,null,null,null,null,null,null,null,null,null,null,null,null,null,null,null,null,null,null,null,null,null,null,null,null,null,null,null,null,null,null,null,null,null,null,null,null,null,null,null,null,null,null,null,null,null,null,null,null,null,null,null,null,null,null,null,null,null,null,null,null,null,null,null,null,null,null,null,null,null,null,null,null,null,null,null,null,null,null,null,null,null,null,null,null,null,null,null,null,null,null,null,null,null,null,null,{"$f":"$C$203","v":30}]
[102,"Bin_Pequiá-marfim_x102",null,null,"Não",null,null,null,null,1,null,null,null,null,null,null,null,null,null,null,null,null,null,null,null,null,null,null,null,null,null,null,null,null,null,null,null,null,null,null,null,null,null,null,null,null,null,null,null,null,null,null,null,null,null,null,null,null,null,null,null,null,null,null,null,null,null,null,null,null,null,null,null,null,null,null,null,null,null,null,null,null,null,null,null,null,null,null,null,null,null,null,null,null,null,null,null,null,null,null,null,null,null,null,-0.34786041666666667,null,null,null,null,null,null,null,null,null,null,null,null,null,null,null,null,null,null,null,null,null,null,null,null,null,null,null,null,null,null,null,null,null,null,null,null,null,null,null,null,null,null,null,null,null,null,null,null,null,null,null,null,null,null,null,null,null,null,null,null,null,null,null,null,null,null,null,null,null,null,null,null,null,null,null,null,null,null,null,null,null,null,null,null,null,null,null,null,null,null,null,null,null,null,null,null,{"$f":"$C$203","v":30}]
[103,"Bin_Tapuruzeiro_x103",null,null,"Não",null,null,null,null,1,null,null,null,null,null,null,null,null,null,null,null,null,null,null,null,null,null,null,null,null,null,null,null,null,null,null,null,null,null,null,null,null,null,null,null,null,null,null,null,null,null,null,null,null,null,null,null,null,null,null,null,null,null,null,null,null,null,null,null,null,null,null,null,null,null,null,null,null,null,null,null,null,null,null,null,null,null,null,null,null,null,null,null,null,null,null,null,null,null,null,null,null,null,null,null,-0.11896666666666667,null,null,null,null,null,null,null,null,null,null,null,null,null,null,null,null,null,null,null,null,null,null,null,null,null,null,null,null,null,null,null,null,null,null,null,null,null,null,null,null,null,null,null,null,null,null,null,null,null,null,null,null,null,null,null,null,null,null,null,null,null,null,null,null,null,null,null,null,null,null,null,null,null,null,null,null,null,null,null,null,null,null,null,null,null,null,null,null,null,null,null,null,null,null,null,null,{"$f":"$C$203","v":30}]
[104,"Bin_Timborana_x104",null,null,"Não",null,null,null,null,1,null,null,null,null,null,null,null,null,null,null,null,null,null,null,null,null,null,null,null,null,null,null,null,null,null,null,null,null,null,null,null,null,null,null,null,null,null,null,null,null,null,null,null,null,null,null,null,null,null,null,null,null,null,null,null,null,null,null,null,null,null,null,null,null,null,null,null,null,null,null,null,null,null,null,null,null,null,null,null,null,null,null,null,null,null,null,null,null,null,null,null,null,null,null,null,null,-0.6975020833333333,null,null,null,null,null,null,null,null,null,null,null,null,null,null,null,null,null,null,null,null,null,null,null,null,null,null,null,null,null,null,null,null,null,null,null,null,null,null,null,null,null,null,null,null,null,null,null,null,null,null,null,null,null,null,null,null,null,null,null,null,null,null,null,null,null,null,null,null,null,null,null,null,null,null,null,null,null,null,null,null,null,null,null,null,null,null,null,null,null,null,null,null,null,null,null,null,{"$f":"$C$203","v":30}]
[null,"VT",null,null,"VT:",null,null,-1,1]
[null,null,null,null,null,null,null,{"$f":"SUMPRODUCT(F6:F102,H6:H102)+F200*H200","v":0},{"$f":"F200*I200","v":0},{"$f":"SUMPRODUCT($F$103:$F$199,J103:J199)","v":0},{"$f":"SUMPRODUCT($F$6:$F$199,K6:K199)","v":0},{"$f":"SUMPRODUCT($F$6:$F$199,L6:L199)","v":0},0,0,0,0,0,0,0,0,0,0,0,0,0,0,0,0,0,0,0,0,0,0,0,0,0,0,0,0,0,0,0,0,0,0,0,0,0,0,0,0,0,0,0,0,0,0,0,0,0,0,0,0,0,0,0,0,0,0,0,0,0,0,0,{"$f":"SUMPRODUCT($F$6:$F$199,BX6:BX199)","v":0},0,0,0,0,0,0,0,0,0,0,0,0,0,0,0,0,0,0,0,0,0,0,0,0,0,0,0,0,0,0,0,0,0,0,0,0,0,0,0,0,0,0,0,0,0,0,0,0,0,0,0,0,0,0,0,0,0,0,0,0,0,0,0,{"$f":"SUMPRODUCT($F$6:$F$199,EJ6:EJ199)","v":0},0,0,0,0,0,0,0,0,0,0,0,0,0,0,0,0,0,0,0,0,0,0,0,0,0,0,0,0,0,0,0,0,0,0,0,0,0,0,0,0,0,0,0,0,0,0,0,0,0,0,0,0,0,0,0,0,0,0,0,0,0,0,0,{"$f":"SUMPRODUCT($F$6:$F$199,GV6:GV199)","v":0}]
[null,null,null,null,null,null,null,"=","<=",">=","<=","<=","<=","<=","<=","<=","<=","<=","<=","<=","<=","<=","<=","<=","<=","<=","<=","<=","<=","<=","<=","<=","<=","<=","<=","<=","<=","<=","<=","<=","<=","<=","<=","<=","<=","<=","<=","<=","<=","<=","<=","<=","<=","<=","<=","<=","<=","<=","<=","<=","<=","<=","<=","<=","<=","<=","<=","<=","<=","<=","<=","<=","<=","<=","<=","<=","<=","<=","<=","<=","<=","<=","<=","<=","<=","<=","<=","<=","<=","<=","<=","<=","<=","<=","<=","<=","<=","<=","<=","<=","<=","<=","<=","<=","<=","<=","<=","<=","<=","<=","<=","<=","<=","<=","<=","<=","<=","<=","<=","<=","<=","<=","<=","<=","<=","<=","<=","<=","<=","<=","<=","<=","<=","<=","<=","<=","<=","<=","<=","<=","<=","<=","<=","<=","<=","<=","<=","<=","<=","<=","<=","<=","<=","<=","<=","<=","<=","<=","<=","<=","<=","<=","<=","<=","<=","<=","<=","<=","<=","<=","<=","<=","<=","<=","<=","<=","<=","<=","<=","<=","<=","<=","<=","<=","<=","<=","<=","<=","<=","<=","<=","<=","<=","<=","<=","<=","<=","<=","<=","<=","<=","<=","<=","<="]
[null,"Vol mín admissível (m3):",{"$f":"IF($B$2=\"Carga da UPA\",G2,J1*I203)","v":30},null,null,null,{"$f":"SUMPRODUCT($F$6:$F$102,G6:G102)","v":0},0,{"$f":"D1","v":30},{"$f":"D2","v":40},0,0,0,0,0,0,0,0,0,0,0,0,0,0,0,0,0,0,0,0,0,0,0,0,0,0,0,0,0,0,0,0,0,0,0,0,0,0,0,0,0,0,0,0,0,0,0,0,0,0,0,0,0,0,0,0,0,0,0,0,0,0,0,0,0,0,0,0,0,0,0,0,0,0,0,0,0,0,0,0,0,0,0,0,0,0,0,0,0,0,0,0,0,0,0,0,0,0,0,0,0,0,0,0,0,0,0,0,0,0,0,0,0,0,0,0,0,0,0,0,0,0,0,0,0,0,0,0,0,0,0,0,0,0,0,0,0,0,0,0,0,0,0,0,0,0,0,0,0,0,0,0,0,0,0,0,0,0,0,0,0,0,0,0,0,0,0,0,0,0,0,0,0,0,0,0,0,0,0,0,0,0,0,0,0,0,0,0,0,0,0,0,0,0]
[null," (1) ou (área da UPA):",{"$f":"IF($B$2=\"Carga da UPA\",-G1,-1)","v":-620}]
[]
[null,null,"Percentagem"]
[null,null,"Carga da UPA"]
[]
[]
[]
[]
[]
[]
[]
[]
[]
[]
[]
[]
[]
[]
[]
[]
[]
[]
[]
[]
[]
[]
[]
[]
[]
[]
[]
[]
[]
[]
[]
[]
[]
[]
[]
[]
[]
[]
[]
[]
[]
[]
[]
[]
[]
[]
[]
[]
[]
[]
[]
[]
[]
[]
[]
[]
[]
[]
[]
[]
[]
[]
[]
[]
[]
[]
[]
[]
[]
[]
[]
[]
[]
[]
[]
[]
[]
[]
[]
[]
[]
[]
[]
[]
[]
[]
[]
[]
[]
[]
[]
[null,20,25,30,35,40]
[9,3391.2549999999983,3391.2550000000087,3391.2550000000006,3391.2550000000033,3389.356812499992]
[10,3391.2549999999978,3391.2550000000097,3391.2549999999997,3391.2550000000037,3389.3568125000024]
[11,3391.2549999999997,3391.2550000000083,3391.2550000000028,3391.2550000000042,3389.3568124999829]
[12,3391.2549999999978,3391.2550000000097,3391.2550000000019,3391.2550000000047,3389.3568124999924]
[13,3391.2549999999974,3391.2550000000083,3391.2550000000001,3391.2550000000042,3389.3568124999902]
[14,3391.2549999999974,3391.2550000000087,3391.2550000000019,3391.2550000000042,3389.3568124999902]
[15,3391.2549999999983,3391.2550000000106,3391.2550000000015,3391.2550000000042,3389.3568124999983]
[16,3391.2549999999974,3391.2550000000106,3391.2550000000028,3391.2550000000065,3389.3568124999915]
[17,3391.2549999999974,3391.2550000000101,3391.2550000000024,3391.255000000006,3389.3568124999911]
[18,3391.2549999999983,3391.2550000000097,3391.2550000000019,3391.2550000000065,3389.3568124999965]
[19,3391.2549999999983,3391.2550000000101,3391.2550000000019,3391.2550000000065,3389.3568124999915]
[20,3391.2549999999974,3391.2550000000106,3391.2550000000024,3391.2550000000069,3389.3568124999906]
[21,3391.2549999999992,3391.2550000000106,3391.2550000000024,3391.2550000000078,3389.3568124999915]
[22,3391.2549999999978,3391.2550000000133,3391.2549999999937,3391.255000000006,3389.3568124999911]
[23,3391.2549999999956,3391.2550000000151,3391.2550000000028,3391.2550000000087,3389.3568124999906]
[24,3391.254999999996,3391.2550000000097,3391.255000000001,3391.2550000000037,3389.3568124999883]
[25,3391.2549999999901,3391.2550000000074,3391.2550000000033,3391.2550000000106,3389.3568124999874]
[26,3391.2549999999974,3391.255000000001,3391.2549999999856,3391.2550000000092,3389.3568124999906]
[27,3391.2550000000224,3391.2550000000106,3391.2550000000028,3391.255000000011,3389.3568125000006]
[28,3391.2549999999992,3391.2550000000224,3391.2550000000165,3391.2550000000115,3389.3568124999783]
[29,3391.2550000000083,3391.2550000000106,3391.2550000000092,3391.2550000000069,3389.3568124999838]
[30,3391.2550000000078,3391.2550000000033,3391.2550000000092,3391.2550000000128,3389.3568124999933]
[31,3391.2549999999983,3391.2550000000092,3391.2550000000065,3391.2550000000033,3389.356812499992]
[32,3391.2549999999992,3391.2550000000097,3391.2550000000056,3391.2550000000056,3389.356812499997]
[33,3391.2550000000092,3391.2550000000087,3391.2550000000078,3391.255000000006,3389.3568124999924]
[34,3391.2550000000288,3391.2550000000083,3391.2550000000069,3391.2550000000065,3389.3568124999892]
[35,3391.2550000000019,3391.2550000000119,3391.2550000000056,3391.2550000000078,3386.7761673387008]
[36,3391.2550000000001,3391.2550000000087,3391.2550000000074,3391.2550000000056,3384.195522177411]
[37,3391.2550000000006,3391.2550000000092,3391.2550000000056,3388.9969354838772,3381.6148770161212]
[38,3389.9646774193561,3389.6420967742019,3389.3195161290382,3386.7388709677502,3379.034231854831]
[39,3388.6743548387126,3388.0291935483988,3387.3840322580731,3384.4808064516219,3376.4535866935389]
[40,3387.3840322580636,3386.4162903225897,3385.4485483871017,3382.2227419354922,3373.8729415322478]
[41,3386.0937096774223,3384.8033870967829,3383.5130645161366,3379.9646774193648,3371.292296370958]
[42,3384.8033870967761,3383.1904838709756,3381.5775806451702,3377.7066129032346,3368.7116512096677]
[43,3383.5130645161294,3381.5775806451725,3379.6420967742019,3375.4485483871053,3366.1310060483765]
[44,3382.2227419354854,3379.9646774193639,3377.7066129032332,3373.1904838709765,3363.5503608870863]
[45,3380.9324193548405,3378.3517741935575,3375.7711290322673,3370.9324193548496,3360.9697157257929]
[46,3379.6420967741942,3376.7388709677507,3373.835645161299,3368.6743548387185,3358.3890705645085]
[47,3378.3517741935511,3375.1259677419439,3371.9001612903335,3366.4162903225906,3355.8084254032137]
[48,3377.0614516129053,3373.5130645161394,3369.9646774193593,3364.1582258064636,3353.2277802419362]
[49,3375.7711290322604,3371.9001612903344,3368.029193548397,3361.900161290333,3350.6471350806314]
[50,3374.4808064516142,3370.2872580645253,3366.0937096774305,3359.6420967742038,3348.0664899193425]
[51,3373.1904838709979,3368.6743548387199,3364.1582258064627,3357.384032258075,3345.4858447580509]
[52,3371.9001612903248,3367.0614516129135,3362.222741935494,3355.1259677419475,3342.9051995967643]
[53,3370.6098387096804,3365.4485483871085,3360.287258064528,3352.8679032258192,3340.3245544354718]
[54,3369.3195161290328,3363.8356451613013,3358.3517741935598,3350.6098387096877,3337.7439092741802]
[55,3368.0291935483901,3362.222741935494,3356.4162903225924,3348.3517741935598,3335.1632641128886]
[56,3366.7388709677448,3360.6098387096895,3354.4808064516242,3346.0937096774337,3332.5826189515988]
[57,3365.4485483870985,3358.9969354838809,3352.5453225806582,3343.8356451613035,3330.0019737903081]
[58,3364.1582258064527,3357.3840322580754,3350.6098387096904,3341.5775806451747,3327.4213286290174]
[59,3362.8679032258087,3355.77112903227,3348.6743548387244,3339.3195161290464,3324.8406834677266]
[60,3361.5775806451616,3354.1582258064636,3346.7388709677543,3337.061451612919,3322.2600383064378]
[61,3360.2872580645176,3352.5453225806546,3344.8033870967884,3334.8033870967906,3319.6793931451466]
[62,3358.9969354838736,3350.9324193548509,3342.8679032258206,3332.5453225806618,3317.0987479838554]
[63,3357.7066129032269,3349.3195161290432,3340.9324193548528,3330.2872580645317,3314.518102822562]
[64,3356.4162903225815,3347.7066129032378,3338.9969354838854,3328.0291935484015,3311.937457661274]
[65,3355.1259677419366,3346.093709677431,3337.0614516129162,3325.7711290322723,3309.3568124999824]
[66,3353.8356451612913,3344.4808064516255,3335.1259677419503,3323.5130645161425,3306.7761673386908]
[67,3352.5453225806468,3342.8679032258174,3333.190483870982,3321.255000000016,3304.1955221774006]
[68,3351.2550000000015,3341.2550000000119,3331.2550000000138,3318.9969354838863,3300.0019737903053]
[69,3349.9646774193561,3339.6420967742056,3329.3195161290464,3316.7388709677584,3295.8084254032069]
[70,3348.6743548387094,3338.0291935484001,3327.38403225808,3313.0695161290505,3291.6148770161085]
[71,3346.5775806451638,3335.4082258064623,3324.2388709677584,3309.4001612903403,3287.4213286290133]
[72,3344.4808064516137,3332.7872580645276,3321.0937096774346,3305.7308064516315,3283.2277802419162]
[73,3342.3840322580668,3330.1662903225933,3317.9485483871131,3302.0614516129212,3279.0342318548187]
[74,3340.2872580645189,3327.5453225806573,3314.8033870967897,3298.3920967742115,3274.8406834677216]
[75,3338.1904838709702,3324.9243548387221,3311.6582258064668,3294.7227419355013,3270.647135080625]
[76,3336.0937096774228,3322.3033870967874,3308.5130645161439,3291.053387096792,3266.4535866935275]
[77,3333.996935483874,3319.6824193548528,3305.3679032258219,3287.3840322580822,3262.26003830643]
[78,3331.9001612903253,3317.0614516129181,3302.2227419354986,3283.7146774193725,3258.066489919333]
[79,3329.8033870967774,3314.4404838709829,3299.0775806451761,3280.0453225806627,3253.8729415322364]
[80,3327.7066129032291,3311.8195161290478,3295.9324193548537,3276.375967741953,3249.6793931451398]
[81,3325.6098387096818,3309.1985483871126,3292.7872580645312,3272.7066129032428,3245.4858447580423]
[82,3323.5130645161335,3306.5775806451775,3289.6420967742083,3269.037258064533,3241.2922963709452]
[83,3321.4162903225856,3303.9566129032423,3286.4969354838859,3265.3679032258242,3237.0987479838482]
[84,3319.3195161290378,3301.3356451613063,3283.3517741935634,3261.6985483871149,3232.9051995967502]
[85,3317.222741935489,3298.7146774193711,3280.206612903241,3258.0291935484042,3228.7116512096536]
[86,3315.1259677419416,3296.0937096774355,3277.0614516129176,3254.3598387096949,3224.5181028225566]
[87,3313.0291935483929,3293.4727419355004,3273.9162903225956,3250.6904838709847,3220.32455443546]
[88,3310.9324193548441,3290.8517741935657,3270.7711290322723,3247.021129032275,3216.1310060483625]
[89,3308.8356451612967,3288.2308064516305,3267.6259677419494,3243.3517741935657,3211.9374576612654]
[90,3306.7388709677484,3285.6098387096954,3264.4808064516269,3239.6824193548559,3207.7439092741688]
[91,3304.6420967742001,3282.9888709677602,3261.3356451613045,3236.0130645161462,3203.5503608870713]
[92,3302.5453225806523,3280.3679032258251,3258.1904838709816,3232.3437096774364,3199.3568124999747]
[93,3300.448548387104,3277.7469354838904,3255.0453225806586,3228.6743548387267,3195.1632641128776]
[94,3298.3517741935561,3275.1259677419553,3251.9001612903362,3225.0050000000174,3190.9697157257806]
[95,3296.2550000000083,3272.5050000000201,3248.7550000000138,3221.3356451613076,359.03225806451684]
[96,3294.15822580646,3269.884032258085,3245.6098387096913,3217.6662903225979,359.03225806451684]
[97,3292.0614516129122,3267.2630645161498,3242.4646774193684,326.00806451612954,359.03225806451684]

{"sheet":"LEIA-ME","index":1,"n_rows":1,"n_cols":1,"rows_kept":1,"cut":false,"hidden":false,"merged":[]}
["LEI"]

{"sheet":"UMF1","index":2,"n_rows":93,"n_cols":13,"rows_kept":93,"cut":false,"hidden":false,"merged":[]}
["Área UMF1:",{"$f":"3000*30","v":90000}]
[null,"# de espécies","20 m3","25 m3","30 m3","35 m3","40 m3"]
[null,9,3391.2550000000174,3391.2549999999687,3391.2549999999692,3391.2549999999937,3391.2550000000124]
[null,10,3391.2550000000183,3391.2549999999728,3391.2549999999687,3391.2549999999937,3391.2550000000138]
[null,11,3391.2550000000178,3391.2549999999706,3391.2549999999669,3391.2549999999956,3391.2550000000119]
[null,12,3391.2550000000201,3391.2549999999701,3391.2549999999687,3391.2549999999933,3391.2550000000133]
[null,13,3391.2550000000169,3391.2549999999533,3391.2549999999696,3391.2549999999942,3391.2550000000147]
[null,14,3391.255000000097,3391.2549999999701,3391.2549999999696,3391.2549999999956,3391.2550000000128]
[null,15,3391.2550000000178,3391.254999999971,3391.2549999999687,3391.2549999999942,3391.2550000000138]
[null,16,3391.2550000000169,3391.2549999999692,3391.2549999999678,3391.2549999999942,3391.2550000000138]
[null,17,3391.2550000000174,3391.2549999999706,3391.2549999999669,3391.2549999999937,3391.2550000000147]
[null,18,3391.2550000000197,3391.2549999999719,3391.2549999999737,3391.2549999999942,3391.2550000000156]
[null,19,3391.2550000000183,3391.2549999999674,3391.2549999999624,3391.2549999999978,3391.2550000000138]
[null,20,3391.2550000000192,3391.2549999999733,3391.2549999999678,3391.2549999999951,3391.2550000000142]
[null,21,3391.2550000000174,3391.2549999999674,3391.2549999999587,3391.254999999996,3391.2550000000165]
[null,22,3391.2550000000169,3391.254999999971,3391.2549999999655,3391.2549999999956,3391.2550000000156]
[null,23,3391.2550000000197,3391.2549999999724,3391.2549999999528,3391.2549999999997,3391.2550000000197]
[null,24,3391.2550000000174,3391.2549999999433,3391.2549999999565,3391.2549999999896,3391.2550000000219]
[null,25,3391.2550000000165,3391.2549999999533,3391.2549999999883,3391.2549999999951,3391.2549999999842]
[null,26,3391.2550000001193,3391.2549999999842,3391.2549999999942,3391.2549999999947,3391.2549999999601]
[null,27,3391.2550000000178,3391.2549999999392,3391.2550000000124,3391.255000000127,3391.2550000000206]
[null,28,3391.2550000000169,3391.2550000000097,3391.2550000000033,3391.255000000001,3391.2550000000128]
[null,29,3391.2550000000147,3391.2549999999733,3391.2550000000224,3391.254999999976,3391.2550000000128]
[null,30,3391.2550000000169,3391.2549999999828,3391.2549999999956,3391.2549999999947,3391.2550000000047]
[null,31,3391.2550000000156,3391.2549999999733,3391.2550000000383,3391.254999999991,3391.2550000000142]
[null,32,3391.2550000000147,3391.2549999999746,3391.254999999971,3391.2550000000138,3391.2550000000151]
[null,33,3391.2550000000156,3391.254999999981,3391.2549999999301,3391.2549999999915,3391.2550000000138]
[null,34,3391.2550000000156,3391.2549999999551,3391.2550000000238,3391.2549999999928,3391.2550000000292]
[null,35,3391.2550000000292,3391.2549999999655,3391.2549999999696,3391.2549999999974,3391.2550000000115]
[null,36,3391.2550000000147,3391.254999999961,3391.2549999999728,3391.2549999999965,3391.2550000000101]
[null,37,3391.2550000000119,3391.2549999999892,3391.2549999999792,3391.2549999999983,3391.2550000000142,"Começa a reduzir volume das espécies valiosas, neste caso do segundo grupo em valor (90)"]
[null,38,3390.9883333333464,3390.9216666666389,3390.8549999999668,3390.7883333333307,3390.72166666668,{"$f":"C31-C32","v":0.26666666666551464},{"$f":"D31-D32","v":0.33333333335031057},0.40000000001236913,0.46666666666760648,{"$f":"G31-G32","v":0.53333333333421251}]
[null,39,3390.7216666666809,3390.5883333332959,3390.4549999999667,3390.3216666666631,3390.188333333344,{"$f":"C32-C33","v":0.26666666666551464},{"$f":"D32-D33","v":0.33333333334303461},{"$f":"E32-E33","v":0.40000000000009095},{"$f":"F32-F33","v":0.46666666666760648},{"$f":"G32-G33","v":0.5333333333360315}]
[null,40,3390.4550000000168,3390.2549999999715,3390.054999999968,3389.8549999999968,3389.6549999999966,0.2666666666641504,0.33333333332438997,0.39999999999872671,0.46666666666624224,0.53333333334740018]
[null,41,3390.1883333333462,3389.9216666666371,3389.6549999999647,3389.3883333333306,3389.1216666666814,0.26666666667051686,0.33333333333439441,0.40000000000327418,0.46666666666624224,0.53333333331511312]
[null,42,3389.9216666666821,3389.5883333333059,3389.2549999999596,3388.9216666666644,3388.588333333345,0.2666666666641504,0.33333333333121118,0.40000000000509317,0.46666666666624224,0.53333333333648625]
[null,43,3389.6550000000175,3389.2549999999701,3388.8549999999664,3388.4549999999999,3388.0550000000117,0.26666666666460515,0.33333333333575865,0.39999999999326974,0.46666666666442325,0.53333333333330302]
[null,44,3389.3883333333524,3388.9216666666393,3388.4549999999658,3387.9883333333491,3387.5216666666797,0.26666666666505989,0.33333333333075643,0.4000000000005457,0.46666666665078083,0.53333333333193877]
[null,45,3389.1216666666778,3388.588333333304,3388.0549999999657,3387.5216666666674,3386.9883333333464,{"$f":"C38-C39","v":0.26666666667460959},{"$f":"D38-D39","v":0.33333333333530391},{"$f":"E38-E39","v":0.40000000000009095},{"$f":"F38-F39","v":0.46666666668170365},0.53333333333330302]
[null,46,3388.8550000000246,3388.2549999999669,3387.6549999999652,3387.0549999999998,3386.4550000000136,0.26666666665323646,0.33333333333712289,0.4000000000005457,0.46666666666760648,0.53333333333284827]
[null,47,3388.5883333333477,3387.9216666666393,3387.2549999999678,3386.5883333333318,3385.9216666666812,0.26666666667688332,0.3333333333275732,0.39999999999736247,0.46666666666806123,0.53333333333239352]
[null,48,3388.3216666666881,3387.5883333333036,3386.8549999999664,3386.121666666666,3385.3883333333447,0.26666666665960292,0.33333333333575865,0.40000000000145519,0.46666666666578749,0.53333333333648625]
[null,49,3388.0550000000176,3387.2549999999633,3386.4549999999658,3385.6549999999925,3384.8550000000118,0.26666666667051686,0.33333333334030613,0.4000000000005457,0.46666666667351819,0.53333333333284827]
[null,50,3387.7883333333466,3386.9216666666393,3386.0549999999735,3385.1883333333349,3384.3216666666922,0.26666666667097161,0.33333333332393522,0.39999999999236024,0.46666666665760204,0.5333333333196606]
[null,51,3387.5216666666815,3386.5883333333027,3385.6549999999943,3384.7216666666677,3383.788333333348,0.26666666666505989,0.33333333333666815,0.39999999997917257,0.46666666666715173,0.53333333334421695]
[null,52,3387.2550000000119,3386.2549999999701,3385.254999999966,3384.255000000001,3383.2550000000124,0.26666666666960737,0.33333333333257542,0.40000000002828529,0.46666666666669698,0.53333333333557675]
[null,53,3386.9883333333464,3385.9216666666384,3384.8549999999645,3383.788333333332,3382.7216666667005,0.26666666666551464,0.33333333333166593,0.40000000000145519,0.46666666666897072,0.53333333331192989]
[null,54,3386.7216666666827,3385.5883333333036,3384.4549999999658,3383.3216666666685,3382.1883333333453,0.26666666666369565,0.33333333333484916,0.39999999999872671,0.46666666666351375,0.53333333335513089]
[null,55,3386.4550000000149,3385.254999999971,3384.0549999999653,3382.8550000000005,3381.6550000000125,0.26666666666778838,0.33333333333257542,0.4000000000005457,0.46666666666806123,0.53333333333284827]
[null,56,3386.188333333349,3384.9216666666362,3383.6549999999652,3382.3883333333342,3381.1216666666805,0.26666666666596939,0.33333333333484916,0.40000000000009095,0.46666666666624224,0.53333333333193877]
[null,57,3385.921666666683,3384.5883333333045,3383.2549999999628,3381.9216666666684,3380.5883333333463,0.26666666666596939,0.33333333333166593,0.40000000000236469,0.46666666666578749,0.53333333333421251]
[null,58,3385.6550000000138,3384.2549999999701,3382.8549999999655,3381.4550000000022,3380.0550000000139,0.26666666666915262,0.33333333333439441,0.39999999999736247,0.46666666666624224,0.53333333333239352]
[null,59,3385.3883333333483,3383.9216666666357,3382.4549999999658,3380.988333333335,3379.5216666666806,0.26666666666551464,0.33333333333439441,0.3999999999996362,0.46666666666715173,0.53333333333330302]
[null,60,3385.1216666666814,3383.5883333333031,3382.0549999999653,3380.5216666666679,3378.9883333333464,0.26666666666687888,0.33333333333257542,0.4000000000005457,0.46666666666715173,0.53333333333421251]
[null,61,3384.8550000000146,3383.2549999999692,3381.6549999999647,3380.0550000000017,3378.4550000000118,0.26666666666687888,0.33333333333393966,0.4000000000005457,0.46666666666624224,0.53333333333466726]
[null,62,3384.5883333333481,3382.9216666666357,3381.2549999999646,3379.5883333333354,3377.9216666666798,0.26666666666642413,0.33333333333348492,0.40000000000009095,0.46666666666624224,0.53333333333193877]
[null,63,3384.3216666666808,3382.5883333333027,3380.8549999999655,3379.1216666666683,3377.3883333333451,0.26666666666733363,0.33333333333303017,0.39999999999918145,0.46666666666715173,0.53333333333466726]
[null,64,3384.0550000000148,3382.2549999999678,3380.4549999999635,3378.655000000002,3376.8550000000128,0.26666666666596939,0.33333333333484916,0.40000000000190994,0.46666666666624224,0.53333333333239352]
[null,65,3383.7883333333489,3381.9216666666348,3380.0549999999648,3378.1883333333367,3376.3216666666794,0.26666666666596939,0.33333333333303017,0.39999999999872671,0.46666666666533274,0.53333333333330302]
[null,66,3383.521666666682,3381.5883333333009,3379.6549999999643,3377.7216666666718,3375.7883333333439,0.26666666666687888,0.33333333333393966,0.4000000000005457,0.46666666666487799,0.53333333333557675]
[null,67,3383.2550000000156,3381.2549999999692,3379.254999999961,3377.2550000000028,3375.2550000000101,0.26666666666642413,0.33333333333166593,0.40000000000327418,0.46666666666897072,0.53333333333375776]
[null,68,3382.9883333333501,3380.9216666666343,3378.8549999999627,3376.7883333333361,3374.7216666666791,0.26666666666551464,0.33333333333484916,0.39999999999827196,0.46666666666669698,0.53333333333102928]
[null,69,3382.7216666666818,3380.5883333333022,3378.4549999999635,3376.3216666666708,3374.1883333333467,0.26666666666824312,0.33333333333212067,0.39999999999918145,0.46666666666533274,0.53333333333239352]
[null,70,3382.4550000000181,3380.2549999999655,3378.054999999963,3375.8550000000041,3373.6550000000134,0.26666666666369565,0.33333333333666815,0.4000000000005457,0.46666666666669698,0.53333333333330302]
[null,71,3382.0216666666824,3379.7133333333009,3377.4049999999629,3375.0966666666709,3372.7883333333452,0.4333333333356677,0.54166666666469609,0.65000000000009095,0.75833333333321207,0.86666666666815217,"Começa a reduzir volume do grupo de espécie mais valiosas (120)"]
[null,72,3381.5883333333486,3379.1716666666343,3376.7549999999637,3374.3383333333372,3371.9216666666794,0.43333333333384871,0.54166666666651508,0.64999999999918145,0.75833333333366681,0.86666666666587844]
[null,73,3381.155000000017,3378.6299999999674,3376.1049999999627,3373.5800000000031,3371.0550000000135,0.43333333333157498,0.54166666666696983,0.65000000000100044,0.75833333333412156,0.86666666666587844]
[null,74,3380.7216666666827,3378.0883333333022,3375.4549999999622,3372.8216666666685,3370.1883333333467,0.43333333333430346,0.54166666666515084,0.6500000000005457,0.75833333333457631,0.86666666666678793]
[null,75,3380.2883333333484,3377.5466666666362,3374.8049999999625,3372.0633333333358,3369.3216666666808,0.43333333333430346,0.54166666666606034,0.6499999999996362,0.75833333333275732,0.86666666666587844]
[null,76,3379.8550000000159,3377.0049999999692,3374.154999999962,3371.3050000000026,3368.455000000014,0.43333333333248447,0.54166666666696983,0.6500000000005457,0.75833333333321207,0.86666666666678793]
[null,77,3379.4216666666803,3376.4633333333027,3373.5049999999624,3370.5466666666689,3367.5883333333472,0.4333333333356677,0.54166666666651508,0.6499999999996362,0.75833333333366681,0.86666666666678793]
[null,78,3378.9883333333469,3375.9216666666366,3372.8549999999618,3369.7883333333357,3366.7216666666804,0.43333333333339397,0.54166666666606034,0.6500000000005457,0.75833333333321207,0.86666666666678793]
[null,79,3378.5550000000139,3375.379999999971,3372.2049999999622,3369.0300000000029,3365.8550000000141,0.43333333333293922,0.54166666666560559,0.6499999999996362,0.75833333333275732,0.86666666666633319]
[null,80,3378.1216666666801,3374.8383333333031,3371.5549999999616,3368.2716666666684,3364.9883333333473,0.43333333333384871,0.54166666666787933,0.6500000000005457,0.75833333333457631,0.86666666666678793]
[null,81,3377.6883333333462,3374.2966666666366,3370.9049999999615,3367.5133333333351,3364.1216666666814,0.43333333333384871,0.54166666666651508,0.65000000000009095,0.75833333333321207,0.86666666666587844]
[null,82,3377.2550000000133,3373.7549999999701,3370.2549999999615,3366.7550000000015,3363.255000000016,0.43333333333293922,0.54166666666651508,0.65000000000009095,0.75833333333366681,0.86666666666542369]
[null,83,3376.8216666666794,3373.2133333333045,3369.6049999999618,3365.9966666666687,3362.3883333333488,0.43333333333384871,0.54166666666560559,0.6499999999996362,0.75833333333275732,0.86666666666724268]
[null,84,3376.3883333333461,3372.671666666638,3368.9549999999613,3365.238333333335,3361.521666666682,0.43333333333339397,0.54166666666651508,0.6500000000005457,0.75833333333366681,0.86666666666678793]
[null,85,3375.9550000000127,3372.1299999999724,3368.3049999999607,3364.4800000000018,3360.6550000000161,0.43333333333339397,0.54166666666560559,0.6500000000005457,0.75833333333321207,0.86666666666587844]
[null,86,3375.5216666666793,3371.5883333333049,3367.6549999999606,3363.7216666666682,3359.7883333333493,0.43333333333339397,0.54166666666742458,0.65000000000009095,0.75833333333366681,0.86666666666678793]
[null,87,3375.0883333333445,3371.0466666666393,3367.0049999999601,3362.963333333334,3358.921666666683,0.43333333333475821,0.54166666666560559,0.6500000000005457,0.75833333333412156,0.86666666666633319]
[null,88,3374.6550000000116,3370.5049999999719,3366.35499999996,3362.2050000000013,3358.0550000000171,0.43333333333293922,0.54166666666742458,0.65000000000009095,0.75833333333275732,0.86666666666587844]
[null,89,3374.2216666666786,3369.9633333333049,3365.7049999999604,3361.4466666666676,3357.1883333333503,0.43333333333293922,0.54166666666696983,0.6499999999996362,0.75833333333366681,0.86666666666678793]
[null,90,3373.7883333333448,3369.4216666666389,3365.0549999999603,3360.6883333333344,3356.3216666666845,0.43333333333384871,0.54166666666606034,0.65000000000009095,0.75833333333321207,0.86666666666587844]
[null,91,3373.3550000000105,3368.8799999999733,3364.4049999999602,3359.9300000000007,3355.4550000000172,0.43333333333430346,0.54166666666560559,0.65000000000009095,0.75833333333366681,0.86666666666724268]
[null,92,3372.9216666666775,3368.3383333333063,3363.7549999999601,3359.1716666666671,3354.5883333333513,0.43333333333293922,0.54166666666696983,0.65000000000009095,0.75833333333366681,0.86666666666587844]
[null,93,3372.4883333333437,3367.7966666666402,3363.10499999996,3358.4133333333343,3353.721666666685,0.43333333333384871,0.54166666666606034,0.65000000000009095,0.75833333333275732,0.86666666666633319]
[null,94,3372.0550000000103,3367.2549999999737,3362.4549999999599,3357.6550000000007,3352.8550000000187,0.43333333333339397,0.54166666666651508,0.65000000000009095,0.75833333333366681,0.86666666666633319]
[null,95,3371.6216666666764,3366.7133333333068,3361.8049999999598,3356.896666666667,3351.9883333333523,0.43333333333384871,0.54166666666696983,0.65000000000009095,0.75833333333366681,0.86666666666633319]
[null,96,3371.1883333333431,3366.1716666666407,3361.1549999999597,3356.1383333333333,3351.1216666666869,0.43333333333339397,0.54166666666606034,0.65000000000009095,0.75833333333366681,0.86666666666542369]
[null,97,3370.7550000000092,3365.6299999999742,3360.5049999999596,3355.3800000000006,3350.2550000000197,{"$f":"C90-C91","v":0.43333333333384871},{"$f":"D90-D91","v":0.54166666666651508},{"$f":"E90-E91","v":0.65000000000009095},{"$f":"F90-F91","v":0.75833333333275732},0.86666666666724268]
[]
[null,null,null,null,null,null,null,{"$f":"G91/C3","v":0.98791008048642837},{"$f":"1-H93","v":1.2089919513571634E-2}]

{"sheet":"UMF2","index":3,"n_rows":93,"n_cols":13,"rows_kept":93,"cut":false,"hidden":false,"merged":[]}
["Área UMF1:",30000]
[null,"# de espécies","20 m3","25 m3","30 m3","35 m3","40 m3"]
[null,9,3391.2549999999833,3391.2550000000138,3391.2549999999987,3391.2550000000138,3391.2549999999915]
[{"$f":"B1/30","v":1000},10,3391.2549999999837,3391.2550000000151,3391.2549999999997,3391.2550000000142,3391.2549999999915]
[null,11,3391.2549999999833,3391.2550000000151,3391.2550000000001,3391.2550000000138,3391.2549999999928]
[null,12,3391.2549999999819,3391.2550000000156,3391.2549999999997,3391.2550000000165,3391.2549999999924]
[null,13,3391.2550000000028,3391.255000000016,3391.2550000000001,3391.2549999999965,3391.2549999999928]
[null,14,3391.2549999999778,3391.255000000016,3391.2549999999983,3391.2550000000292,3391.2549999999915]
[null,15,3391.2549999999828,3391.255000000016,3391.2549999999992,3391.2550000000156,3391.2549999999924]
[null,16,3391.2549999999833,3391.2550000000197,3391.2550000000001,3391.2550000000219,3391.2549999999933]
[null,17,3391.2549999999837,3391.255000000016,3391.255000000001,3391.2550000000224,3391.2549999999924]
[null,18,3391.2549999999837,3391.2550000000156,3391.2550000000001,3391.2550000000133,3391.2549999999624]
[null,19,3391.254999999986,3391.2550000000201,3391.2549999999992,3391.2550000000142,3391.2549999999928]
[null,20,3391.2549999999824,3391.2550000000142,3391.2550000000019,3391.2550000000192,3391.2549999999728]
[null,21,3391.254999999991,3391.2550000000206,3391.2549999999992,3391.255000000016,3391.2549999999937]
[null,22,3391.2549999999856,3391.2550000000178,3391.2550000000001,3391.2550000000147,3391.2549999999942]
[null,23,3391.255000000001,3391.2550000000224,3391.2550000000069,3391.2550000000097,3391.2549999999856]
[null,24,3391.2549999999828,3391.2550000000183,3391.2550000000069,3391.2550000000178,3391.2550000000015]
[null,25,3391.2549999999787,3391.2550000000319,3391.2549999999997,3391.2550000000124,3391.2549999999965]
[null,26,3391.2550000000074,3391.2550000000174,3391.2549999999983,3391.2550000000297,3391.254999999991]
[null,27,3391.2549999999887,3391.255000000036,3391.2549999999915,3391.2550000000278,3391.2550000000037]
[null,28,3391.2549999999997,3391.2550000000133,3391.254999999996,3391.2550000000215,3391.2549999999947]
[null,29,3391.2550000000097,3391.2550000000197,3391.2550000000015,3391.2550000000142,3391.2550000000101]
[null,30,3391.2549999999842,3391.2550000000215,3391.2549999999969,3391.2550000000228,3391.2550000000033]
[null,31,3391.254999999981,3391.2550000000178,3391.2549999999915,3391.2549999999937,3391.2549999999978]
[null,32,3391.2549999999956,3391.2550000000178,3391.2549999999969,3391.2550000000142,3391.2549999999824]
[null,33,3391.2550000000147,3391.2550000000115,3391.2549999999937,3391.2550000000283,3391.2549999999769]
[null,34,3391.2549999999842,3391.2550000000197,3391.2549999999951,3391.2550000000206,3391.2549999999865]
[null,35,3391.2549999999869,3391.2550000000174,3391.2549999999951,3391.255000000016,3391.2549999999837]
[null,36,3391.2549999999974,3391.2550000000156,3391.2549999999928,3391.2550000000333,3391.2549999999901]
[null,37,3391.2549999999583,3391.2550000000228,3391.2549999999933,3391.2550000000147,3391.2549999999915,"Começa a reduzir volume das espécies valiosas, neste caso do segundo grupo em valor (90)"]
[null,38,3390.4549999999872,3390.2550000000201,3390.0549999999944,3389.8550000000182,3389.6549999999897,{"$f":"C31-C32","v":0.79999999997107807},{"$f":"D31-D32","v":1.0000000000027285},1.1999999999989086,1.399999999996453,1.600000000001728]
[null,39,3389.654999999987,3389.2550000000192,3388.8549999999927,3388.4550000000168,3388.0549999999898,{"$f":"C32-C33","v":0.8000000000001819},{"$f":"D32-D33","v":1.0000000000009095},{"$f":"E32-E33","v":1.2000000000016371},{"$f":"F32-F33","v":1.4000000000014552},{"$f":"G32-G33","v":1.5999999999999091}]
[null,40,3388.8549999999886,3388.2550000000197,3387.6549999999934,3387.0550000000162,3386.4549999999931,0.79999999999836291,0.99999999999954525,1.1999999999993634,1.4000000000005457,1.5999999999967258]
[null,41,3388.0549999999898,3387.255000000021,3386.4549999999958,3385.6550000000207,3384.8549999999918,0.79999999999881766,0.99999999999863576,1.1999999999975444,1.3999999999955435,1.6000000000012733]
[null,42,3387.2549999999874,3386.2550000000192,3385.254999999991,3384.2550000000151,3383.2549999999919,0.80000000000245564,1.000000000001819,1.2000000000048203,1.4000000000055479,1.5999999999999091]
[null,43,3386.4549999999936,3385.255000000021,3384.0549999999917,3382.8550000000155,3381.6549999999911,0.79999999999381544,0.99999999999818101,1.1999999999993634,1.3999999999996362,1.6000000000008185]
[null,44,3385.6549999999893,3384.2550000000228,3382.8549999999946,3381.4550000000158,3380.0549999999935,0.80000000000427463,0.99999999999818101,1.1999999999970896,1.3999999999996362,1.5999999999976353]
[null,45,3384.8549999999896,3383.2550000000206,3381.654999999992,3380.0550000000158,3378.4549999999913,0.79999999999972715,1.0000000000022737,1.2000000000025466,1.4000000000000909,1.6000000000021828]
[null,46,3384.0549999999907,3382.2550000000201,3380.4549999999927,3378.6550000000166,3376.8549999999927,0.79999999999881766,1.0000000000004547,1.1999999999993634,1.3999999999991815,1.5999999999985448]
[null,47,3383.2549999999828,3381.2550000000215,3379.2549999999915,3377.2550000000324,3375.2549999999937,0.8000000000079126,0.99999999999863576,1.2000000000011823,1.3999999999841748,1.5999999999989996]
[null,48,3382.4549999999908,3380.2550000000201,3378.0549999999926,3375.8550000000159,3373.6549999999929,0.79999999999199645,1.0000000000013642,1.1999999999989086,1.4000000000164619,1.6000000000008185]
[null,49,3381.6549999999907,3379.2550000000215,3376.8549999999937,3374.4550000000181,3372.0549999999935,0.8000000000001819,0.99999999999863576,1.1999999999989086,1.3999999999978172,1.5999999999994543]
[null,50,3380.85499999999,3378.2550000000215,3375.6549999999925,3373.0550000000158,3370.4549999999922,0.80000000000063665,1,1.2000000000011823,1.4000000000023647,1.6000000000012733]
[null,51,3380.0549999999889,3377.255000000021,3374.4549999999922,3371.6550000000166,3368.8549999999909,0.80000000000109139,1.0000000000004547,1.2000000000002728,1.3999999999991815,1.6000000000012733]
[null,52,3379.2549999999896,3376.255000000021,3373.2549999999928,3370.2550000000174,3367.2549999999919,0.7999999999992724,1,1.1999999999993634,1.3999999999991815,1.5999999999989996]
[null,53,3378.4549999999886,3375.2550000000219,3372.0549999999912,3368.855000000015,3365.6549999999947,0.80000000000109139,0.99999999999909051,1.2000000000016371,1.4000000000023647,1.5999999999971806]
[null,54,3377.6549999999897,3374.2550000000219,3370.8549999999914,3367.4550000000163,3364.0549999999935,0.79999999999881766,1,1.1999999999998181,1.3999999999987267,1.6000000000012733]
[null,55,3376.8549999999886,3373.2550000000219,3369.6549999999911,3366.0550000000176,3362.4549999999927,0.80000000000109139,1,1.2000000000002728,1.3999999999987267,1.6000000000008185]
[null,56,3376.0549999999885,3372.2550000000228,3368.4549999999913,3364.6550000000166,3360.8549999999946,0.8000000000001819,0.99999999999909051,1.1999999999998181,1.4000000000010004,1.5999999999980901]
[null,57,3375.2549999999915,3371.2550000000224,3367.254999999991,3363.2550000000156,3359.2549999999924,0.79999999999699867,1.0000000000004547,1.2000000000002728,1.4000000000010004,1.6000000000021828]
[null,58,3374.454999999989,3370.2550000000228,3366.0549999999912,3361.8550000000164,3357.6549999999947,0.80000000000245564,0.99999999999954525,1.1999999999998181,1.3999999999991815,1.5999999999976353]
[null,59,3373.6549999999897,3369.2550000000228,3364.8549999999905,3360.4550000000158,3356.0549999999939,0.7999999999992724,1,1.2000000000007276,1.4000000000005457,1.6000000000008185]
[null,60,3372.8549999999905,3368.2550000000228,3363.6549999999911,3359.0550000000171,3354.4549999999931,0.7999999999992724,1,1.1999999999993634,1.3999999999987267,1.6000000000008185]
[null,61,3372.0549999999885,3367.2550000000233,3362.4549999999895,3357.6550000000175,3352.8549999999937,0.80000000000200089,0.99999999999954525,1.2000000000016371,1.3999999999996362,1.5999999999994543]
[null,62,3371.2549999999887,3366.2550000000224,3361.2549999999919,3356.2550000000151,3351.2549999999915,0.79999999999972715,1.0000000000009095,1.1999999999975444,1.4000000000023647,1.6000000000021828]
[null,63,3370.4549999999899,3365.2550000000219,3360.0549999999898,3354.8550000000159,3349.6549999999947,0.79999999999881766,1.0000000000004547,1.2000000000020918,1.3999999999991815,1.5999999999967258]
[null,64,3369.6549999999879,3364.2550000000228,3358.8549999999896,3353.4550000000172,3348.0549999999944,0.80000000000200089,0.99999999999909051,1.2000000000002728,1.3999999999987267,1.6000000000003638]
[null,65,3368.8549999999886,3363.2550000000238,3357.6549999999893,3352.0550000000167,3346.4549999999931,0.7999999999992724,0.99999999999909051,1.2000000000002728,1.4000000000005457,1.6000000000012733]
[null,66,3368.0549999999907,3362.2550000000238,3356.4549999999886,3350.6550000000157,3344.854999999995,0.79999999999790816,1,1.2000000000007276,1.4000000000010004,1.5999999999980901]
[null,67,3367.2549999999892,3361.2550000000233,3355.2549999999896,3349.2550000000151,3343.2549999999933,0.80000000000154614,1.0000000000004547,1.1999999999989086,1.4000000000005457,1.600000000001728]
[null,68,3366.4549999999881,3360.2550000000247,3354.0549999999912,3347.8550000000164,3341.6549999999938,0.80000000000109139,0.99999999999863576,1.1999999999984539,1.3999999999987267,1.5999999999994543]
[null,69,3365.6549999999897,3359.2550000000228,3352.8549999999909,3346.4550000000172,3340.0549999999939,0.79999999999836291,1.000000000001819,1.2000000000002728,1.3999999999991815,1.5999999999999091]
[null,70,3364.8549999999905,3358.2550000000228,3351.6549999999929,3345.0550000000148,3338.4549999999936,0.7999999999992724,1,1.1999999999979991,1.4000000000023647,1.6000000000003638]
[null,71,3363.5549999999894,3356.6300000000251,3349.7049999999913,3342.7800000000166,3335.8549999999941,1.3000000000010914,1.6249999999977263,1.9500000000016371,2.274999999998272,2.5999999999994543,"Começa a reduzir volume do grupo de espécie mais valiosas (120)"]
[null,72,3362.2549999999901,3355.0050000000228,3347.7549999999887,3340.505000000016,3333.2549999999942,1.2999999999992724,1.6250000000022737,1.9500000000025466,2.2750000000005457,2.5999999999999091]
[null,73,3360.9549999999899,3353.3800000000233,3345.8049999999894,3338.2300000000173,3330.6549999999938,1.3000000000001819,1.6249999999995453,1.9499999999993634,2.2749999999987267,2.6000000000003638]
[null,74,3359.6549999999916,3351.7550000000251,3343.85499999999,3335.9550000000172,3328.0549999999948,1.2999999999983629,1.624999999998181,1.9499999999993634,2.2750000000000909,2.5999999999989996]
[null,75,3358.35499999999,3350.1300000000256,3341.9049999999902,3333.6800000000167,3325.454999999994,1.3000000000015461,1.6249999999995453,1.9499999999998181,2.2750000000005457,2.6000000000008185]
[null,76,3357.0549999999898,3348.5050000000251,3339.9549999999899,3331.4050000000166,3322.8549999999937,1.3000000000001819,1.6250000000004547,1.9500000000002728,2.2750000000000909,2.6000000000003638]
[null,77,3355.7549999999901,3346.8800000000251,3338.0049999999892,3329.130000000016,3320.2549999999947,1.2999999999997272,1.625,1.9500000000007276,2.2750000000005457,2.5999999999989996]
[null,78,3354.4549999999913,3345.2550000000251,3336.0549999999885,3326.8550000000168,3317.6549999999947,1.2999999999988177,1.625,1.9500000000007276,2.2749999999991815,2.5999999999999091]
[null,79,3353.1549999999888,3343.6300000000256,3334.1049999999882,3324.5800000000163,3315.0549999999953,1.3000000000024556,1.6249999999995453,1.9500000000002728,2.2750000000005457,2.5999999999994543]
[null,80,3351.8549999999905,3342.0050000000251,3332.1549999999897,3322.3050000000162,3312.4549999999949,1.2999999999983629,1.6250000000004547,1.9499999999984539,2.2750000000000909,2.6000000000003638]
[null,81,3350.5549999999907,3340.380000000026,3330.204999999989,3320.0300000000166,3309.8549999999946,1.2999999999997272,1.6249999999990905,1.9500000000007276,2.2749999999996362,2.6000000000003638]
[null,82,3349.2549999999906,3338.7550000000256,3328.2549999999883,3317.755000000016,3307.2549999999951,1.3000000000001819,1.6250000000004547,1.9500000000007276,2.2750000000005457,2.5999999999994543]
[null,83,3347.9549999999904,3337.1300000000256,3326.3049999999876,3315.4800000000164,3304.6549999999947,1.3000000000001819,1.625,1.9500000000007276,2.2749999999996362,2.6000000000003638]
[null,84,3346.6549999999902,3335.5050000000265,3324.3549999999882,3313.2050000000168,3302.0549999999948,1.3000000000001819,1.6249999999990905,1.9499999999993634,2.2749999999996362,2.5999999999999091]
[null,85,3345.35499999999,3333.880000000026,3322.4049999999884,3310.9300000000171,3299.4549999999949,1.3000000000001819,1.6250000000004547,1.9499999999998181,2.2749999999996362,2.5999999999999091]
[null,86,3344.0549999999903,3332.2550000000265,3320.4549999999886,3308.655000000017,3296.854999999995,1.2999999999997272,1.6249999999995453,1.9499999999998181,2.2750000000000909,2.5999999999999091]
[null,87,3342.7549999999906,3330.6300000000269,3318.5049999999874,3306.3800000000169,3294.2549999999951,1.2999999999997272,1.6249999999995453,1.9500000000011823,2.2750000000000909,2.5999999999999091]
[null,88,3341.4549999999904,3329.0050000000265,3316.5549999999876,3304.1050000000164,3291.6549999999952,1.3000000000001819,1.6250000000004547,1.9499999999998181,2.2750000000005457,2.5999999999999091]
[null,89,3340.1549999999902,3327.380000000026,3314.6049999999882,3301.8300000000163,3289.0549999999953,1.3000000000001819,1.6250000000004547,1.9499999999993634,2.2750000000000909,2.5999999999999091]
[null,90,3338.8549999999905,3325.7550000000265,3312.654999999987,3299.5550000000162,3286.4549999999954,1.2999999999997272,1.6249999999995453,1.9500000000011823,2.2750000000000909,2.5999999999999091]
[null,91,3337.5549999999903,3324.1300000000265,3310.7049999999872,3297.2800000000166,3283.8549999999955,1.3000000000001819,1.625,1.9499999999998181,2.2749999999996362,2.5999999999999091]
[null,92,3336.2549999999906,3322.5050000000265,3308.7549999999874,3295.0050000000165,3281.2549999999956,1.2999999999997272,1.625,1.9499999999998181,2.2750000000000909,2.5999999999999091]
[null,93,3334.9549999999904,3320.8800000000265,3306.8049999999866,3292.7300000000164,3278.6549999999957,1.3000000000001819,1.625,1.9500000000007276,2.2750000000000909,2.5999999999999091]
[null,94,3333.6549999999907,3319.2550000000269,3304.8549999999868,3290.4550000000163,3276.0549999999957,1.2999999999997272,1.6249999999995453,1.9499999999998181,2.2750000000000909,2.5999999999999091]
[null,95,3332.3549999999905,3317.6300000000274,3302.9049999999866,3288.1800000000162,3273.4549999999958,1.3000000000001819,1.6249999999995453,1.9500000000002728,2.2750000000000909,2.5999999999999091]
[null,96,3331.0549999999907,3316.0050000000274,3300.9549999999867,3285.9050000000161,3270.8549999999959,1.2999999999997272,1.625,1.9499999999998181,2.2750000000000909,2.5999999999999091]
[null,97,3329.7549999999906,3314.3800000000278,3299.0049999999865,3283.630000000016,3268.254999999996,1.3000000000001819,1.6249999999995453,1.9500000000002728,2.2750000000000909,2.5999999999999091]
[]
[null,null,null,null,null,null,null,{"$f":"G91/C3","v":0.96373024145928632},{"$f":"1-H93","v":3.6269758540713681E-2}]

{"sheet":"UMF3","index":4,"n_rows":93,"n_cols":12,"rows_kept":93,"cut":false,"hidden":false,"merged":[]}
["Área UMF1:",18600]
[null,"# de espécies","20 m3","25 m3","30 m3","35 m3","40 m3"]
[null,9,3391.2549999999983,3391.2550000000087,3391.2550000000006,3391.2550000000033,3389.356812499992]
[{"$f":"B1/30","v":620},10,3391.2549999999978,3391.2550000000097,3391.2549999999997,3391.2550000000037,3389.3568125000024]
[null,11,3391.2549999999997,3391.2550000000083,3391.2550000000028,3391.2550000000042,3389.3568124999829]
[null,12,3391.2549999999978,3391.2550000000097,3391.2550000000019,3391.2550000000047,3389.3568124999924]
[null,13,3391.2549999999974,3391.2550000000083,3391.2550000000001,3391.2550000000042,3389.3568124999902]
[null,14,3391.2549999999974,3391.2550000000087,3391.2550000000019,3391.2550000000042,3389.3568124999902]
[null,15,3391.2549999999983,3391.2550000000106,3391.2550000000015,3391.2550000000042,3389.3568124999983]
[null,16,3391.2549999999974,3391.2550000000106,3391.2550000000028,3391.2550000000065,3389.3568124999915]
[null,17,3391.2549999999974,3391.2550000000101,3391.2550000000024,3391.255000000006,3389.3568124999911]
[null,18,3391.2549999999983,3391.2550000000097,3391.2550000000019,3391.2550000000065,3389.3568124999965]
[null,19,3391.2549999999983,3391.2550000000101,3391.2550000000019,3391.2550000000065,3389.3568124999915]
[null,20,3391.2549999999974,3391.2550000000106,3391.2550000000024,3391.2550000000069,3389.3568124999906]
[null,21,3391.2549999999992,3391.2550000000106,3391.2550000000024,3391.2550000000078,3389.3568124999915]
[null,22,3391.2549999999978,3391.2550000000133,3391.2549999999937,3391.255000000006,3389.3568124999911]
[null,23,3391.2549999999956,3391.2550000000151,3391.2550000000028,3391.2550000000087,3389.3568124999906]
[null,24,3391.254999999996,3391.2550000000097,3391.255000000001,3391.2550000000037,3389.3568124999883]
[null,25,3391.2549999999901,3391.2550000000074,3391.2550000000033,3391.2550000000106,3389.3568124999874]
[null,26,3391.2549999999974,3391.255000000001,3391.2549999999856,3391.2550000000092,3389.3568124999906]
[null,27,3391.2550000000224,3391.2550000000106,3391.2550000000028,3391.255000000011,3389.3568125000002]
[null,28,3391.2549999999992,3391.2550000000224,3391.2550000000165,3391.2550000000115,3389.3568124999783]
[null,29,3391.2550000000083,3391.2550000000106,3391.2550000000092,3391.2550000000069,3389.3568124999838]
[null,30,3391.2550000000078,3391.2550000000033,3391.2550000000092,3391.2550000000128,3389.3568124999933]
[null,31,3391.2549999999983,3391.2550000000092,3391.2550000000065,3391.2550000000033,3389.356812499992]
[null,32,3391.2549999999992,3391.2550000000097,3391.2550000000056,3391.2550000000056,3389.356812499997]
[null,33,3391.2550000000092,3391.2550000000087,3391.2550000000078,3391.255000000006,3389.3568124999924]
[null,34,3391.2550000000288,3391.2550000000083,3391.2550000000069,3391.2550000000065,3389.3568124999892]
[null,35,3391.2550000000019,3391.2550000000119,3391.2550000000056,3391.2550000000078,3386.7761673387008,null,null,null,null,{"$f":"G28-G29","v":2.5806451612884302}]
[null,36,3391.2550000000001,3391.2550000000087,3391.2550000000074,3391.2550000000056,3384.195522177411,null,null,null,null,{"$f":"G29-G30","v":2.5806451612897945}]
[null,37,3391.2550000000006,3391.2550000000092,3391.2550000000056,3388.9969354838772,3381.6148770161212,null,null,null,{"$f":"F30-F31","v":2.2580645161283428},2.5806451612897945]
[null,38,3389.9646774193561,3389.6420967742019,3389.3195161290382,3386.7388709677502,3379.034231854831,{"$f":"C31-C32","v":1.2903225806444425},{"$f":"D31-D32","v":1.6129032258072584},{"$f":"E31-E32","v":1.9354838709673459},2.2580645161269786,2.5806451612902492]
[null,39,3388.6743548387126,3388.0291935483988,3387.3840322580731,3384.4808064516219,3376.4535866935389,1.290322580643533,1.6129032258031657,1.9354838709650721,2.2580645161283428,2.5806451612920682]
[null,40,3387.3840322580636,3386.4162903225897,3385.4485483871017,3382.2227419354922,3373.8729415322478,1.29032258064899,1.6129032258090774,1.9354838709714386,2.258064516129707,2.5806451612911587]
[null,41,3386.0937096774223,3384.8033870967829,3383.5130645161366,3379.9646774193648,3371.292296370958,1.2903225806412593,1.6129032258068037,1.9354838709650721,2.2580645161274333,2.5806451612897945]
[null,42,3384.8033870967761,3383.1904838709756,3381.5775806451702,3377.7066129032346,3368.7116512096677,1.2903225806462615,1.6129032258072584,1.9354838709664364,2.2580645161301618,2.5806451612902492]
[null,43,3383.5130645161294,3381.5775806451725,3379.6420967742019,3375.4485483871053,3366.1310060483765,1.2903225806467162,1.6129032258031657,1.9354838709682554,2.2580645161292523,2.5806451612911587]
[null,44,3382.2227419354854,3379.9646774193639,3377.7066129032332,3373.1904838709765,3363.5503608870863,1.2903225806439877,1.6129032258086227,1.9354838709687101,2.2580645161287975,2.5806451612902492]
[null,45,3380.9324193548405,3378.3517741935575,3375.7711290322673,3370.9324193548496,3360.9697157257929,1.2903225806448972,1.6129032258063489,1.9354838709659816,2.2580645161269786,2.5806451612934325]
[null,46,3379.6420967741942,3376.7388709677507,3373.835645161299,3368.6743548387185,3358.3890705645085,1.2903225806462615,1.6129032258068037,1.9354838709682554,2.2580645161310713,2.5806451612843375]
[null,47,3378.3517741935511,3375.1259677419439,3371.9001612903335,3366.4162903225906,3355.8084254032137,1.2903225806430783,1.6129032258068037,1.9354838709655269,2.2580645161278881,2.5806451612947967]
[null,48,3377.0614516129053,3373.5130645161394,3369.9646774193593,3364.1582258064636,3353.2277802419362,1.2903225806458067,1.6129032258045299,1.9354838709741671,2.2580645161269786,2.5806451612775163]
[null,49,3375.7711290322604,3371.9001612903344,3368.029193548397,3361.900161290333,3350.6471350806314,1.2903225806448972,1.6129032258049847,1.9354838709623436,2.2580645161306165,2.5806451613048011]
[null,50,3374.4808064516142,3370.2872580645253,3366.0937096774305,3359.6420967742038,3348.0664899193425,1.2903225806462615,1.6129032258090774,1.9354838709664364,2.2580645161292523,2.580645161288885]
[null,51,3373.1904838709979,3368.6743548387199,3364.1582258064627,3357.384032258075,3345.4858447580509,1.2903225806162482,1.6129032258054394,1.9354838709678006,2.2580645161287975,2.5806451612916135]
[null,52,3371.9001612903248,3367.0614516129135,3362.222741935494,3355.1259677419475,3342.9051995967643,1.2903225806730916,1.6129032258063489,1.9354838709687101,2.2580645161274333,2.5806451612866113]
[null,53,3370.6098387096804,3365.4485483871085,3360.287258064528,3352.8679032258192,3340.3245544354718,1.2903225806444425,1.6129032258049847,1.9354838709659816,2.2580645161283428,2.580645161292523]
[null,54,3369.3195161290328,3363.8356451613013,3358.3517741935598,3350.6098387096877,3337.7439092741802,1.2903225806476257,1.6129032258072584,1.9354838709682554,2.258064516131526,2.5806451612916135]
[null,55,3368.0291935483901,3362.222741935494,3356.4162903225924,3348.3517741935598,3335.1632641128886,1.2903225806426235,1.6129032258072584,1.9354838709673459,2.2580645161278881,2.5806451612916135]
[null,56,3366.7388709677448,3360.6098387096895,3354.4808064516242,3346.0937096774337,3332.5826189515988,1.290322580645352,1.6129032258045299,1.9354838709682554,2.2580645161260691,2.5806451612897945]
[null,57,3365.4485483870985,3358.9969354838809,3352.5453225806582,3343.8356451613035,3330.0019737903081,1.2903225806462615,1.6129032258086227,1.9354838709659816,2.2580645161301618,2.580645161290704]
[null,58,3364.1582258064527,3357.3840322580754,3350.6098387096904,3341.5775806451747,3327.4213286290174,1.2903225806458067,1.6129032258054394,1.9354838709678006,2.2580645161287975,2.580645161290704]
[null,59,3362.8679032258087,3355.77112903227,3348.6743548387244,3339.3195161290464,3324.8406834677266,1.2903225806439877,1.6129032258054394,1.9354838709659816,2.2580645161283428,2.580645161290704]
[null,60,3361.5775806451616,3354.1582258064636,3346.7388709677543,3337.061451612919,3322.2600383064378,1.290322580647171,1.6129032258063489,1.9354838709700743,2.2580645161274333,2.580645161288885]
[null,61,3360.2872580645176,3352.5453225806546,3344.8033870967884,3334.8033870967906,3319.6793931451466,1.2903225806439877,1.6129032258090774,1.9354838709659816,2.2580645161283428,2.5806451612911587]
[null,62,3358.9969354838736,3350.9324193548509,3342.8679032258206,3332.5453225806618,3317.0987479838554,1.2903225806439877,1.6129032258036204,1.9354838709678006,2.2580645161287975,2.5806451612911587]
[null,63,3357.7066129032269,3349.3195161290432,3340.9324193548528,3330.2872580645317,3314.518102822562,1.2903225806467162,1.6129032258077132,1.9354838709678006,2.2580645161301618,2.5806451612934325]
[null,64,3356.4162903225815,3347.7066129032378,3338.9969354838854,3328.0291935484015,3311.937457661274,1.290322580645352,1.6129032258054394,1.9354838709673459,2.2580645161301618,2.5806451612879755]
[null,65,3355.1259677419366,3346.093709677431,3337.0614516129162,3325.7711290322723,3309.3568124999824,1.2903225806448972,1.6129032258068037,1.9354838709691649,2.2580645161292523,2.5806451612916135]
[null,66,3353.8356451612913,3344.4808064516255,3335.1259677419503,3323.5130645161425,3306.7761673386908,1.290322580645352,1.6129032258054394,1.9354838709659816,2.258064516129707,2.5806451612916135]
[null,67,3352.5453225806468,3342.8679032258174,3333.190483870982,3321.255000000016,3304.1955221774006,1.2903225806444425,1.6129032258081679,1.9354838709682554,2.2580645161265238,2.5806451612902492]
[null,68,3351.2550000000015,3341.2550000000119,3331.2550000000138,3318.9969354838863,3300.0019737903053,1.290322580645352,1.6129032258054394,1.9354838709682554,2.258064516129707,4.1935483870952339]
[null,69,3349.9646774193561,3339.6420967742056,3329.3195161290464,3316.7388709677584,3295.8084254032069,1.290322580645352,1.6129032258063489,1.9354838709673459,2.2580645161278881,4.1935483870984172]
[null,70,3348.6743548387094,3338.0291935484001,3327.38403225808,3313.0695161290505,3291.6148770161085,1.2903225806467162,1.6129032258054394,1.9354838709664364,3.6693548387079318,4.1935483870984172]
[null,71,3346.5775806451638,3335.4082258064623,3324.2388709677584,3309.4001612903403,3287.4213286290133,2.0967741935455706,2.620967741937875,3.1451612903215391,3.6693548387102055,4.1935483870952339]
[null,72,3344.4808064516137,3332.7872580645276,3321.0937096774346,3305.7308064516315,3283.2277802419162,2.0967741935501181,2.6209677419346917,3.1451612903238129,3.6693548387088413,4.1935483870970529]
[null,73,3342.3840322580668,3330.1662903225933,3317.9485483871131,3302.0614516129212,3279.0342318548187,2.0967741935469348,2.620967741934237,3.1451612903215391,3.6693548387102055,4.1935483870975077]
[null,74,3340.2872580645189,3327.5453225806573,3314.8033870967897,3298.3920967742115,3274.8406834677216,2.0967741935478443,2.620967741936056,3.1451612903233581,3.6693548387097508,4.1935483870970529]
[null,75,3338.1904838709702,3324.9243548387221,3311.6582258064668,3294.7227419355013,3270.647135080625,2.0967741935487538,2.6209677419351465,3.1451612903229034,3.6693548387102055,4.1935483870965982]
[null,76,3336.0937096774228,3322.3033870967874,3308.5130645161439,3291.053387096792,3266.4535866935275,2.0967741935473896,2.6209677419346917,3.1451612903229034,3.669354838709296,4.1935483870975077]
[null,77,3333.996935483874,3319.6824193548528,3305.3679032258219,3287.3840322580822,3262.26003830643,2.0967741935487538,2.6209677419346917,3.1451612903219939,3.6693548387097508,4.1935483870975077]
[null,78,3331.9001612903253,3317.0614516129181,3302.2227419354986,3283.7146774193725,3258.066489919333,2.0967741935487538,2.6209677419346917,3.1451612903233581,3.6693548387097508,4.1935483870970529]
[null,79,3329.8033870967774,3314.4404838709829,3299.0775806451761,3280.0453225806627,3253.8729415322364,2.0967741935478443,2.6209677419351465,3.1451612903224486,3.6693548387097508,4.1935483870965982]
[null,80,3327.7066129032291,3311.8195161290478,3295.9324193548537,3276.375967741953,3249.6793931451398,2.0967741935482991,2.6209677419351465,3.1451612903224486,3.6693548387097508,4.1935483870965982]
[null,81,3325.6098387096818,3309.1985483871126,3292.7872580645312,3272.7066129032428,3245.4858447580423,2.0967741935473896,2.6209677419351465,3.1451612903224486,3.6693548387102055,4.1935483870975077]
[null,82,3323.5130645161335,3306.5775806451775,3289.6420967742083,3269.037258064533,3241.2922963709452,2.0967741935482991,2.6209677419351465,3.1451612903229034,3.6693548387097508,4.1935483870970529]
[null,83,3321.4162903225856,3303.9566129032423,3286.4969354838859,3265.3679032258242,3237.0987479838482,2.0967741935478443,2.6209677419351465,3.1451612903224486,3.6693548387088413,4.1935483870970529]
[null,84,3319.3195161290378,3301.3356451613063,3283.3517741935634,3261.6985483871149,3232.9051995967502,2.0967741935478443,2.620967741936056,3.1451612903224486,3.669354838709296,4.1935483870979624]
[null,85,3317.222741935489,3298.7146774193711,3280.206612903241,3258.0291935484042,3228.7116512096536,2.0967741935487538,2.6209677419351465,3.1451612903224486,3.6693548387106603,4.1935483870965982]
[null,86,3315.1259677419416,3296.0937096774355,3277.0614516129176,3254.3598387096949,3224.5181028225566,2.0967741935473896,2.6209677419356012,3.1451612903233581,3.669354838709296,4.1935483870970529]
[null,87,3313.0291935483929,3293.4727419355004,3273.9162903225956,3250.6904838709847,3220.32455443546,2.0967741935487538,2.6209677419351465,3.1451612903219939,3.6693548387102055,4.1935483870965982]
[null,88,3310.9324193548441,3290.8517741935657,3270.7711290322723,3247.021129032275,3216.1310060483625,2.0967741935487538,2.6209677419346917,3.1451612903233581,3.6693548387097508,4.1935483870975077]
[null,89,3308.8356451612967,3288.2308064516305,3267.6259677419494,3243.3517741935657,3211.9374576612654,2.0967741935473896,2.6209677419351465,3.1451612903229034,3.669354838709296,4.1935483870970529]
[null,90,3306.7388709677484,3285.6098387096954,3264.4808064516269,3239.6824193548559,3207.7439092741688,2.0967741935482991,2.6209677419351465,3.1451612903224486,3.6693548387097508,4.1935483870965982]
[null,91,3304.6420967742001,3282.9888709677602,3261.3356451613045,3236.0130645161462,3203.5503608870713,2.0967741935482991,2.6209677419351465,3.1451612903224486,3.6693548387097508,4.1935483870975077]
[null,92,3302.5453225806523,3280.3679032258251,3258.1904838709816,3232.3437096774364,3199.3568124999747,2.0967741935478443,2.6209677419351465,3.1451612903229034,3.6693548387097508,4.1935483870965982]
[null,93,3300.448548387104,3277.7469354838904,3255.0453225806586,3228.6743548387267,3195.1632641128776,2.0967741935482991,2.6209677419346917,3.1451612903229034,3.6693548387097508,4.1935483870970529]
[null,94,3298.3517741935561,3275.1259677419553,3251.9001612903362,3225.0050000000174,3190.9697157257806,2.0967741935478443,2.6209677419351465,3.1451612903224486,3.669354838709296,4.1935483870970529]
[null,95,3296.2550000000083,3272.5050000000201,3248.7550000000138,3221.3356451613076,null,2.0967741935478443,2.6209677419351465,3.1451612903224486,3.6693548387097508]
[null,96,3294.15822580646,3269.884032258085,3245.6098387096913,3217.6662903225979,null,2.0967741935482991,2.6209677419351465,3.1451612903224486,3.6693548387097508]
[null,97,3292.0614516129122,3267.2630645161498,3242.4646774193684,null,null,2.0967741935478443,2.6209677419351465,3.1451612903229034]
[]
[null,null,null,null,null,null,null,{"$f":"G88/C3","v":0.94094065935053017},{"$f":"1-H93","v":5.9059340649469827E-2}]

{"sheet":"Simulações_Percentagem","index":5,"n_rows":74,"n_cols":7,"rows_kept":74,"cut":false,"hidden":false,"merged":[]}
[]
[null,"# de espécies",0.02,1.4999999999999999E-2,0.01,5.0000000000000001E-3,0]
[null,9,3389.3568124999988,3389.3568125000002,3389.3568124999988,3389.3568125000011,3391.2550000000001]
[null,10,3389.3568124999983,3389.3568125000002,3389.3568124999983,3389.3568125000011,3391.2550000000001]
[null,11,3389.3568125000002,3389.3568125000006,3389.3568124999988,3389.3568125000011,3391.2550000000001]
[null,12,3389.3568125000002,3389.3568125000006,3389.3568124999988,3389.3568125000011,3391.2550000000006]
[null,13,3389.3568125000002,3389.3568125000006,3389.3568124999988,3389.3568125000015,3391.2550000000006]
[null,14,3389.3568125000002,3389.3568125000006,3389.3568124999988,3389.3568125000015,3391.2550000000006]
[null,15,3389.3568125000002,3389.3568125000006,3389.3568124999988,3389.3568125000015,3391.2550000000006]
[null,16,3389.3568125000002,3389.3568125000006,3389.3568124999983,3389.3568125000015,3391.2550000000006]
[null,17,3389.3568125000002,3389.3568125000006,3389.3568124999983,3389.356812500002,3391.2550000000006]
[null,18,3383.9999999999968,3389.3568125000006,3389.3568124999983,3389.356812500002,3391.2550000000006]
[null,19,3341.9999999999968,3371.3568125000011,3389.3568124999983,3389.356812500002,3391.2550000000006]
[null,20,3299.9999999999964,3353.3568125000011,3389.3568124999983,3389.3568125000024,3391.2550000000006]
[null,21,3257.9999999999964,3335.3568125000011,3389.3568124999983,3389.3568125000024,3391.2550000000006]
[null,22,3215.9999999999964,3312.0000000000018,3377.3568124999979,3389.3568125000024,3391.2550000000006]
[null,23,3173.9999999999959,3280.5000000000014,3365.3568124999979,3389.3568125000024,3391.2550000000006]
[null,24,3131.9999999999959,3249.0000000000018,3353.3568124999979,3389.3568125000024,3391.2550000000006]
[null,25,3089.9999999999959,3217.5000000000018,3341.3568124999979,3389.3568125000029,3391.2550000000006]
[null,26,3047.9999999999959,3186.0000000000018,3329.3568124999979,3389.3568125000029,3391.2550000000006]
[null,27,3005.9999999999959,3154.5000000000023,3317.3568124999979,3389.3568125000029,3391.2550000000006]
[null,28,2963.9999999999964,3123.0000000000023,3305.3568124999979,3383.3568125000029,3391.2550000000006]
[null,29,2921.9999999999964,3091.5000000000023,3293.3568124999974,3377.3568125000033,3391.2550000000006]
[null,30,2879.9999999999964,3060.0000000000023,3275.9999999999973,3371.3568125000033,3391.2550000000006]
[null,31,2837.9999999999964,3028.5000000000023,3254.9999999999968,3365.3568125000033,3391.2550000000006]
[null,32,2795.9999999999964,2997.0000000000023,3233.9999999999973,3359.3568125000038,3391.2550000000006]
[null,33,2753.9999999999964,2965.5000000000027,3212.9999999999973,3353.3568125000038,3391.2550000000006]
[null,34,2711.9999999999964,2934.0000000000027,3191.9999999999968,3347.3568125000038,3391.2550000000006]
[null,35,2669.9999999999964,2902.5000000000027,3170.9999999999968,3341.3568125000038,3391.2550000000006]
[null,36,2627.9999999999964,2871.0000000000027,3149.9999999999968,3335.3568125000043,3391.2550000000006]
[null,37,2570.9999999999964,2839.5000000000027,3128.9999999999968,3329.3568125000043,3391.2550000000006]
[null,38,2513.9999999999964,2808.0000000000027,3107.9999999999964,3323.3568125000043,3391.2550000000006]
[null,39,2456.9999999999964,2776.5000000000032,3086.9999999999964,3317.3568125000043,3391.2550000000006]
[null,40,2399.9999999999968,2733.7500000000032,3065.9999999999964,3311.3568125000047,3391.2550000000006]
[null,41,2342.9999999999968,2691.0000000000032,3044.9999999999964,3305.3568125000047,3391.2550000000006]
[null,42,2285.9999999999968,2648.2500000000032,3023.9999999999964,3299.3568125000047,3391.2550000000006]
[null,43,2228.9999999999968,2605.5000000000036,3002.9999999999964,3293.3568125000052,3391.2550000000006]
[null,44,2171.9999999999968,2562.7500000000036,2981.9999999999959,3287.3568125000052,3391.2550000000006]
[null,45,2114.9999999999968,2520.0000000000036,2960.9999999999959,3281.3568125000052,3391.2550000000006]
[null,46,2057.9999999999968,2477.2500000000036,2939.9999999999959,3275.3568125000052,3391.2550000000006]
[null,47,2000.9999999999968,2434.5000000000036,2911.4999999999959,3269.3568125000056,3391.2550000000006]
[null,48,null,2391.7500000000041,2882.9999999999955,3263.3568125000056,3391.2550000000006]
[null,49,null,2349.0000000000036,2854.4999999999955,3257.3568125000056,3391.2550000000006]
[null,50,null,2306.2500000000041,2825.9999999999955,3251.3568125000061,3391.2550000000006]
[null,51,null,2263.5000000000041,2797.4999999999955,3245.3568125000061,3391.2550000000006]
[null,52,null,2220.7500000000036,2768.9999999999955,3239.3568125000061,3391.2550000000006]
[null,53,null,2178.0000000000036,2740.4999999999955,3232.5000000000086,3391.2550000000006]
[null,54,null,2135.2500000000036,2711.9999999999955,3222.0000000000086,3391.2550000000006]
[null,55,null,null,2683.499999999995,3211.5000000000091,3391.2550000000006]
[null,56,null,null,2654.999999999995,3201.0000000000091,3391.2550000000006]
[null,57,null,null,2626.499999999995,3190.5000000000091,3391.2550000000006]
[null,58,null,null,2597.9999999999945,3176.25000000001,3391.2550000000006]
[null,59,null,null,2569.4999999999945,3162.00000000001,3391.2550000000006]
[null,60,null,null,2540.9999999999945,3147.75000000001,3391.2550000000006]
[null,61,null,null,2512.4999999999945,3133.50000000001,3391.2550000000006]
[null,62,null,null,2483.9999999999945,3119.2500000000105,3391.2550000000006]
[null,63,null,null,2455.4999999999945,3105.0000000000105,3391.2550000000006]
[null,64,null,null,2426.9999999999945,3090.7500000000109,3391.2550000000006]
[null,65,null,null,2398.4999999999945,3076.5000000000109,3391.2550000000006]
[null,66,null,null,null,3062.2500000000109,3391.2550000000006]
[null,67,null,null,null,3048.0000000000114,3391.2550000000006]
[null,68,null,null,null,3033.7500000000114,3391.2550000000006]
[null,69,null,null,null,3019.5000000000118,3391.2550000000006]
[null,70,null,null,null,3005.2500000000118,3391.2550000000006]
[null,71,null,null,null,2991.0000000000118,3391.2550000000006]
[null,72,null,null,null,2976.7500000000118,3391.2550000000006]
[null,73,null,null,null,2962.5000000000123,3391.2550000000006]
[null,74,null,null,null,2948.2500000000127,3391.2550000000006]
[null,75,null,null,null,2934.0000000000127,3391.2550000000006]
[null,76,null,null,null,2919.7500000000127,3391.2550000000006]
[null,77,null,null,null,2905.5000000000127,3391.2550000000006]
[null,78,null,null,null,2891.2500000000132,3391.2550000000006]
[null,79,null,null,null,null,3391.2550000000006]
[null,80,null,null,null,null,3391.2550000000006]

{"sheet":"Gráficos","index":6,"n_rows":196,"n_cols":5,"rows_kept":196,"cut":false,"hidden":false,"merged":[]}
[]
[null,null,"Área:",{"$f":"Principal!G1","v":620}]
[null,"Grupo","Vol/ha","Vol da UPA por Grupo","Receita Total"]
[120,1,{"$f":"ROUND(SUM(Principal!F6:F12),2)","v":0},{"$f":"C4*$D$2","v":0},{"$f":"D4*A4","v":0}]
[90,2,{"$f":"ROUND(SUM(Principal!F13:F42),2)","v":0},{"$f":"C5*$D$2","v":0},{"$f":"D5*A5","v":0}]
[50,3,{"$f":"ROUND(SUM(Principal!F43:F75),2)","v":0},{"$f":"C6*$D$2","v":0},0]
[25,4,{"$f":"ROUND(SUM(Principal!F76:F102),2)","v":0},{"$f":"C7*$D$2","v":0},0]
[null,null,null,{"$f":"SUM(D4:D7)","v":0},{"$f":"SUM(E4:E7)","v":0}]
[null,null,null,"Total de espécies:",{"$f":"Principal!G4","v":0}]
[null,null,null,"Espécies c/ carga min:",{"$f":"COUNTIF(A100:A195,\"=Sim\")","v":0}]
[]
[]
[]
[]
[]
[]
[]
[]
[]
[]
[]
[]
[]
[]
[]
[]
[]
[]
[]
[]
[]
[]
[]
[]
[]
[]
[]
[]
[]
[]
[]
[]
[]
[]
[]
[]
[]
[]
[]
[]
[]
[]
[]
[]
[]
[]
[]
[]
[]
[]
[]
[]
[]
[]
[]
[]
[]
[]
[]
[]
[]
[]
[]
[]
[]
[]
[]
[]
[]
[]
[]
[]
[]
[]
[]
[]
[]
[]
[]
[]
[]
[]
[]
[]
[]
[]
[]
[]
[]
[{"$f":"IF(Principal!F6=Principal!$G$2/Principal!$G$1,\"Sim\",\"Não\")","v":"Não"}]
[{"$f":"IF(Principal!F7=Principal!$G$2/Principal!$G$1,\"Sim\",\"Não\")","v":"Não"}]
[{"$f":"IF(Principal!F8=Principal!$G$2/Principal!$G$1,\"Sim\",\"Não\")","v":"Não"}]
[{"$f":"IF(Principal!F9=Principal!$G$2/Principal!$G$1,\"Sim\",\"Não\")","v":"Não"}]
[{"$f":"IF(Principal!F10=Principal!$G$2/Principal!$G$1,\"Sim\",\"Não\")","v":"Não"}]
[{"$f":"IF(Principal!F11=Principal!$G$2/Principal!$G$1,\"Sim\",\"Não\")","v":"Não"}]
[{"$f":"IF(Principal!F12=Principal!$G$2/Principal!$G$1,\"Sim\",\"Não\")","v":"Não"}]
[{"$f":"IF(Principal!F13=Principal!$G$2/Principal!$G$1,\"Sim\",\"Não\")","v":"Não"}]
[{"$f":"IF(Principal!F14=Principal!$G$2/Principal!$G$1,\"Sim\",\"Não\")","v":"Não"}]
[{"$f":"IF(Principal!F15=Principal!$G$2/Principal!$G$1,\"Sim\",\"Não\")","v":"Não"}]
[{"$f":"IF(Principal!F16=Principal!$G$2/Principal!$G$1,\"Sim\",\"Não\")","v":"Não"}]
[{"$f":"IF(Principal!F17=Principal!$G$2/Principal!$G$1,\"Sim\",\"Não\")","v":"Não"}]
[{"$f":"IF(Principal!F18=Principal!$G$2/Principal!$G$1,\"Sim\",\"Não\")","v":"Não"}]
[{"$f":"IF(Principal!F19=Principal!$G$2/Principal!$G$1,\"Sim\",\"Não\")","v":"Não"}]
[{"$f":"IF(Principal!F20=Principal!$G$2/Principal!$G$1,\"Sim\",\"Não\")","v":"Não"}]
[{"$f":"IF(Principal!F21=Principal!$G$2/Principal!$G$1,\"Sim\",\"Não\")","v":"Não"}]
[{"$f":"IF(Principal!F22=Principal!$G$2/Principal!$G$1,\"Sim\",\"Não\")","v":"Não"}]
[{"$f":"IF(Principal!F23=Principal!$G$2/Principal!$G$1,\"Sim\",\"Não\")","v":"Não"}]
[{"$f":"IF(Principal!F24=Principal!$G$2/Principal!$G$1,\"Sim\",\"Não\")","v":"Não"}]
[{"$f":"IF(Principal!F25=Principal!$G$2/Principal!$G$1,\"Sim\",\"Não\")","v":"Não"}]
[{"$f":"IF(Principal!F26=Principal!$G$2/Principal!$G$1,\"Sim\",\"Não\")","v":"Não"}]
[{"$f":"IF(Principal!F27=Principal!$G$2/Principal!$G$1,\"Sim\",\"Não\")","v":"Não"}]
[{"$f":"IF(Principal!F28=Principal!$G$2/Principal!$G$1,\"Sim\",\"Não\")","v":"Não"}]
[{"$f":"IF(Principal!F29=Principal!$G$2/Principal!$G$1,\"Sim\",\"Não\")","v":"Não"}]
[{"$f":"IF(Principal!F30=Principal!$G$2/Principal!$G$1,\"Sim\",\"Não\")","v":"Não"}]
[{"$f":"IF(Principal!F31=Principal!$G$2/Principal!$G$1,\"Sim\",\"Não\")","v":"Não"}]
[{"$f":"IF(Principal!F32=Principal!$G$2/Principal!$G$1,\"Sim\",\"Não\")","v":"Não"}]
[{"$f":"IF(Principal!F33=Principal!$G$2/Principal!$G$1,\"Sim\",\"Não\")","v":"Não"}]
[{"$f":"IF(Principal!F34=Principal!$G$2/Principal!$G$1,\"Sim\",\"Não\")","v":"Não"}]
[{"$f":"IF(Principal!F35=Principal!$G$2/Principal!$G$1,\"Sim\",\"Não\")","v":"Não"}]
[{"$f":"IF(Principal!F36=Principal!$G$2/Principal!$G$1,\"Sim\",\"Não\")","v":"Não"}]
[{"$f":"IF(Principal!F37=Principal!$G$2/Principal!$G$1,\"Sim\",\"Não\")","v":"Não"}]
[{"$f":"IF(Principal!F38=Principal!$G$2/Principal!$G$1,\"Sim\",\"Não\")","v":"Não"}]
[{"$f":"IF(Principal!F39=Principal!$G$2/Principal!$G$1,\"Sim\",\"Não\")","v":"Não"}]
[{"$f":"IF(Principal!F40=Principal!$G$2/Principal!$G$1,\"Sim\",\"Não\")","v":"Não"}]
[{"$f":"IF(Principal!F41=Principal!$G$2/Principal!$G$1,\"Sim\",\"Não\")","v":"Não"}]
[{"$f":"IF(Principal!F42=Principal!$G$2/Principal!$G$1,\"Sim\",\"Não\")","v":"Não"}]
[{"$f":"IF(Principal!F43=Principal!$G$2/Principal!$G$1,\"Sim\",\"Não\")","v":"Não"}]
[{"$f":"IF(Principal!F44=Principal!$G$2/Principal!$G$1,\"Sim\",\"Não\")","v":"Não"}]
[{"$f":"IF(Principal!F45=Principal!$G$2/Principal!$G$1,\"Sim\",\"Não\")","v":"Não"}]
[{"$f":"IF(Principal!F46=Principal!$G$2/Principal!$G$1,\"Sim\",\"Não\")","v":"Não"}]
[{"$f":"IF(Principal!F47=Principal!$G$2/Principal!$G$1,\"Sim\",\"Não\")","v":"Não"}]
[{"$f":"IF(Principal!F48=Principal!$G$2/Principal!$G$1,\"Sim\",\"Não\")","v":"Não"}]
[{"$f":"IF(Principal!F49=Principal!$G$2/Principal!$G$1,\"Sim\",\"Não\")","v":"Não"}]
[{"$f":"IF(Principal!F50=Principal!$G$2/Principal!$G$1,\"Sim\",\"Não\")","v":"Não"}]
[{"$f":"IF(Principal!F51=Principal!$G$2/Principal!$G$1,\"Sim\",\"Não\")","v":"Não"}]
[{"$f":"IF(Principal!F52=Principal!$G$2/Principal!$G$1,\"Sim\",\"Não\")","v":"Não"}]
[{"$f":"IF(Principal!F53=Principal!$G$2/Principal!$G$1,\"Sim\",\"Não\")","v":"Não"}]
[{"$f":"IF(Principal!F54=Principal!$G$2/Principal!$G$1,\"Sim\",\"Não\")","v":"Não"}]
[{"$f":"IF(Principal!F55=Principal!$G$2/Principal!$G$1,\"Sim\",\"Não\")","v":"Não"}]
[{"$f":"IF(Principal!F56=Principal!$G$2/Principal!$G$1,\"Sim\",\"Não\")","v":"Não"}]
[{"$f":"IF(Principal!F57=Principal!$G$2/Principal!$G$1,\"Sim\",\"Não\")","v":"Não"}]
[{"$f":"IF(Principal!F58=Principal!$G$2/Principal!$G$1,\"Sim\",\"Não\")","v":"Não"}]
[{"$f":"IF(Principal!F59=Principal!$G$2/Principal!$G$1,\"Sim\",\"Não\")","v":"Não"}]
[{"$f":"IF(Principal!F60=Principal!$G$2/Principal!$G$1,\"Sim\",\"Não\")","v":"Não"}]
[{"$f":"IF(Principal!F61=Principal!$G$2/Principal!$G$1,\"Sim\",\"Não\")","v":"Não"}]
[{"$f":"IF(Principal!F62=Principal!$G$2/Principal!$G$1,\"Sim\",\"Não\")","v":"Não"}]
[{"$f":"IF(Principal!F63=Principal!$G$2/Principal!$G$1,\"Sim\",\"Não\")","v":"Não"}]
[{"$f":"IF(Principal!F64=Principal!$G$2/Principal!$G$1,\"Sim\",\"Não\")","v":"Não"}]
[{"$f":"IF(Principal!F65=Principal!$G$2/Principal!$G$1,\"Sim\",\"Não\")","v":"Não"}]
[{"$f":"IF(Principal!F66=Principal!$G$2/Principal!$G$1,\"Sim\",\"Não\")","v":"Não"}]
[{"$f":"IF(Principal!F67=Principal!$G$2/Principal!$G$1,\"Sim\",\"Não\")","v":"Não"}]
[{"$f":"IF(Principal!F68=Principal!$G$2/Principal!$G$1,\"Sim\",\"Não\")","v":"Não"}]
[{"$f":"IF(Principal!F69=Principal!$G$2/Principal!$G$1,\"Sim\",\"Não\")","v":"Não"}]
[{"$f":"IF(Principal!F70=Principal!$G$2/Principal!$G$1,\"Sim\",\"Não\")","v":"Não"}]
[{"$f":"IF(Principal!F71=Principal!$G$2/Principal!$G$1,\"Sim\",\"Não\")","v":"Não"}]
[{"$f":"IF(Principal!F72=Principal!$G$2/Principal!$G$1,\"Sim\",\"Não\")","v":"Não"}]
[{"$f":"IF(Principal!F73=Principal!$G$2/Principal!$G$1,\"Sim\",\"Não\")","v":"Não"}]
[{"$f":"IF(Principal!F74=Principal!$G$2/Principal!$G$1,\"Sim\",\"Não\")","v":"Não"}]
[{"$f":"IF(Principal!F75=Principal!$G$2/Principal!$G$1,\"Sim\",\"Não\")","v":"Não"}]
[{"$f":"IF(Principal!F76=Principal!$G$2/Principal!$G$1,\"Sim\",\"Não\")","v":"Não"}]
[{"$f":"IF(Principal!F77=Principal!$G$2/Principal!$G$1,\"Sim\",\"Não\")","v":"Não"}]
[{"$f":"IF(Principal!F78=Principal!$G$2/Principal!$G$1,\"Sim\",\"Não\")","v":"Não"}]
[{"$f":"IF(Principal!F79=Principal!$G$2/Principal!$G$1,\"Sim\",\"Não\")","v":"Não"}]
[{"$f":"IF(Principal!F80=Principal!$G$2/Principal!$G$1,\"Sim\",\"Não\")","v":"Não"}]
[{"$f":"IF(Principal!F81=Principal!$G$2/Principal!$G$1,\"Sim\",\"Não\")","v":"Não"}]
[{"$f":"IF(Principal!F82=Principal!$G$2/Principal!$G$1,\"Sim\",\"Não\")","v":"Não"}]
[{"$f":"IF(Principal!F83=Principal!$G$2/Principal!$G$1,\"Sim\",\"Não\")","v":"Não"}]
[{"$f":"IF(Principal!F84=Principal!$G$2/Principal!$G$1,\"Sim\",\"Não\")","v":"Não"}]
[{"$f":"IF(Principal!F85=Principal!$G$2/Principal!$G$1,\"Sim\",\"Não\")","v":"Não"}]
[{"$f":"IF(Principal!F86=Principal!$G$2/Principal!$G$1,\"Sim\",\"Não\")","v":"Não"}]
[{"$f":"IF(Principal!F87=Principal!$G$2/Principal!$G$1,\"Sim\",\"Não\")","v":"Não"}]
[{"$f":"IF(Principal!F88=Principal!$G$2/Principal!$G$1,\"Sim\",\"Não\")","v":"Não"}]
[{"$f":"IF(Principal!F89=Principal!$G$2/Principal!$G$1,\"Sim\",\"Não\")","v":"Não"}]
[{"$f":"IF(Principal!F90=Principal!$G$2/Principal!$G$1,\"Sim\",\"Não\")","v":"Não"}]
[{"$f":"IF(Principal!F91=Principal!$G$2/Principal!$G$1,\"Sim\",\"Não\")","v":"Não"}]
[{"$f":"IF(Principal!F92=Principal!$G$2/Principal!$G$1,\"Sim\",\"Não\")","v":"Não"}]
[{"$f":"IF(Principal!F93=Principal!$G$2/Principal!$G$1,\"Sim\",\"Não\")","v":"Não"}]
[{"$f":"IF(Principal!F94=Principal!$G$2/Principal!$G$1,\"Sim\",\"Não\")","v":"Não"}]
[{"$f":"IF(Principal!F95=Principal!$G$2/Principal!$G$1,\"Sim\",\"Não\")","v":"Não"}]
[{"$f":"IF(Principal!F96=Principal!$G$2/Principal!$G$1,\"Sim\",\"Não\")","v":"Não"}]
[{"$f":"IF(Principal!F97=Principal!$G$2/Principal!$G$1,\"Sim\",\"Não\")","v":"Não"}]
[{"$f":"IF(Principal!F98=Principal!$G$2/Principal!$G$1,\"Sim\",\"Não\")","v":"Não"}]
[{"$f":"IF(Principal!F99=Principal!$G$2/Principal!$G$1,\"Sim\",\"Não\")","v":"Não"}]
[{"$f":"IF(Principal!F100=Principal!$G$2/Principal!$G$1,\"Sim\",\"Não\")","v":"Não"}]
[{"$f":"IF(Principal!F101=Principal!$G$2/Principal!$G$1,\"Sim\",\"Não\")","v":"Não"}]
[{"$f":"IF(Principal!F102=Principal!$G$2/Principal!$G$1,\"Sim\",\"Não\")","v":"Não"}]

{"sheet":"Eliminadas","index":7,"n_rows":217,"n_cols":17,"rows_kept":217,"cut":false,"hidden":false,"merged":[]}
[null,"Excluídas as linhas com"]
[null,"células amarelas"]
[]
[]
["#","Espécie","Valor",41,58,80,85,87,95,99,41,58,80,85,87,95,99]
[1,"Andiroba",120]
[2,"Angelim-Vermelho",120]
[3,"Cumaru",120]
[4,"Jatobá",120]
[5,"Maparajuba",120]
[6,"Massaranduba",120]
[7,"Muiracatiara",120]
[8,"Angelim",90]
[9,"Angelim-pedra",90]
[10,"Cumaru-do-brejo",90]
[11,"Cumarurana",90]
[12,"Cupiúba",90]
[13,"Itaúba",90]
[14,"Jutaí",90]
[15,"Jutaí-pororoca",90]
[16,"Louro",90]
[17,"Louro-amarelo",90]
[18,"Louro-aritú",90]
[19,"Louro-canela",90]
[20,"Louro-fofo",90]
[21,"Louro-gamela",90]
[22,"Louro-porco",90]
[23,"Louro-preto",90]
[24,"Marupá",90]
[25,"Pequiá",90]
[26,"Pequiarana",90]
[27,"Preciosa",90]
[28,"Quarubarana",90]
[29,"Ripeiro",90]
[30,"Sucupira-amarela",90]
[31,"Sucupira-preta",90]
[32,"Tauari-branco",90]
[33,"Tauari-vermelho",90]
[34,"Ucuúba",90]
[35,"Ucuúba-branca",90]
[36,"Violeta",90]
[37,"Virola",90]
[38,"Abiurana-ferro",50]
[39,"Acariquara",50]
[40,"Amapá",50]
[41,"Amapá-amargoso",50,1,null,null,null,null,null,null,-1]
[42,"Amapá-doce",50]
[43,"Angelim-rajado",50]
[44,"Arurá-vermelho",50]
[45,"Bacuri",50]
[46,"Balatarana",50]
[47,"Breu",50]
[48,"Breu-branco",50]
[49,"Breu-vermelho",50]
[50,"Castanharana",50]
[51,"Castanharana",50]
[52,"Castanha-sapucaia",50]
[53,"Coração-de-negro",50]
[54,"Cubarana",50]
[55,"Guajará",50]
[56,"Guariúba",50]
[57,"Ingarana",50]
[58,"Jacareúba",50,null,1,null,null,null,null,null,null,-1]
[59,"Jarana",50]
[60,"Macacaúba",50]
[61,"Mata-mata-branco",50]
[62,"Matamata-preto",50]
[63,"Matamata-vermelho",50]
[64,"Muirapiranga",50]
[65,"Paracutaco",50]
[66,"Seringa",50]
[67,"Sucupira-vermelha",50]
[68,"Tanibuca",50]
[69,"Uchi",50]
[70,"Uchi-coroa",50]
[71,"Uchirana",50]
[72,"Urucurana",50]
[73,"Abacatearana ",25]
[74,"Abiu",25]
[75,"Abiu-branco",25]
[76,"Abiurana-Vermelha",25]
[77,"Abiu-vermelho",25]
[78,"Amarelinho",25]
[79,"Angelim-fava",25]
[80,"Arara-tucupi",25,null,null,1,null,null,null,null,null,null,-1]
[81,"Arura-branco",25]
[82,"Balata-casca-grossa",25]
[83,"Balatinha",25]
[84,"Caju-açu",25]
[85,"Cajuí",25,null,null,null,1,null,null,null,null,null,null,-1]
[86,"Caju-preto",25]
[87,"Cajurana",25,null,null,null,null,1,null,null,null,null,null,null,-1]
[88,"Capitiú",25]
[89,"Caramuri",25]
[90,"Carapanaúba",25]
[91,"Fava",25]
[92,"Fava-amargosa",25]
[93,"Fava-bengué",25]
[94,"Fava-bolacha",25]
[95,"Fava-vermelha",25,null,null,null,null,null,1,null,null,null,null,null,null,-1]
[96,"João-mole",25]
[97,"Macucu",25]
[98,"Macucu-casca-grossa",25]
[99,"Munguba",25,null,null,null,null,null,null,1,null,null,null,null,null,null,-1]
[100,"Parapará",25]
[101,"Paricá",25]
[102,"Pequiá-marfim",25]
[103,"Tapuruzeiro",25]
[104,"Timborana",25]
[1,"Bin_Andiroba_x1",120]
[2,"Bin_Angelim-Vermelho_x2",120]
[3,"Bin_Cumaru_x3",120]
[4,"Bin_Jatobá_x4",120]
[5,"Bin_Maparajuba_x5",120]
[6,"Bin_Massaranduba_x6",120]
[7,"Bin_Muiracatiara_x7",120]
[8,"Bin_Angelim_x8",90]
[9,"Bin_Angelim-pedra_x9",90]
[10,"Bin_Cumaru-do-brejo_x10",90]
[11,"Bin_Cumarurana_x11",90]
[12,"Bin_Cupiúba_x12",90]
[13,"Bin_Itaúba_x13",90]
[14,"Bin_Jutaí_x14",90]
[15,"Bin_Jutaí-pororoca_x15",90]
[16,"Bin_Louro_x16",90]
[17,"Bin_Louro-amarelo_x17",90]
[18,"Bin_Louro-aritú_x18",90]
[19,"Bin_Louro-canela_x19",90]
[20,"Bin_Louro-fofo_x20",90]
[21,"Bin_Louro-gamela_x21",90]
[22,"Bin_Louro-porco_x22",90]
[23,"Bin_Louro-preto_x23",90]
[24,"Bin_Marupá_x24",90]
[25,"Bin_Pequiá_x25",90]
[26,"Bin_Pequiarana_x26",90]
[27,"Bin_Preciosa_x27",90]
[28,"Bin_Quarubarana_x28",90]
[29,"Bin_Ripeiro_x29",90]
[30,"Bin_Sucupira-amarela_x30",90]
[31,"Bin_Sucupira-preta_x31",90]
[32,"Bin_Tauari-branco_x32",90]
[33,"Bin_Tauari-vermelho_x33",90]
[34,"Bin_Ucuúba_x34",90]
[35,"Bin_Ucuúba-branca_x35",90]
[36,"Bin_Violeta_x36",90]
[37,"Bin_Virola_x37",90]
[38,"Bin_Abiurana-ferro_x38",50]
[39,"Bin_Acariquara_x39",50]
[40,"Bin_Amapá_x40",50]
[41,"Bin_Amapá-amargoso_x41",50,-7.3729166666666665E-2,null,null,null,null,null,null,{"$f":"$D$217","v":0}]
[42,"Bin_Amapá-doce_x42",50]
[43,"Bin_Angelim-rajado_x43",50]
[44,"Bin_Arurá-vermelho_x44",50]
[45,"Bin_Bacuri_x45",50]
[46,"Bin_Balatarana_x46",50]
[47,"Bin_Breu_x47",50]
[48,"Bin_Breu-branco_x48",50]
[49,"Bin_Breu-vermelho_x49",50]
[50,"Bin_Castanharana_x50",50]
[51,"Bin_Castanharana_x51",50]
[52,"Bin_Castanha-sapucaia_x52",50]
[53,"Bin_Coração-de-negro_x53",50]
[54,"Bin_Cubarana_x54",50]
[55,"Bin_Guajará_x55",50]
[56,"Bin_Guariúba_x56",50]
[57,"Bin_Ingarana_x57",50]
[58,"Bin_Jacareúba_x58",50,null,-6.1731249999999994E-2,null,null,null,null,null,null,{"$f":"$D$217","v":0}]
[59,"Bin_Jarana_x59",50]
[60,"Bin_Macacaúba_x60",50]
[61,"Bin_Mata-mata-branco_x61",50]
[62,"Bin_Matamata-preto_x62",50]
[63,"Bin_Matamata-vermelho_x63",50]
[64,"Bin_Muirapiranga_x64",50]
[65,"Bin_Paracutaco_x65",50]
[66,"Bin_Seringa_x66",50]
[67,"Bin_Sucupira-vermelha_x67",50]
[68,"Bin_Tanibuca_x68",50]
[69,"Bin_Uchi_x69",50]
[70,"Bin_Uchi-coroa_x70",50]
[71,"Bin_Uchirana_x71",50]
[72,"Bin_Urucurana_x72",50]
[73,"Bin_Abacatearana _x73",25]
[74,"Bin_Abiu_x74",25]
[75,"Bin_Abiu-branco_x75",25]
[76,"Bin_Abiurana-Vermelha_x76",25]
[77,"Bin_Abiu-vermelho_x77",25]
[78,"Bin_Amarelinho_x78",25]
[79,"Bin_Angelim-fava_x79",25]
[80,"Bin_Arara-tucupi_x80",25,null,null,-7.8831250000000005E-2,null,null,null,null,null,null,{"$f":"$D$217","v":0}]
[81,"Bin_Arura-branco_x81",25]
[82,"Bin_Balata-casca-grossa_x82",25]
[83,"Bin_Balatinha_x83",25]
[84,"Bin_Caju-açu_x84",25]
[85,"Bin_Cajuí_x85",25,null,null,null,-8.681458333333332E-2,null,null,null,null,null,null,{"$f":"$D$217","v":0}]
[86,"Bin_Caju-preto_x86",25]
[87,"Bin_Cajurana_x87",25,null,null,null,null,-5.081666666666667E-2,null,null,null,null,null,null,{"$f":"$D$217","v":0}]
[88,"Bin_Capitiú_x88",25]
[89,"Bin_Caramuri_x89",25]
[90,"Bin_Carapanaúba_x90",25]
[91,"Bin_Fava_x91",25]
[92,"Bin_Fava-amargosa_x92",25]
[93,"Bin_Fava-bengué_x93",25]
[94,"Bin_Fava-bolacha_x94",25]
[95,"Bin_Fava-vermelha_x95",25,null,null,null,null,null,-7.3729166666666665E-2,null,null,null,null,null,null,{"$f":"$D$217","v":0}]
[96,"Bin_João-mole_x96",25]
[97,"Bin_Macucu_x97",25]
[98,"Bin_Macucu-casca-grossa_x98",25]
[99,"Bin_Munguba_x99",25,null,null,null,null,null,null,-6.5560416666666663E-2,null,null,null,null,null,null,{"$f":"$D$217","v":0}]
[100,"Bin_Parapará_x100",25]
[101,"Bin_Paricá_x101",25]
[102,"Bin_Pequiá-marfim_x102",25]
[103,"Bin_Tapuruzeiro_x103",25]
[104,"Bin_Timborana_x104",25]
[null,"VT"]
[null,null,null,{"$f":"SUMPRODUCT($G$6:$G$213,D6:D213)","v":0},0,0,1.0075367718793402,0,0,0,0,0,0,-1,0,0,0]
[null,null,null,"<=","<=","<=","<=","<=","<=","<=","<=","<=","<=","<=","<=","<=","<="]
[null,"Vol mín (m3/ha):",null,0,0,0,0,0,0,0,0,0,0,0,0,0,0]

{"sheet":"Plan1","index":8,"n_rows":64,"n_cols":10,"rows_kept":64,"cut":false,"hidden":false,"merged":[]}
["Indicador baseado na:","Volume de corte máximo (m3/ha), V*:",30,"Área da UPA (ha):",null,{"$f":"'UMF3'!B1/30","v":620}]
["Carga da UPA","Indicador A7 (Spp exploradas), S*:",15,"Carga mínima (m3):",null,30]
[]
[null,"Receita (R$/ha):",{"$f":"F203","v":0},"Espécies e volume explorados:",null,{"$f":"I201","v":0}]
[null,"Espécie","% Explorado da Sp","% do Total","Volume (m3)","Valor"]
[null,"Abiurana-ferro","--","--",8.8377680524780329E-18,50]
[null,"Acariquara","--","--",0,50]
[null,"Amapá","--","--",0,50]
[null,"Amapá-doce","--","--",0,50]
[null,"Angelim-rajado","--","--",-2.6551853090264491E-16,50]
[null,"Arurá-vermelho","--","--",4.3254234953156842E-16,50,null,null,0.27360000000000001,0.27360000000000001]
[null,"Bacuri","--","--",3.5778835961766509E-16,50,null,null,0.2596,0.2596]
[null,"Balatarana","--","--",-7.336206652862192E-17,50,null,null,0.1036,0.1036]
[null,"Breu","--","--",0,50,null,null,7.0199999999999999E-2,7.0199999999999999E-2]
[null,"Breu-branco","--","--",1.1102230246253387E-16,50]
[null,"Breu-vermelho","--","--",1.930362608041574E-16,50]
[null,"Castanharana","--","--",4.1493308897307222E-16,50]
[null,"Castanharana","--","--",-5.0181720147341867E-16,50]
[null,"Castanha-sapucaia","--","--",0,50]
[null,"Coração-de-negro","--","--",0,50]
[null,"Guajará","--","--",0,50]
[null,"Guariúba","--","--",0,50]
[null,"Ingarana","--","--",0,50]
[null,"Macacaúba","--","--",5.5059021787943884E-16,50]
[null,"Cumaru",1.0000000000000109,0.27362055555555814,8.2086166666667584,120]
[null,"Massaranduba",0.99999999999998013,0.2595631249999944,7.7868937499998454,120]
[null,"Maparajuba",1.000000000000006,0.10363826388888935,3.1091479166666853,120]
[null,"Jatobá",1.0000000000000058,7.0191527777778054E-2,2.1057458333333452,120]
[null,"Pequiarana",1.0000000000000038,3.836083333333342E-2,1.1508250000000044,90]
[null,"Sucupira-amarela",0.99999999999999412,3.5070486111110841E-2,1.052114583333327,90]
[null,"Muiracatiara",1.0000000000000027,3.0934791666666701E-2,0.92804375000000261,120]
[null,"Angelim-Vermelho",1.0000000000000018,2.8003750000000004E-2,0.84011250000000148,120]
[null,"Ripeiro",0.99999999999999933,2.7270555555555489E-2,0.81811666666666605,90]
[null,"Marupá",1.0000000000000047,2.4969375000000075E-2,0.74908125000000347,90]
[null,"Itaúba",0.11868890507425456,2.4092141577063186E-2,0.72276424731189681,90]
[null,"Louro-aritú",1.0000000000000009,2.2506180555555536E-2,0.6751854166666672,90]
[null,"Cumarurana",0.99999999999999989,1.2968055555555531E-2,0.38904166666666656,90]
[null,"Louro-amarelo",0.99999999999999922,6.3786805555555394E-3,0.19136041666666651,90]
[null,"Andiroba",1,2.1090972222222188E-3,6.3272916666666665E-2,120]
[null,"Sucupira-preta",0.41071275776504079,1.6129032258064596E-3,4.8387096774193866E-2,90]
[null,"Tauari-branco",0.15536176093924897,1.6129032258064572E-3,4.8387096774193797E-2,90]
[null,"Louro-canela",0.13559980880427003,1.6129032258064544E-3,4.8387096774193714E-2,90]
[null,"Louro",0.5752806690514195,1.6129032258064531E-3,4.8387096774193672E-2,90]
[null,"Preciosa",0.30807542713374375,1.6129032258064514E-3,4.8387096774193623E-2,90]
[null,"Quarubarana",0.92235441212076286,1.6129032258064507E-3,4.8387096774193603E-2,90]
[null,"Louro-gamela",0.20928486489644638,1.6129032258064505E-3,4.8387096774193596E-2,90]
[null,"Jutaí-pororoca",4.4376903892446196E-2,1.6129032258064501E-3,4.8387096774193582E-2,90]
[null,"Louro-preto",2.285898826689407E-2,1.6129032258064501E-3,4.8387096774193582E-2,90]
[null,"Angelim-pedra",1.0956426989855291E-2,1.6129032258064488E-3,4.8387096774193547E-2,90]
[null,"Louro-fofo",0.53691355244377692,1.6129032258064488E-3,4.8387096774193547E-2,90]
[null,"Tauari-vermelho",5.2544339212242129E-2,1.6129032258064488E-3,4.8387096774193547E-2,90]
[null,"Ucuúba",0.18364095744273845,1.6129032258064488E-3,4.8387096774193547E-2,90]
[null,"Ucuúba-branca",0.33079539753336901,1.6129032258064488E-3,4.8387096774193547E-2,90]
[null,"Violeta",0.53691355244377692,1.6129032258064488E-3,4.8387096774193547E-2,90]
[null,"Virola",0.38207880587637205,1.6129032258064488E-3,4.8387096774193547E-2,90]
[null,"Cumaru-do-brejo",0.16488808907987401,1.6129032258064484E-3,4.8387096774193533E-2,90]
[null,"Louro-porco",0.7555319102050323,1.6129032258064484E-3,4.8387096774193533E-2,90]
[null,"Cupiúba",9.0900719320117108E-3,1.6129032258064479E-3,4.8387096774193519E-2,90]
[null,"Angelim",0.41308681994865065,1.6129032258064475E-3,4.8387096774193505E-2,90]
[null,"Jutaí",0.19022110297064571,1.6129032258064466E-3,4.8387096774193478E-2,90]
[null,"Pequiá",1.5790447774771697E-2,1.6129032258064466E-3,4.8387096774193478E-2,90]
[null,"Cubarana",0.27178354554469214,1.6129032258064388E-3,4.8387096774193242E-2,50]
[null,"Mata-mata-branco",0.3172577648837891,1.6129032258064163E-3,4.8387096774192569E-2,50]
[null,"Jarana",0.21652735236662538,1.6129032258059746E-3,4.8387096774179315E-2,50]

{"sheet":"Plan2","index":9,"n_rows":69,"n_cols":6,"rows_kept":69,"cut":false,"hidden":false,"merged":[]}
[null,"Volume de corte máximo (m3/ha), V*:",30,"Área da UPA (ha):",515.35766666666666]
[null,"Indicador A7 (Spp exploradas), S*:",40,"Carga mínima (m3):",30]
[]
[null,"Receita (R$/ha):",3381.9410801527506,"Espécies e volume explorados:","40 spp","30 m3"]
[null,"Espécie","% Explorado da Sp","% do Total","Volume (m3)","Valor"]
[null,"Cumaru",1.0000000000000131,0.27362055555555914,8.2086166666667779,120]
[null,"Massaranduba",1.000000000000006,0.25956312500000145,7.7868937500000461,120]
[null,"Maparajuba",1.0000000000000062,0.10363826388888948,3.1091479166666858,120]
[null,"Louro-preto",1.0000000000000029,7.0558819444444629E-2,2.1167645833333397,90]
[null,"Jatobá",0.99999999999999767,7.0191527777777582E-2,2.1057458333333283,120]
[null,"Pequiarana",1.0000000000000029,3.8360833333333427E-2,1.1508250000000033,90]
[null,"Jutaí-pororoca",1.0000000000000018,3.634555555555561E-2,1.0903666666666687,90]
[null,"Muiracatiara",0.99999999999999933,3.0934791666666635E-2,0.92804374999999939,120]
[null,"Angelim-Vermelho",0.99999999999999989,2.8003749999999987E-2,0.84011249999999993,120]
[null,"Louro-aritú",1.0000000000000024,2.2506180555555602E-2,0.67518541666666831,90]
[null,"Cumaru-do-brejo",0.99999999999999978,9.7818055555555505E-3,0.29345416666666663,90]
[null,"Andiroba",1,2.1090972222222214E-3,6.3272916666666665E-2,120]
[null,"Angelim-pedra",1.3551293343027683E-2,1.9948953036474817E-3,5.9846859109424479E-2,90]
[null,"Abiurana-ferro",0.14369415510048772,1.940399968177441E-3,5.8211999045323252E-2,50]
[null,"Marupá",7.7711194940900258E-2,1.9403999681774405E-3,5.8211999045323239E-2,90]
[null,"Cupiúba",1.0935792678315832E-2,1.9403999681774401E-3,5.8211999045323225E-2,90]
[null,"Jarana",0.26049279393795877,1.9403999681774401E-3,5.8211999045323225E-2,50]
[null,"Angelim",0.49696326441538724,1.9403999681774399E-3,5.8211999045323218E-2,90]
[null,"Sucupira-amarela",5.5328573491391642E-2,1.9403999681774399E-3,5.8211999045323218E-2,90]
[null,"Sucupira-preta",0.49410715370035624,1.9403999681774399E-3,5.8211999045323218E-2,90]
[null,"Tauari-branco",0.18690765270915513,1.9403999681774399E-3,5.8211999045323218E-2,90]
[null,"Tauari-vermelho",6.3213361163910353E-2,1.9403999681774399E-3,5.8211999045323218E-2,90]
[null,"Ucuúba",0.22092888294633795,1.9403999681774399E-3,5.8211999045323218E-2,90]
[null,"Ucuúba-branca",0.39796273488513567,1.9403999681774399E-3,5.8211999045323218E-2,90]
[null,"Violeta",0.64593276484708362,1.9403999681774399E-3,5.8211999045323218E-2,90]
[null,"Virola",0.45965913571354788,1.9403999681774399E-3,5.8211999045323218E-2,90]
[null,"Jutaí",0.2288451137335698,1.9403999681774397E-3,5.8211999045323211E-2,90]
[null,"Louro-amarelo",0.30420083766186345,1.9403999681774397E-3,5.8211999045323211E-2,90]
[null,"Louro",0.69209024699069022,1.9403999681774395E-3,5.8211999045323204E-2,90]
[null,"Louro-porco",0.90894113860170889,1.940399968177439E-3,5.821199904532319E-2,90]
[null,"Louro-fofo",0.64593276484708328,1.9403999681774388E-3,5.8211999045323183E-2,90]
[null,"Ripeiro",7.1153664773145456E-2,1.9403999681774388E-3,5.8211999045323183E-2,90]
[null,"Itaúba",9.5592974535878561E-3,1.9403999681774386E-3,5.8211999045323176E-2,90]
[null,"Pequiá",1.8996666302998226E-2,1.9403999681774386E-3,5.8211999045323176E-2,90]
[null,"Louro-gamela",0.25177973401475184,1.9403999681774377E-3,5.8211999045323155E-2,90]
[null,"Cumarurana",0.14962921463936549,1.9403999681774373E-3,5.8211999045323141E-2,90]
[null,"Cubarana",0.32696864553816668,1.9403999681774373E-3,5.8211999045323141E-2,50]
[null,"Louro-canela",0.16313307610697622,1.9403999681774369E-3,5.8211999045323128E-2,90]
[null,"Preciosa",0.37062952038407077,1.9403999681774364E-3,5.8211999045323114E-2,90]
[null,"Seringa",0.13488660169805816,1.9403999681772734E-3,5.8211999045318222E-2,50]
[null,"Matamata-vermelho","--","--",7.967846162353801E-15,50]
[null,"Paracutaco","--","--",6.0569706029293758E-16,50]
[null,"Arurá-vermelho","--","--",3.050708707969122E-16,50]
[null,"Guajará","--","--",1.6820899946614231E-16,50]
[null,"Amapá","--","--",2.9729238977666391E-17,50]
[null,"Bacuri","--","--",2.4941757156040695E-17,50]
[null,"Angelim-rajado","--","--",1.9733489962482369E-32,50]
[null,"Quarubarana","--","--",0,90]
[null,"Breu","--","--",0,50]
[null,"Breu-branco","--","--",0,50]
[null,"Breu-vermelho","--","--",0,50]
[null,"Castanharana","--","--",0,50]
[null,"Castanha-sapucaia","--","--",0,50]
[null,"Coração-de-negro","--","--",0,50]
[null,"Guariúba","--","--",0,50]
[null,"Ingarana","--","--",0,50]
[null,"Macacaúba","--","--",0,50]
[null,"Mata-mata-branco","--","--",0,50]
[null,"Matamata-preto","--","--",0,50]
[null,"Muirapiranga","--","--",0,50]
[null,"Acariquara","--","--",-1.0457981960160702E-17,50]
[null,"Amapá-doce","--","--",-1.4449862543298159E-17,50]
[null,"Castanharana","--","--",-1.0196677903033472E-16,50]
[null,"Balatarana","--","--",-2.1921592676050072E-16,50]